Period,Cost Centre,Responsible Unit,Service Division Categorisation,ServiceAreaCategorisation,Nominal,Narrative,Expense Sub Type,Expense Type,Value,Invoice Date,Cap/Rev,Supplier Name
2,100001,Chief Executive,Corporate Mangmt not separa,Corporate and Democratic Core,3804,Subscriptions,Grants and Subscriptions,Supplies and Services,"31,306.00",01-May-17,R,LONDON COUNCILS
2,100001,Chief Executive,Corporate Mangmt not separa,Corporate and Democratic Core,3804,Subscriptions,Grants and Subscriptions,Supplies and Services,"120,652.00",01-May-17,R,LONDON COUNCILS
2,100020,AD Resources,SupS DOF,Non Distributed Costs (NDC),0075,Agency Staff - Off Contract,Direct EmployeeExpenses-Agency,Employees,678.00,01-May-17,R,HAYS SPECIALIST RECRUITM'T LTD
2,100020,AD Resources,SupS DOF,Non Distributed Costs (NDC),0075,Agency Staff - Off Contract,Direct EmployeeExpenses-Agency,Employees,"1,695.00",01-May-17,R,HAYS SPECIALIST RECRUITM'T LTD
2,100020,AD Resources,SupS DOF,Non Distributed Costs (NDC),0075,Agency Staff - Off Contract,Direct EmployeeExpenses-Agency,Employees,"1,808.00",17-May-17,R,HAYS SPECIALIST RECRUITM'T LTD
2,100020,AD Resources,SupS DOF,Non Distributed Costs (NDC),0075,Agency Staff - Off Contract,Direct EmployeeExpenses-Agency,Employees,"2,712.00",01-May-17,R,HAYS SPECIALIST RECRUITM'T LTD
2,100020,AD Resources,SupS DOF,Non Distributed Costs (NDC),0075,Agency Staff - Off Contract,Direct EmployeeExpenses-Agency,Employees,"2,712.00",03-May-17,R,HAYS SPECIALIST RECRUITM'T LTD
2,100020,AD Resources,SupS DOF,Non Distributed Costs (NDC),0075,Agency Staff - Off Contract,Direct EmployeeExpenses-Agency,Employees,"6,831.00",01-May-17,R,PUBLIC SECTOR CONSULTANTS
2,100020,AD Resources,SupS DOF,Non Distributed Costs (NDC),0075,Agency Staff - Off Contract,Direct EmployeeExpenses-Agency,Employees,"9,430.00",01-May-17,R,PUBLIC SECTOR CONSULTANTS
2,100020,AD Resources,SupS DOF,Non Distributed Costs (NDC),3414,Consultants,Services,Supplies and Services,"1,990.00",01-May-17,R,ADVANCED BUSINESS SOLUTIONS
2,100020,AD Resources,SupS DOF,Non Distributed Costs (NDC),3414,Consultants,Services,Supplies and Services,"3,980.00",01-May-17,R,ADVANCED BUSINESS SOLUTIONS
2,100020,AD Resources,SupS DOF,Non Distributed Costs (NDC),3521,IT licences - Applications,Comms and Computing,Supplies and Services,"2,783.00",02-May-17,R,ASH INFORMATION SYSTEMS LTD
2,100020,AD Resources,SupS DOF,Non Distributed Costs (NDC),3521,IT licences - Applications,Comms and Computing,Supplies and Services,"7,285.00",02-May-17,R,ASH INFORMATION SYSTEMS LTD
2,100020,AD Resources,SupS DOF,Non Distributed Costs (NDC),3804,Subscriptions,Grants and Subscriptions,Supplies and Services,"1,995.00",01-May-17,R,CIPFA BUSINESS LTD
2,100020,AD Resources,SupS DOF,Non Distributed Costs (NDC),3804,Subscriptions,Grants and Subscriptions,Supplies and Services,"6,430.00",01-May-17,R,CIPFA BUSINESS LTD
2,100051,Corporate Accountancy,SupS Corporate Finance,Non Distributed Costs (NDC),3405,External Audit Fees,Services,Supplies and Services,"42,955.00",01-May-17,R,ERNST & YOUNG LLP
2,100070,Business Planning,SupS Strategic Finance,Non Distributed Costs (NDC),3521,IT licences - Applications,Comms and Computing,Supplies and Services,"4,324.96",01-May-17,R,COVALENT SOFTWARE LTD
2,100071,Financial Information System,SupS Strategic Finance,Non Distributed Costs (NDC),3522,IT Support Costs,Comms and Computing,Supplies and Services,531.00,01-May-17,R,ADVANCED BUSINESS SOLUTIONS
2,100071,Financial Information System,SupS Strategic Finance,Non Distributed Costs (NDC),3522,IT Support Costs,Comms and Computing,Supplies and Services,"1,465.00",01-May-17,R,GENERAL DYNAMICS IT LIMITED
2,100101,Local Strategic Partnership,SupS Comm and Member Servic,Non Distributed Costs (NDC),1202,Room Hire External,Rents,Premises Related Expenses,"1,581.50",01-May-17,R,The Royal Foundation of St Katharine
2,100150,Insurance Premiums & Funding,SupS  Risk and Insurance,Non Distributed Costs (NDC),3436,Insurance Premiums,Services,Supplies and Services,"16,185.14",03-May-17,R,JLT SPECIALTY LIMITED
2,100150,Insurance Premiums & Funding,SupS  Risk and Insurance,Non Distributed Costs (NDC),3436,Insurance Premiums,Services,Supplies and Services,"310,230.20",01-May-17,R,ZURICH INSURANCE COMPANY
2,100170,Treasury & Insurance,SupS Strategic Finance,Non Distributed Costs (NDC),0075,Agency Staff - Off Contract,Direct EmployeeExpenses-Agency,Employees,"2,260.00",03-May-17,R,HAYS SPECIALIST RECRUITM'T LTD
2,100330,Business Systems,SupS IT,Non Distributed Costs (NDC),3521,IT licences - Applications,Comms and Computing,Supplies and Services,"7,326.00",02-May-17,R,PITNEY BOWES LIMITED
2,100330,Business Systems,SupS IT,Non Distributed Costs (NDC),3522,IT Support Costs,Comms and Computing,Supplies and Services,"1,100.00",01-May-17,R,SERVELEC SYNERGY LTD
2,100330,Business Systems,SupS IT,Non Distributed Costs (NDC),3522,IT Support Costs,Comms and Computing,Supplies and Services,"9,135.00",01-May-17,R,SERVELEC SYNERGY LTD
2,100350,Customer Contact,SupS IT,Non Distributed Costs (NDC),0075,Agency Staff - Off Contract,Direct EmployeeExpenses-Agency,Employees,"2,100.00",01-May-17,R,MILESTONES COMMUNICATIONS LTD
2,100350,Customer Contact,SupS IT,Non Distributed Costs (NDC),0075,Agency Staff - Off Contract,Direct EmployeeExpenses-Agency,Employees,"15,600.00",01-May-17,R,MILESTONES COMMUNICATIONS LTD
2,100350,Customer Contact,SupS IT,Non Distributed Costs (NDC),3522,IT Support Costs,Comms and Computing,Supplies and Services,"7,079.17",01-May-17,R,PITNEY BOWES LIMITED
2,100350,Customer Contact,SupS IT,Non Distributed Costs (NDC),3522,IT Support Costs,Comms and Computing,Supplies and Services,"15,752.00",01-May-17,R,PITNEY BOWES LIMITED
2,100351,SCIS,SupS IT,Non Distributed Costs (NDC),0070,Agency Staff - Corp Contract,Direct EmployeeExpenses-Agency,Employees,"1,575.00",01-May-17,R,HAMPTON'S RESOURCING
2,100351,SCIS,SupS IT,Non Distributed Costs (NDC),0070,Agency Staff - Corp Contract,Direct EmployeeExpenses-Agency,Employees,"2,625.00",01-May-17,R,HAMPTON'S RESOURCING
2,100351,SCIS,SupS IT,Non Distributed Costs (NDC),0070,Agency Staff - Corp Contract,Direct EmployeeExpenses-Agency,Employees,"5,250.00",01-May-17,R,NUMBER 10 INTERIM LTD
2,100351,SCIS,SupS IT,Non Distributed Costs (NDC),0070,Agency Staff - Corp Contract,Direct EmployeeExpenses-Agency,Employees,"13,750.00",01-May-17,R,NUMBER 10 INTERIM LTD
2,100351,SCIS,SupS IT,Non Distributed Costs (NDC),0075,Agency Staff - Off Contract,Direct EmployeeExpenses-Agency,Employees,"1,750.00",01-May-17,R,NUMBER 10 INTERIM LTD
2,100351,SCIS,SupS IT,Non Distributed Costs (NDC),0075,Agency Staff - Off Contract,Direct EmployeeExpenses-Agency,Employees,"1,750.00",04-May-17,R,NUMBER 10 INTERIM LTD
2,100351,SCIS,SupS IT,Non Distributed Costs (NDC),0075,Agency Staff - Off Contract,Direct EmployeeExpenses-Agency,Employees,"1,800.00",01-May-17,R,NUMBER 10 INTERIM LTD
2,100351,SCIS,SupS IT,Non Distributed Costs (NDC),0075,Agency Staff - Off Contract,Direct EmployeeExpenses-Agency,Employees,"1,800.00",10-May-17,R,NUMBER 10 INTERIM LTD
2,100351,SCIS,SupS IT,Non Distributed Costs (NDC),0075,Agency Staff - Off Contract,Direct EmployeeExpenses-Agency,Employees,"2,250.00",04-May-17,R,NUMBER 10 INTERIM LTD
2,100351,SCIS,SupS IT,Non Distributed Costs (NDC),0075,Agency Staff - Off Contract,Direct EmployeeExpenses-Agency,Employees,"2,250.00",17-May-17,R,NUMBER 10 INTERIM LTD
2,100351,SCIS,SupS IT,Non Distributed Costs (NDC),0075,Agency Staff - Off Contract,Direct EmployeeExpenses-Agency,Employees,"3,100.00",01-May-17,R,NUMBER 10 INTERIM LTD
2,100351,SCIS,SupS IT,Non Distributed Costs (NDC),0075,Agency Staff - Off Contract,Direct EmployeeExpenses-Agency,Employees,"10,000.00",01-May-17,R,NUMBER 10 INTERIM LTD
2,100351,SCIS,SupS IT,Non Distributed Costs (NDC),0075,Agency Staff - Off Contract,Direct EmployeeExpenses-Agency,Employees,"13,750.00",01-May-17,R,NUMBER 10 INTERIM LTD
2,100351,SCIS,SupS IT,Non Distributed Costs (NDC),3414,Consultants,Services,Supplies and Services,"3,936.00",01-May-17,R,INTERQUEST GROUP UK LIMITED
2,100351,SCIS,SupS IT,Non Distributed Costs (NDC),3414,Consultants,Services,Supplies and Services,"6,650.27",01-May-17,R,INTERQUEST GROUP UK LIMITED
2,100410,Blue Badge,On-street parking,Highways Roads Transport Serv.,3525,Network Charges,Comms and Computing,Supplies and Services,643.36,03-May-17,R,NORTHGATE PUBLIC SERVICES (UK)
2,100420,Cash Collections,GENERATED ACCOUNT,Non Distributed Costs (NDC),3435,Banking Costs,Services,Supplies and Services,"11,931.93",01-May-17,R,JADE SECURITY SERVICE LTD
2,100440,Reg of B. Deaths & Ms,Registn Birth/Death/Marriage,Central Services to the Public,1600,Corporate Cleaning Contract,Cleaning and Domestic Supplies,Premises Related Expenses,957.00,01-May-17,R,BIRKIN CLEANING SERVICES LTD
2,100440,Reg of B. Deaths & Ms,Registn Birth/Death/Marriage,Central Services to the Public,3521,IT licences - Applications,Comms and Computing,Supplies and Services,"2,056.70",01-May-17,R,ZIPPORAH LTD
2,100500,Local Taxation Bailiffs,Council tax collection,Central Services to the Public,3403,Bailiffs Fees,Services,Supplies and Services,507.57,01-May-17,R,HPI LIMITED
2,100500,Local Taxation Bailiffs,Council tax collection,Central Services to the Public,3403,Bailiffs Fees,Services,Supplies and Services,546.05,01-May-17,R,DATA INTERCHANGE PLC
2,100500,Local Taxation Bailiffs,Council tax collection,Central Services to the Public,3403,Bailiffs Fees,Services,Supplies and Services,649.70,01-May-17,R,HPI LIMITED
2,100500,Local Taxation Bailiffs,Council tax collection,Central Services to the Public,3403,Bailiffs Fees,Services,Supplies and Services,929.73,01-May-17,R,HPI LIMITED
2,100500,Local Taxation Bailiffs,Council tax collection,Central Services to the Public,3403,Bailiffs Fees,Services,Supplies and Services,"1,006.61",01-May-17,R,HPI LIMITED
2,100500,Local Taxation Bailiffs,Council tax collection,Central Services to the Public,3503,Mobile Phones - Hardware,Comms and Computing,Supplies and Services,"1,076.00",01-May-17,R,EVERYTHING EVERYWHERE
2,100501,Sutton Shared Bailiff Service,Council tax collection,Central Services to the Public,4020,Other Local Authority Payments,Other Local Authorities,Third Party Payments,"66,968.07",05-May-17,R,LONDON BOROUGH OF SUTTON
2,100540,Benefits Administration,HB Administration,General Fund Housing,3305,Office Expenses,Prntng Stnry Gen Off Exp,Supplies and Services,"1,103.83",05-May-17,R,REDACTED
2,100542,Local Taxation Services,Council tax collection,Central Services to the Public,0151,External Training Costs,Indirect Employee Expenses,Employees,750.00,01-May-17,R,Coaching Made Simple
2,100542,Local Taxation Services,Council tax collection,Central Services to the Public,0160,Recruitment Costs,Indirect Employee Expenses,Employees,"77,689.75",01-May-17,R,LOVE WIMBLEDON LTD BUS.IMP.DIS
2,100542,Local Taxation Services,Council tax collection,Central Services to the Public,0160,Recruitment Costs,Indirect Employee Expenses,Employees,"146,722.12",11-May-17,R,LOVE WIMBLEDON LTD BUS.IMP.DIS
2,100542,Local Taxation Services,Council tax collection,Central Services to the Public,3409,Counsel Fees,Services,Supplies and Services,"1,107.00",01-May-17,R,WELBECK LAW LLP
2,100542,Local Taxation Services,Council tax collection,Central Services to the Public,3409,Counsel Fees,Services,Supplies and Services,"3,850.00",01-May-17,R,WELBECK LAW LLP
2,100542,Local Taxation Services,Council tax collection,Central Services to the Public,3521,IT licences - Applications,Comms and Computing,Supplies and Services,"1,757.88",01-May-17,R,CIVICA UK LIMITED
2,100542,Local Taxation Services,Council tax collection,Central Services to the Public,3521,IT licences - Applications,Comms and Computing,Supplies and Services,"1,899.86",09-May-17,R,CIVICA UK LIMITED
2,100542,Local Taxation Services,Council tax collection,Central Services to the Public,3521,IT licences - Applications,Comms and Computing,Supplies and Services,"2,607.54",01-May-17,R,CIVICA UK LIMITED
2,100542,Local Taxation Services,Council tax collection,Central Services to the Public,3521,IT licences - Applications,Comms and Computing,Supplies and Services,"2,817.50",01-May-17,R,CIVICA UK LIMITED
2,100542,Local Taxation Services,Council tax collection,Central Services to the Public,3521,IT licences - Applications,Comms and Computing,Supplies and Services,"13,950.00",10-May-17,R,CIVICA UK LIMITED
2,100542,Local Taxation Services,Council tax collection,Central Services to the Public,3806,Grants,Grants and Subscriptions,Supplies and Services,"4,500.00",03-May-17,R,CITIZENS ADVICE MERTON & LAMBETH
2,100542,Local Taxation Services,Council tax collection,Central Services to the Public,3996,(DO NOT USE) Contract Payments,Conversion,Supplies and Services,"7,000.00",01-May-17,R,TILT Developments Ltd
2,100600,Marketing & Communication,SupS Chief Execs,Non Distributed Costs (NDC),3110,Contract Catering,Catering,Supplies and Services,504.00,03-May-17,R,GOSTO FINO PORTUGAL PATISSERIE
2,100600,Marketing & Communication,SupS Chief Execs,Non Distributed Costs (NDC),3432,Graphic Design,Services,Supplies and Services,"3,797.50",01-May-17,R,DOMINO 4 LIMITED
2,100600,Marketing & Communication,SupS Chief Execs,Non Distributed Costs (NDC),3432,Graphic Design,Services,Supplies and Services,"5,000.00",01-May-17,R,THE BIG IDEA (MARK BUCKINGHAM)
2,100600,Marketing & Communication,SupS Chief Execs,Non Distributed Costs (NDC),3804,Subscriptions,Grants and Subscriptions,Supplies and Services,"12,896.00",01-May-17,R,PANACEA SOFTWARE LTD
2,100601,Press and Public Relations,SupS Chief Execs,Non Distributed Costs (NDC),3431,Marketing/Advertising Non-Stat,Services,Supplies and Services,"1,622.00",01-May-17,R,NEWSPAPER LICENSING AGENCY LTD
2,100701,Corporately Funded Items,Officer support time,Corporate and Democratic Core,3409,Counsel Fees,Services,Supplies and Services,"1,950.00",01-May-17,R,REDACTED
2,100701,Corporately Funded Items,Officer support time,Corporate and Democratic Core,3409,Counsel Fees,Services,Supplies and Services,"2,790.00",01-May-17,R,REDACTED
2,100810,Democracy Services,Officer support time,Corporate and Democratic Core,3305,Office Expenses,Prntng Stnry Gen Off Exp,Supplies and Services,"2,100.00",17-May-17,R,INFORMATION COMMISSIONER
2,100810,Democracy Services,Officer support time,Corporate and Democratic Core,3712,Mayor Allowances,Expenses,Supplies and Services,697.50,01-May-17,R,TOYE KENNING & SPENCER LTD
2,100810,Democracy Services,Officer support time,Corporate and Democratic Core,3712,Mayor Allowances,Expenses,Supplies and Services,713.90,09-May-17,R,MAJESTIC WINE WAREHOUSE
2,100850,Election Expenses,Conducting elections,Central Services to the Public,3306,Postage,Prntng Stnry Gen Off Exp,Supplies and Services,"34,148.24",10-May-17,R,FINANCIAL DATA MANAGEMENT PLC
2,100851,Electoral Registration,Registration of electors,Central Services to the Public,3510,Computer Hardware - Purchased,Comms and Computing,Supplies and Services,"15,674.31",01-May-17,R,HALAROSE LIMITED
2,100951,Legal Shared Service,SupS Legal,Non Distributed Costs (NDC),0151,External Training Costs,Indirect Employee Expenses,Employees,650.00,01-May-17,R,CENTRAL LAW TRAINING LTD
2,100951,Legal Shared Service,SupS Legal,Non Distributed Costs (NDC),0151,External Training Costs,Indirect Employee Expenses,Employees,752.72,01-May-17,R,CGJ ROBERTS - HRC GROUP
2,100951,Legal Shared Service,SupS Legal,Non Distributed Costs (NDC),0151,External Training Costs,Indirect Employee Expenses,Employees,"1,128.75",04-May-17,R,LLG ENTERPRISES LIMITED
2,100951,Legal Shared Service,SupS Legal,Non Distributed Costs (NDC),3305,Office Expenses,Prntng Stnry Gen Off Exp,Supplies and Services,646.61,01-May-17,R,RESTORE PLC
2,100951,Legal Shared Service,SupS Legal,Non Distributed Costs (NDC),3305,Office Expenses,Prntng Stnry Gen Off Exp,Supplies and Services,854.32,01-May-17,R,RESTORE PLC
2,100951,Legal Shared Service,SupS Legal,Non Distributed Costs (NDC),3306,Postage,Prntng Stnry Gen Off Exp,Supplies and Services,500.00,01-May-17,R,NEOPOST FINANCE LIMITED [RM1 2AR]
2,100951,Legal Shared Service,SupS Legal,Non Distributed Costs (NDC),3502,Telephone - Call Charges,Comms and Computing,Supplies and Services,"6,714.00",01-May-17,R,VIRGIN MEDIA PAYMENTS LIMITED
2,100970,SLLP - Disbursements,SupS Legal,Non Distributed Costs (NDC),3401,Medical Fees,Services,Supplies and Services,531.89,01-May-17,R,LEXTOX
2,100970,SLLP - Disbursements,SupS Legal,Non Distributed Costs (NDC),3401,Medical Fees,Services,Supplies and Services,573.08,01-May-17,R,REDACTED
2,100970,SLLP - Disbursements,SupS Legal,Non Distributed Costs (NDC),3401,Medical Fees,Services,Supplies and Services,597.68,01-May-17,R,WEALDEN PSYCHOLOGY LTD
2,100970,SLLP - Disbursements,SupS Legal,Non Distributed Costs (NDC),3401,Medical Fees,Services,Supplies and Services,700.00,01-May-17,R,Cansford Laboratories Ltd
2,100970,SLLP - Disbursements,SupS Legal,Non Distributed Costs (NDC),3401,Medical Fees,Services,Supplies and Services,751.25,03-May-17,R,REDACTED
2,100970,SLLP - Disbursements,SupS Legal,Non Distributed Costs (NDC),3401,Medical Fees,Services,Supplies and Services,784.05,01-May-17,R,REDACTED
2,100970,SLLP - Disbursements,SupS Legal,Non Distributed Costs (NDC),3401,Medical Fees,Services,Supplies and Services,810.00,01-May-17,R,REDACTED
2,100970,SLLP - Disbursements,SupS Legal,Non Distributed Costs (NDC),3401,Medical Fees,Services,Supplies and Services,947.68,01-May-17,R,EXPERT IN MIND
2,100970,SLLP - Disbursements,SupS Legal,Non Distributed Costs (NDC),3401,Medical Fees,Services,Supplies and Services,987.45,01-May-17,R,EXPERT IN MIND
2,100970,SLLP - Disbursements,SupS Legal,Non Distributed Costs (NDC),3401,Medical Fees,Services,Supplies and Services,989.84,01-May-17,R,WEALDEN PSYCHOLOGY LTD
2,100970,SLLP - Disbursements,SupS Legal,Non Distributed Costs (NDC),3401,Medical Fees,Services,Supplies and Services,"1,188.00",01-May-17,R,REDACTED
2,100970,SLLP - Disbursements,SupS Legal,Non Distributed Costs (NDC),3401,Medical Fees,Services,Supplies and Services,"1,296.00",01-May-17,R,REDACTED
2,100970,SLLP - Disbursements,SupS Legal,Non Distributed Costs (NDC),3409,Counsel Fees,Services,Supplies and Services,500.00,01-May-17,R,REDACTED
2,100970,SLLP - Disbursements,SupS Legal,Non Distributed Costs (NDC),3409,Counsel Fees,Services,Supplies and Services,500.00,01-May-17,R,REDACTED
2,100970,SLLP - Disbursements,SupS Legal,Non Distributed Costs (NDC),3409,Counsel Fees,Services,Supplies and Services,500.00,01-May-17,R,REDACTED
2,100970,SLLP - Disbursements,SupS Legal,Non Distributed Costs (NDC),3409,Counsel Fees,Services,Supplies and Services,505.00,01-May-17,R,REDACTED
2,100970,SLLP - Disbursements,SupS Legal,Non Distributed Costs (NDC),3409,Counsel Fees,Services,Supplies and Services,510.00,01-May-17,R,REDACTED
2,100970,SLLP - Disbursements,SupS Legal,Non Distributed Costs (NDC),3409,Counsel Fees,Services,Supplies and Services,510.00,01-May-17,R,REDACTED
2,100970,SLLP - Disbursements,SupS Legal,Non Distributed Costs (NDC),3409,Counsel Fees,Services,Supplies and Services,510.00,01-May-17,R,REDACTED
2,100970,SLLP - Disbursements,SupS Legal,Non Distributed Costs (NDC),3409,Counsel Fees,Services,Supplies and Services,510.00,01-May-17,R,REDACTED
2,100970,SLLP - Disbursements,SupS Legal,Non Distributed Costs (NDC),3409,Counsel Fees,Services,Supplies and Services,510.00,01-May-17,R,REDACTED
2,100970,SLLP - Disbursements,SupS Legal,Non Distributed Costs (NDC),3409,Counsel Fees,Services,Supplies and Services,515.00,03-May-17,R,REDACTED
2,100970,SLLP - Disbursements,SupS Legal,Non Distributed Costs (NDC),3409,Counsel Fees,Services,Supplies and Services,520.00,01-May-17,R,REDACTED
2,100970,SLLP - Disbursements,SupS Legal,Non Distributed Costs (NDC),3409,Counsel Fees,Services,Supplies and Services,520.00,01-May-17,R,REDACTED
2,100970,SLLP - Disbursements,SupS Legal,Non Distributed Costs (NDC),3409,Counsel Fees,Services,Supplies and Services,520.00,01-May-17,R,REDACTED
2,100970,SLLP - Disbursements,SupS Legal,Non Distributed Costs (NDC),3409,Counsel Fees,Services,Supplies and Services,520.00,01-May-17,R,REDACTED
2,100970,SLLP - Disbursements,SupS Legal,Non Distributed Costs (NDC),3409,Counsel Fees,Services,Supplies and Services,520.00,01-May-17,R,REDACTED
2,100970,SLLP - Disbursements,SupS Legal,Non Distributed Costs (NDC),3409,Counsel Fees,Services,Supplies and Services,520.00,01-May-17,R,REDACTED
2,100970,SLLP - Disbursements,SupS Legal,Non Distributed Costs (NDC),3409,Counsel Fees,Services,Supplies and Services,550.00,01-May-17,R,REDACTED
2,100970,SLLP - Disbursements,SupS Legal,Non Distributed Costs (NDC),3409,Counsel Fees,Services,Supplies and Services,570.00,01-May-17,R,REDACTED
2,100970,SLLP - Disbursements,SupS Legal,Non Distributed Costs (NDC),3409,Counsel Fees,Services,Supplies and Services,600.00,01-May-17,R,REDACTED
2,100970,SLLP - Disbursements,SupS Legal,Non Distributed Costs (NDC),3409,Counsel Fees,Services,Supplies and Services,600.00,01-May-17,R,REDACTED
2,100970,SLLP - Disbursements,SupS Legal,Non Distributed Costs (NDC),3409,Counsel Fees,Services,Supplies and Services,602.50,01-May-17,R,REDACTED
2,100970,SLLP - Disbursements,SupS Legal,Non Distributed Costs (NDC),3409,Counsel Fees,Services,Supplies and Services,607.50,01-May-17,R,REDACTED
2,100970,SLLP - Disbursements,SupS Legal,Non Distributed Costs (NDC),3409,Counsel Fees,Services,Supplies and Services,610.00,01-May-17,R,REDACTED
2,100970,SLLP - Disbursements,SupS Legal,Non Distributed Costs (NDC),3409,Counsel Fees,Services,Supplies and Services,637.50,17-May-17,R,REDACTED
2,100970,SLLP - Disbursements,SupS Legal,Non Distributed Costs (NDC),3409,Counsel Fees,Services,Supplies and Services,645.00,01-May-17,R,REDACTED
2,100970,SLLP - Disbursements,SupS Legal,Non Distributed Costs (NDC),3409,Counsel Fees,Services,Supplies and Services,650.00,16-May-17,R,REDACTED
2,100970,SLLP - Disbursements,SupS Legal,Non Distributed Costs (NDC),3409,Counsel Fees,Services,Supplies and Services,675.00,01-May-17,R,REDACTED
2,100970,SLLP - Disbursements,SupS Legal,Non Distributed Costs (NDC),3409,Counsel Fees,Services,Supplies and Services,690.00,01-May-17,R,REDACTED
2,100970,SLLP - Disbursements,SupS Legal,Non Distributed Costs (NDC),3409,Counsel Fees,Services,Supplies and Services,700.00,16-May-17,R,REDACTED
2,100970,SLLP - Disbursements,SupS Legal,Non Distributed Costs (NDC),3409,Counsel Fees,Services,Supplies and Services,725.00,01-May-17,R,REDACTED
2,100970,SLLP - Disbursements,SupS Legal,Non Distributed Costs (NDC),3409,Counsel Fees,Services,Supplies and Services,760.00,01-May-17,R,REDACTED
2,100970,SLLP - Disbursements,SupS Legal,Non Distributed Costs (NDC),3409,Counsel Fees,Services,Supplies and Services,765.00,01-May-17,R,REDACTED
2,100970,SLLP - Disbursements,SupS Legal,Non Distributed Costs (NDC),3409,Counsel Fees,Services,Supplies and Services,825.00,01-May-17,R,REDACTED
2,100970,SLLP - Disbursements,SupS Legal,Non Distributed Costs (NDC),3409,Counsel Fees,Services,Supplies and Services,850.00,16-May-17,R,REDACTED
2,100970,SLLP - Disbursements,SupS Legal,Non Distributed Costs (NDC),3409,Counsel Fees,Services,Supplies and Services,940.00,01-May-17,R,REDACTED
2,100970,SLLP - Disbursements,SupS Legal,Non Distributed Costs (NDC),3409,Counsel Fees,Services,Supplies and Services,950.00,05-May-17,R,REDACTED
2,100970,SLLP - Disbursements,SupS Legal,Non Distributed Costs (NDC),3409,Counsel Fees,Services,Supplies and Services,"1,000.00",01-May-17,R,REDACTED
2,100970,SLLP - Disbursements,SupS Legal,Non Distributed Costs (NDC),3409,Counsel Fees,Services,Supplies and Services,"1,050.00",01-May-17,R,REDACTED
2,100970,SLLP - Disbursements,SupS Legal,Non Distributed Costs (NDC),3409,Counsel Fees,Services,Supplies and Services,"1,120.00",01-May-17,R,REDACTED
2,100970,SLLP - Disbursements,SupS Legal,Non Distributed Costs (NDC),3409,Counsel Fees,Services,Supplies and Services,"1,250.00",01-May-17,R,REDACTED
2,100970,SLLP - Disbursements,SupS Legal,Non Distributed Costs (NDC),3409,Counsel Fees,Services,Supplies and Services,"1,725.00",01-May-17,R,REDACTED
2,100970,SLLP - Disbursements,SupS Legal,Non Distributed Costs (NDC),3409,Counsel Fees,Services,Supplies and Services,"1,775.00",01-May-17,R,REDACTED
2,100970,SLLP - Disbursements,SupS Legal,Non Distributed Costs (NDC),3409,Counsel Fees,Services,Supplies and Services,"1,920.00",08-May-17,R,REDACTED
2,100970,SLLP - Disbursements,SupS Legal,Non Distributed Costs (NDC),3409,Counsel Fees,Services,Supplies and Services,"2,000.00",04-May-17,R,REDACTED
2,100970,SLLP - Disbursements,SupS Legal,Non Distributed Costs (NDC),3409,Counsel Fees,Services,Supplies and Services,"2,350.00",01-May-17,R,REDACTED
2,100970,SLLP - Disbursements,SupS Legal,Non Distributed Costs (NDC),3409,Counsel Fees,Services,Supplies and Services,"2,400.00",01-May-17,R,REDACTED
2,100970,SLLP - Disbursements,SupS Legal,Non Distributed Costs (NDC),3409,Counsel Fees,Services,Supplies and Services,"2,831.16",01-May-17,R,REDACTED
2,100970,SLLP - Disbursements,SupS Legal,Non Distributed Costs (NDC),3409,Counsel Fees,Services,Supplies and Services,"3,120.00",01-May-17,R,REDACTED
2,100970,SLLP - Disbursements,SupS Legal,Non Distributed Costs (NDC),3409,Counsel Fees,Services,Supplies and Services,"3,630.00",01-May-17,R,REDACTED
2,100970,SLLP - Disbursements,SupS Legal,Non Distributed Costs (NDC),3409,Counsel Fees,Services,Supplies and Services,"3,950.00",01-May-17,R,REDACTED
2,100970,SLLP - Disbursements,SupS Legal,Non Distributed Costs (NDC),3409,Counsel Fees,Services,Supplies and Services,"4,020.00",01-May-17,R,REDACTED
2,100970,SLLP - Disbursements,SupS Legal,Non Distributed Costs (NDC),3409,Counsel Fees,Services,Supplies and Services,"4,400.00",01-May-17,R,REDACTED
2,100970,SLLP - Disbursements,SupS Legal,Non Distributed Costs (NDC),3409,Counsel Fees,Services,Supplies and Services,"4,650.00",01-May-17,R,REDACTED
2,100970,SLLP - Disbursements,SupS Legal,Non Distributed Costs (NDC),3409,Counsel Fees,Services,Supplies and Services,"7,687.50",01-May-17,R,REDACTED
2,100970,SLLP - Disbursements,SupS Legal,Non Distributed Costs (NDC),3455,Solicitors Fees - External,Services,Supplies and Services,906.17,01-May-17,R,REDACTED
2,100970,SLLP - Disbursements,SupS Legal,Non Distributed Costs (NDC),3455,Solicitors Fees - External,Services,Supplies and Services,914.45,01-May-17,R,Government Legal Department
2,100970,SLLP - Disbursements,SupS Legal,Non Distributed Costs (NDC),3455,Solicitors Fees - External,Services,Supplies and Services,963.95,01-May-17,R,Government Legal Department
2,100970,SLLP - Disbursements,SupS Legal,Non Distributed Costs (NDC),3455,Solicitors Fees - External,Services,Supplies and Services,"2,713.90",01-May-17,R,Ward Hadaway Solicitors
2,100970,SLLP - Disbursements,SupS Legal,Non Distributed Costs (NDC),3455,Solicitors Fees - External,Services,Supplies and Services,"2,894.40",01-May-17,R,REDACTED
2,100970,SLLP - Disbursements,SupS Legal,Non Distributed Costs (NDC),3455,Solicitors Fees - External,Services,Supplies and Services,"3,855.05",01-May-17,R,Government Legal Department
2,100970,SLLP - Disbursements,SupS Legal,Non Distributed Costs (NDC),3455,Solicitors Fees - External,Services,Supplies and Services,"5,093.00",01-May-17,R,Government Legal Department
2,100970,SLLP - Disbursements,SupS Legal,Non Distributed Costs (NDC),3455,Solicitors Fees - External,Services,Supplies and Services,"12,917.00",01-May-17,R,Ward Hadaway Solicitors
2,100970,SLLP - Disbursements,SupS Legal,Non Distributed Costs (NDC),3455,Solicitors Fees - External,Services,Supplies and Services,"21,623.00",01-May-17,R,Ward Hadaway Solicitors
2,100970,SLLP - Disbursements,SupS Legal,Non Distributed Costs (NDC),3456,Solicitors Fees - Third Party,Services,Supplies and Services,"5,413.33",01-May-17,R,Simpson Millar LLP
2,100970,SLLP - Disbursements,SupS Legal,Non Distributed Costs (NDC),3457,Process Server Fees,Services,Supplies and Services,510.00,08-May-17,R,I J BEIM & ASSOCIATES
2,100970,SLLP - Disbursements,SupS Legal,Non Distributed Costs (NDC),4217,Independent Social Care Expert,Private Contractors,Third Party Payments,618.00,01-May-17,R,REDACTED
2,100970,SLLP - Disbursements,SupS Legal,Non Distributed Costs (NDC),4217,Independent Social Care Expert,Private Contractors,Third Party Payments,"1,019.79",01-May-17,R,NATIO RESOURCING LTD
2,100970,SLLP - Disbursements,SupS Legal,Non Distributed Costs (NDC),4217,Independent Social Care Expert,Private Contractors,Third Party Payments,"1,200.00",01-May-17,R,NATIO RESOURCING LTD
2,100970,SLLP - Disbursements,SupS Legal,Non Distributed Costs (NDC),4217,Independent Social Care Expert,Private Contractors,Third Party Payments,"1,511.20",31-May-17,R,NATIO RESOURCING LTD
2,101070,Learning and Development,SupS Health & Safety,Non Distributed Costs (NDC),0150,Internal Training Costs,Indirect Employee Expenses,Employees,"3,750.00",01-May-17,R,DATRIX LEARNING SERVICES LTD
2,101070,Learning and Development,SupS Health & Safety,Non Distributed Costs (NDC),0151,External Training Costs,Indirect Employee Expenses,Employees,675.00,01-May-17,R,PEARLCATCHERS LIMITED
2,101070,Learning and Development,SupS Health & Safety,Non Distributed Costs (NDC),0151,External Training Costs,Indirect Employee Expenses,Employees,675.00,01-May-17,R,PEARLCATCHERS LIMITED
2,101070,Learning and Development,SupS Health & Safety,Non Distributed Costs (NDC),0151,External Training Costs,Indirect Employee Expenses,Employees,675.00,01-May-17,R,PEARLCATCHERS LIMITED
2,101070,Learning and Development,SupS Health & Safety,Non Distributed Costs (NDC),0151,External Training Costs,Indirect Employee Expenses,Employees,735.00,01-May-17,R,HAPPY COMPUTERS LTD
2,101070,Learning and Development,SupS Health & Safety,Non Distributed Costs (NDC),0151,External Training Costs,Indirect Employee Expenses,Employees,750.00,31-May-17,R,FERRET INFORMATION SYSTEMS LTD
2,101070,Learning and Development,SupS Health & Safety,Non Distributed Costs (NDC),0151,External Training Costs,Indirect Employee Expenses,Employees,"1,106.50",17-May-17,R,QA Ltd
2,101070,Learning and Development,SupS Health & Safety,Non Distributed Costs (NDC),0151,External Training Costs,Indirect Employee Expenses,Employees,"1,200.00",01-May-17,R,SALVEO SAFETY
2,101070,Learning and Development,SupS Health & Safety,Non Distributed Costs (NDC),0151,External Training Costs,Indirect Employee Expenses,Employees,"2,500.00",10-May-17,R,UNIVERSITY COLLEGE LONDON
2,101070,Learning and Development,SupS Health & Safety,Non Distributed Costs (NDC),0151,External Training Costs,Indirect Employee Expenses,Employees,"3,030.33",01-May-17,R,NOVUM (TRADING METIER-MCD LTD)
2,101070,Learning and Development,SupS Health & Safety,Non Distributed Costs (NDC),0151,External Training Costs,Indirect Employee Expenses,Employees,"3,750.00",01-May-17,R,HAPPY COMPUTERS LTD
2,101070,Learning and Development,SupS Health & Safety,Non Distributed Costs (NDC),0151,External Training Costs,Indirect Employee Expenses,Employees,"5,000.00",01-May-17,R,HAPPY COMPUTERS LTD
2,101070,Learning and Development,SupS Health & Safety,Non Distributed Costs (NDC),0160,Recruitment Costs,Indirect Employee Expenses,Employees,999.00,01-May-17,R,HAYMARKET MEDIA GROUP LIMITED
2,101150,Payroll,SupS Payroll,Non Distributed Costs (NDC),3706,Prizes and Awards,Expenses,Supplies and Services,"2,650.00",10-May-17,R,THE GIFT VOUCHER SHOP LTD
2,101211,Civic Centre,SupS Facilities,Non Distributed Costs (NDC),1001,Building Improvements,RepairsAlterations&MtceOfBldgs,Premises Related Expenses,"2,513.47",05-May-17,R,SALTASH ENTERPRISES LTD
2,101212,Corporate Services Buildings,SupS Facilities,Non Distributed Costs (NDC),1101,Gas,Energy Costs,Premises Related Expenses,"7,792.90",08-May-17,R,GAZPROM MARKETING&TRADING LTD
2,101212,Corporate Services Buildings,SupS Facilities,Non Distributed Costs (NDC),1402,Use of Water,Water Services,Premises Related Expenses,"1,198.81",05-May-17,R,SES BUSINESS WATER
2,101212,Corporate Services Buildings,SupS Facilities,Non Distributed Costs (NDC),3308,Removals,Prntng Stnry Gen Off Exp,Supplies and Services,913.50,01-May-17,R,EDE'S (U.K.) LTD
2,101250,C & H Buildings,OP 65 & Over Day Care,Physical/ Sensory Support,1037,FM - Responsive External Build,RepairsAlterations&MtceOfBldgs,Premises Related Expenses,"1,870.00",02-May-17,R,LA BELLE ROOFING CO LTD
2,101250,C & H Buildings,OP 65 & Over Day Care,Physical/ Sensory Support,1039,FM - Responsive Services,RepairsAlterations&MtceOfBldgs,Premises Related Expenses,586.12,08-May-17,R,Stealth Fire and Security Limited
2,101280,CSF Buildings,Strategic Management,Children's Social Care,1036,FM - Responsive Internal Build,RepairsAlterations&MtceOfBldgs,Premises Related Expenses,545.22,08-May-17,R,PJ HARVEY & CO LTD
2,101280,CSF Buildings,Strategic Management,Children's Social Care,1037,FM - Responsive External Build,RepairsAlterations&MtceOfBldgs,Premises Related Expenses,629.37,03-May-17,R,STORMSAVER LTD
2,101280,CSF Buildings,Strategic Management,Children's Social Care,1037,FM - Responsive External Build,RepairsAlterations&MtceOfBldgs,Premises Related Expenses,"1,324.06",01-May-17,R,LITTLEWOOD FENCING
2,101310,E & R Buildings,Parks & Open Spaces,Cultural and Related Services,1036,FM - Responsive Internal Build,RepairsAlterations&MtceOfBldgs,Premises Related Expenses,"2,681.37",08-May-17,R,PJ HARVEY & CO LTD
2,101350,Facilities,SupS Facilities,Non Distributed Costs (NDC),1041,Energy Conservation Works,RepairsAlterations&MtceOfBldgs,Premises Related Expenses,525.00,01-May-17,R,FRONIUS UK LIMITED
2,101350,Facilities,SupS Facilities,Non Distributed Costs (NDC),1041,Energy Conservation Works,RepairsAlterations&MtceOfBldgs,Premises Related Expenses,585.18,01-May-17,R,ENERGY ASSETS LIMITED
2,101350,Facilities,SupS Facilities,Non Distributed Costs (NDC),1041,Energy Conservation Works,RepairsAlterations&MtceOfBldgs,Premises Related Expenses,645.00,01-May-17,R,STARK SOFTWARE INTERNATIONAL
2,101350,Facilities,SupS Facilities,Non Distributed Costs (NDC),1041,Energy Conservation Works,RepairsAlterations&MtceOfBldgs,Premises Related Expenses,"7,000.00",09-May-17,R,KINECT ENERGY UK LTD
2,101350,Facilities,SupS Facilities,Non Distributed Costs (NDC),1102,Electricity,Energy Costs,Premises Related Expenses,"2,737.14",22-May-17,R,SCOTTISH POWER
2,101350,Facilities,SupS Facilities,Non Distributed Costs (NDC),1102,Electricity,Energy Costs,Premises Related Expenses,"29,231.56",22-May-17,R,SCOTTISH POWER
2,101352,Corporate Contracts - FM,SupS Facilities,Non Distributed Costs (NDC),1600,Corporate Cleaning Contract,Cleaning and Domestic Supplies,Premises Related Expenses,913.32,01-May-17,R,BIRKIN CLEANING SERVICES LTD
2,101352,Corporate Contracts - FM,SupS Facilities,Non Distributed Costs (NDC),1600,Corporate Cleaning Contract,Cleaning and Domestic Supplies,Premises Related Expenses,"1,628.42",01-May-17,R,BIRKIN CLEANING SERVICES LTD
2,101352,Corporate Contracts - FM,SupS Facilities,Non Distributed Costs (NDC),1603,Hygiene and Sanitary,Cleaning and Domestic Supplies,Premises Related Expenses,609.27,01-May-17,R,OCS GROUP UK LTD T/A CANNON
2,101352,Corporate Contracts - FM,SupS Facilities,Non Distributed Costs (NDC),3005,Cleaning Materials,Equip Furniture/Materials,Supplies and Services,504.00,23-May-17,R,GREENHAM TRADING LTD
2,101352,Corporate Contracts - FM,SupS Facilities,Non Distributed Costs (NDC),3005,Cleaning Materials,Equip Furniture/Materials,Supplies and Services,735.68,01-May-17,R,NERCON LTD
2,101352,Corporate Contracts - FM,SupS Facilities,Non Distributed Costs (NDC),3005,Cleaning Materials,Equip Furniture/Materials,Supplies and Services,"2,098.95",01-May-17,R,PHS GROUP
2,101370,Buildings Maintenance,SupS IT,Non Distributed Costs (NDC),1001,Building Improvements,RepairsAlterations&MtceOfBldgs,Premises Related Expenses,"3,411.47",01-May-17,R,DART VALLEY SYSTEMS LTD
2,101370,Buildings Maintenance,SupS IT,Non Distributed Costs (NDC),1036,FM - Responsive Internal Build,RepairsAlterations&MtceOfBldgs,Premises Related Expenses,"2,244.48",17-May-17,R,APLEONA HSG LIMITED
2,101370,Buildings Maintenance,SupS IT,Non Distributed Costs (NDC),1500,Fixtures and Fittings,Fixtures and Fittings,Premises Related Expenses,"2,451.13",22-May-17,R,DMA SIGNS LTD
2,101390,Security Services,SupS Facilities,Non Distributed Costs (NDC),1009,Security,RepairsAlterations&MtceOfBldgs,Premises Related Expenses,"1,891.26",01-May-17,R,SIGHT & SOUND
2,101390,Security Services,SupS Facilities,Non Distributed Costs (NDC),1009,Security,RepairsAlterations&MtceOfBldgs,Premises Related Expenses,"6,978.86",01-May-17,R,SIGHT & SOUND
2,101390,Security Services,SupS Facilities,Non Distributed Costs (NDC),1009,Security,RepairsAlterations&MtceOfBldgs,Premises Related Expenses,"7,981.89",01-May-17,R,SIGHT & SOUND
2,101410,PDC,Strategic Management,Children's Social Care,1101,Gas,Energy Costs,Premises Related Expenses,535.69,01-May-17,R,GAZPROM MARKETING&TRADING LTD
2,101500,Emergency Planning,Emergency Planning (Cent Serv),Central Services to the Public,3804,Subscriptions,Grants and Subscriptions,Supplies and Services,"1,990.00",16-May-17,R,BRITISH SAFETY COUNCIL
2,101590,IT Service Delivery,SupS IT,Non Distributed Costs (NDC),3510,Computer Hardware - Purchased,Comms and Computing,Supplies and Services,684.00,01-May-17,R,AMTEC COMPUTER CORPORATION LTD
2,101590,IT Service Delivery,SupS IT,Non Distributed Costs (NDC),3522,IT Support Costs,Comms and Computing,Supplies and Services,"2,950.08",01-May-17,R,CIVICA UK LIMITED
2,101591,CHAS IT projects,SupS IT,Non Distributed Costs (NDC),0070,Agency Staff - Corp Contract,Direct EmployeeExpenses-Agency,Employees,"3,710.00",10-May-17,R,MARCUS DONALD PEOPLE LTD
2,101591,CHAS IT projects,SupS IT,Non Distributed Costs (NDC),0070,Agency Staff - Corp Contract,Direct EmployeeExpenses-Agency,Employees,"11,860.00",01-May-17,R,MARCUS DONALD PEOPLE LTD
2,101591,CHAS IT projects,SupS IT,Non Distributed Costs (NDC),3521,IT licences - Applications,Comms and Computing,Supplies and Services,"64,971.00",01-May-17,R,LONDON BOROUGH OF MERTON [CHAS]
2,101591,CHAS IT projects,SupS IT,Non Distributed Costs (NDC),3521,IT licences - Applications,Comms and Computing,Supplies and Services,"71,706.00",01-May-17,R,LONDON BOROUGH OF MERTON [CHAS]
2,101610,IT-Telecomms,SupS IT,Non Distributed Costs (NDC),3500,Telephone - Hardware,Comms and Computing,Supplies and Services,"44,470.85",01-May-17,R,GETRONICS UNIFIED COM (UK) LTD
2,101610,IT-Telecomms,SupS IT,Non Distributed Costs (NDC),3502,Telephone - Call Charges,Comms and Computing,Supplies and Services,759.65,01-May-17,R,VIRGIN MEDIA PAYMENTS LIMITED
2,101610,IT-Telecomms,SupS IT,Non Distributed Costs (NDC),3502,Telephone - Call Charges,Comms and Computing,Supplies and Services,"1,820.57",01-May-17,R,BT Global Services
2,101610,IT-Telecomms,SupS IT,Non Distributed Costs (NDC),3502,Telephone - Call Charges,Comms and Computing,Supplies and Services,"2,172.00",09-May-17,R,GAMMA BUSINESS COMMUNICATIONS
2,101610,IT-Telecomms,SupS IT,Non Distributed Costs (NDC),3502,Telephone - Call Charges,Comms and Computing,Supplies and Services,"2,450.01",01-May-17,R,GAMMA BUSINESS COMMUNICATIONS
2,101610,IT-Telecomms,SupS IT,Non Distributed Costs (NDC),3502,Telephone - Call Charges,Comms and Computing,Supplies and Services,"7,178.82",01-May-17,R,BRITISH TELECOMMUNICATIONS PLC
2,101610,IT-Telecomms,SupS IT,Non Distributed Costs (NDC),3502,Telephone - Call Charges,Comms and Computing,Supplies and Services,"12,933.49",01-May-17,R,ORANGE P'MENT PRO'SING AIRTIME
2,101610,IT-Telecomms,SupS IT,Non Distributed Costs (NDC),3521,IT licences - Applications,Comms and Computing,Supplies and Services,680.35,01-May-17,R,NET-CTRL
2,101610,IT-Telecomms,SupS IT,Non Distributed Costs (NDC),3521,IT licences - Applications,Comms and Computing,Supplies and Services,848.45,01-May-17,R,NET-CTRL
2,101610,IT-Telecomms,SupS IT,Non Distributed Costs (NDC),3521,IT licences - Applications,Comms and Computing,Supplies and Services,848.45,01-May-17,R,NET-CTRL
2,101610,IT-Telecomms,SupS IT,Non Distributed Costs (NDC),3521,IT licences - Applications,Comms and Computing,Supplies and Services,"1,017.00",12-May-17,R,TROJAN CONSULTANTS LIMITED
2,101630,Post services,SupS Facilities,Non Distributed Costs (NDC),3306,Postage,Prntng Stnry Gen Off Exp,Supplies and Services,596.44,08-May-17,R,STREETWISE COURIERS
2,101630,Post services,SupS Facilities,Non Distributed Costs (NDC),3306,Postage,Prntng Stnry Gen Off Exp,Supplies and Services,764.21,01-May-17,R,STREETWISE COURIERS
2,101630,Post services,SupS Facilities,Non Distributed Costs (NDC),3306,Postage,Prntng Stnry Gen Off Exp,Supplies and Services,839.00,05-May-17,R,CHESSINGTON CARS AND COURIERS
2,101650,Printing,T/A Corporate Services,Other Operating Inc & Expend,3012,Viewable Media,Equip Furniture/Materials,Supplies and Services,"1,176.25",01-May-17,R,MISL LTD
2,101650,Printing,T/A Corporate Services,Other Operating Inc & Expend,3012,Viewable Media,Equip Furniture/Materials,Supplies and Services,"9,265.49",01-May-17,R,MISL LTD
2,101650,Printing,T/A Corporate Services,Other Operating Inc & Expend,3300,Printing,Prntng Stnry Gen Off Exp,Supplies and Services,546.00,18-May-17,R,LEXON LTD
2,101650,Printing,T/A Corporate Services,Other Operating Inc & Expend,3300,Printing,Prntng Stnry Gen Off Exp,Supplies and Services,707.16,01-May-17,R,FINANCIAL DATA MANAGEMENT PLC
2,101650,Printing,T/A Corporate Services,Other Operating Inc & Expend,3300,Printing,Prntng Stnry Gen Off Exp,Supplies and Services,"1,172.00",01-May-17,R,BROWN KNIGHT & TRUSCOTT LTD
2,101650,Printing,T/A Corporate Services,Other Operating Inc & Expend,3300,Printing,Prntng Stnry Gen Off Exp,Supplies and Services,"3,000.00",01-May-17,R,CUSTOMISED GRAPHICS PRINT LTD
2,101650,Printing,T/A Corporate Services,Other Operating Inc & Expend,3300,Printing,Prntng Stnry Gen Off Exp,Supplies and Services,"4,350.00",01-May-17,R,CUSTOMISED GRAPHICS PRINT LTD
2,101700,Procurement,SupS Comm and Member Services,Non Distributed Costs (NDC),0070,Agency Staff - Corp Contract,Direct EmployeeExpenses-Agency,Employees,"2,109.00",01-May-17,R,HAYS SPECIALIST RECRUITM'T LTD
2,101700,Procurement,SupS Comm and Member Services,Non Distributed Costs (NDC),0070,Agency Staff - Corp Contract,Direct EmployeeExpenses-Agency,Employees,"2,109.00",01-May-17,R,HAYS SPECIALIST RECRUITM'T LTD
2,101700,Procurement,SupS Comm and Member Services,Non Distributed Costs (NDC),0070,Agency Staff - Corp Contract,Direct EmployeeExpenses-Agency,Employees,"2,636.25",01-May-17,R,HAYS SPECIALIST RECRUITM'T LTD
2,101700,Procurement,SupS Comm and Member Services,Non Distributed Costs (NDC),0075,Agency Staff - Off Contract,Direct EmployeeExpenses-Agency,Employees,904.00,01-May-17,R,HAYS SPECIALIST RECRUITM'T LTD
2,101700,Procurement,SupS Comm and Member Services,Non Distributed Costs (NDC),0075,Agency Staff - Off Contract,Direct EmployeeExpenses-Agency,Employees,"1,361.94",02-May-17,R,HAYS SPECIALIST RECRUITM'T LTD
2,101700,Procurement,SupS Comm and Member Services,Non Distributed Costs (NDC),0075,Agency Staff - Off Contract,Direct EmployeeExpenses-Agency,Employees,"1,361.94",02-May-17,R,HAYS SPECIALIST RECRUITM'T LTD
2,101700,Procurement,SupS Comm and Member Services,Non Distributed Costs (NDC),0075,Agency Staff - Off Contract,Direct EmployeeExpenses-Agency,Employees,"1,361.94",02-May-17,R,HAYS SPECIALIST RECRUITM'T LTD
2,101700,Procurement,SupS Comm and Member Services,Non Distributed Costs (NDC),0075,Agency Staff - Off Contract,Direct EmployeeExpenses-Agency,Employees,"1,815.92",03-May-17,R,HAYS SPECIALIST RECRUITM'T LTD
2,101700,Procurement,SupS Comm and Member Services,Non Distributed Costs (NDC),0075,Agency Staff - Off Contract,Direct EmployeeExpenses-Agency,Employees,"1,815.92",25-May-17,R,HAYS SPECIALIST RECRUITM'T LTD
2,101700,Procurement,SupS Comm and Member Services,Non Distributed Costs (NDC),0075,Agency Staff - Off Contract,Direct EmployeeExpenses-Agency,Employees,"1,980.00",22-May-17,R,HAYS SPECIALIST RECRUITM'T LTD
2,101700,Procurement,SupS Comm and Member Services,Non Distributed Costs (NDC),0075,Agency Staff - Off Contract,Direct EmployeeExpenses-Agency,Employees,"1,980.00",22-May-17,R,HAYS SPECIALIST RECRUITM'T LTD
2,101700,Procurement,SupS Comm and Member Services,Non Distributed Costs (NDC),0075,Agency Staff - Off Contract,Direct EmployeeExpenses-Agency,Employees,"2,269.90",15-May-17,R,HAYS SPECIALIST RECRUITM'T LTD
2,101700,Procurement,SupS Comm and Member Services,Non Distributed Costs (NDC),0075,Agency Staff - Off Contract,Direct EmployeeExpenses-Agency,Employees,"2,475.00",23-May-17,R,HAYS SPECIALIST RECRUITM'T LTD
2,101700,Procurement,SupS Comm and Member Services,Non Distributed Costs (NDC),0075,Agency Staff - Off Contract,Direct EmployeeExpenses-Agency,Employees,"2,475.00",22-May-17,R,HAYS SPECIALIST RECRUITM'T LTD
2,101750,Client Finance Affairs,SupS IT,Non Distributed Costs (NDC),3521,IT licences - Applications,Comms and Computing,Supplies and Services,"3,121.00",01-May-17,R,TROJAN CONSULTANTS LIMITED
2,200071,Housing  Env Health,Housing Advice.,General Fund Housing,3704,Compensation Payments,Expenses,Supplies and Services,"1,000.00",01-May-17,R,REDACTED
2,200090,Bed & Breakfast - accomm,Bed / breakfast accommodation,General Fund Housing,3996,(DO NOT USE) Contract Payments,Conversion,Supplies and Services,540.00,01-May-17,R,EURO HOTEL - LONDON WEMBLEY
2,200090,Bed & Breakfast - accomm,Bed / breakfast accommodation,General Fund Housing,3996,(DO NOT USE) Contract Payments,Conversion,Supplies and Services,594.00,01-May-17,R,VENTURE HOUSING(LONDON)LTD
2,200090,Bed & Breakfast - accomm,Bed / breakfast accommodation,General Fund Housing,3996,(DO NOT USE) Contract Payments,Conversion,Supplies and Services,693.00,01-May-17,R,EURO HOTEL (LEYTON) LTD
2,200090,Bed & Breakfast - accomm,Bed / breakfast accommodation,General Fund Housing,3996,(DO NOT USE) Contract Payments,Conversion,Supplies and Services,900.00,01-May-17,R,EURO HOTEL - LONDON WEMBLEY
2,200090,Bed & Breakfast - accomm,Bed / breakfast accommodation,General Fund Housing,3996,(DO NOT USE) Contract Payments,Conversion,Supplies and Services,930.00,01-May-17,R,REDACTED
2,200090,Bed & Breakfast - accomm,Bed / breakfast accommodation,General Fund Housing,3996,(DO NOT USE) Contract Payments,Conversion,Supplies and Services,961.00,01-May-17,R,REDACTED
2,200090,Bed & Breakfast - accomm,Bed / breakfast accommodation,General Fund Housing,3996,(DO NOT USE) Contract Payments,Conversion,Supplies and Services,961.00,01-May-17,R,REDACTED
2,200090,Bed & Breakfast - accomm,Bed / breakfast accommodation,General Fund Housing,3996,(DO NOT USE) Contract Payments,Conversion,Supplies and Services,"1,023.00",01-May-17,R,EURO HOTEL - LONDON WEMBLEY
2,200090,Bed & Breakfast - accomm,Bed / breakfast accommodation,General Fund Housing,3996,(DO NOT USE) Contract Payments,Conversion,Supplies and Services,"1,080.00",01-May-17,R,EURO HOTELS (HOUNSLOW)
2,200090,Bed & Breakfast - accomm,Bed / breakfast accommodation,General Fund Housing,3996,(DO NOT USE) Contract Payments,Conversion,Supplies and Services,"1,100.00",01-May-17,R,REDACTED
2,200090,Bed & Breakfast - accomm,Bed / breakfast accommodation,General Fund Housing,3996,(DO NOT USE) Contract Payments,Conversion,Supplies and Services,"1,100.00",01-May-17,R,REDACTED
2,200090,Bed & Breakfast - accomm,Bed / breakfast accommodation,General Fund Housing,3996,(DO NOT USE) Contract Payments,Conversion,Supplies and Services,"1,110.00",01-May-17,R,NORBURY PROPERTY SERV LDN LTD
2,200090,Bed & Breakfast - accomm,Bed / breakfast accommodation,General Fund Housing,3996,(DO NOT USE) Contract Payments,Conversion,Supplies and Services,"1,150.00",01-May-17,R,EURO HOTELS (HOUNSLOW)
2,200090,Bed & Breakfast - accomm,Bed / breakfast accommodation,General Fund Housing,3996,(DO NOT USE) Contract Payments,Conversion,Supplies and Services,"1,197.00",01-May-17,R,REDACTED
2,200090,Bed & Breakfast - accomm,Bed / breakfast accommodation,General Fund Housing,3996,(DO NOT USE) Contract Payments,Conversion,Supplies and Services,"1,197.00",01-May-17,R,REDACTED
2,200090,Bed & Breakfast - accomm,Bed / breakfast accommodation,General Fund Housing,3996,(DO NOT USE) Contract Payments,Conversion,Supplies and Services,"1,197.00",01-May-17,R,REDACTED
2,200090,Bed & Breakfast - accomm,Bed / breakfast accommodation,General Fund Housing,3996,(DO NOT USE) Contract Payments,Conversion,Supplies and Services,"1,197.00",01-May-17,R,REDACTED
2,200090,Bed & Breakfast - accomm,Bed / breakfast accommodation,General Fund Housing,3996,(DO NOT USE) Contract Payments,Conversion,Supplies and Services,"1,197.00",01-May-17,R,REDACTED
2,200090,Bed & Breakfast - accomm,Bed / breakfast accommodation,General Fund Housing,3996,(DO NOT USE) Contract Payments,Conversion,Supplies and Services,"1,197.00",01-May-17,R,REDACTED
2,200090,Bed & Breakfast - accomm,Bed / breakfast accommodation,General Fund Housing,3996,(DO NOT USE) Contract Payments,Conversion,Supplies and Services,"1,200.00",01-May-17,R,NORBURY PROPERTY SERV LDN LTD
2,200090,Bed & Breakfast - accomm,Bed / breakfast accommodation,General Fund Housing,3996,(DO NOT USE) Contract Payments,Conversion,Supplies and Services,"1,236.90",01-May-17,R,REDACTED
2,200090,Bed & Breakfast - accomm,Bed / breakfast accommodation,General Fund Housing,3996,(DO NOT USE) Contract Payments,Conversion,Supplies and Services,"1,236.90",01-May-17,R,REDACTED
2,200090,Bed & Breakfast - accomm,Bed / breakfast accommodation,General Fund Housing,3996,(DO NOT USE) Contract Payments,Conversion,Supplies and Services,"1,236.90",01-May-17,R,REDACTED
2,200090,Bed & Breakfast - accomm,Bed / breakfast accommodation,General Fund Housing,3996,(DO NOT USE) Contract Payments,Conversion,Supplies and Services,"1,236.90",01-May-17,R,REDACTED
2,200090,Bed & Breakfast - accomm,Bed / breakfast accommodation,General Fund Housing,3996,(DO NOT USE) Contract Payments,Conversion,Supplies and Services,"1,236.90",01-May-17,R,REDACTED
2,200090,Bed & Breakfast - accomm,Bed / breakfast accommodation,General Fund Housing,3996,(DO NOT USE) Contract Payments,Conversion,Supplies and Services,"1,236.90",01-May-17,R,REDACTED
2,200090,Bed & Breakfast - accomm,Bed / breakfast accommodation,General Fund Housing,3996,(DO NOT USE) Contract Payments,Conversion,Supplies and Services,"1,280.00",01-May-17,R,HYTYME B&B
2,200090,Bed & Breakfast - accomm,Bed / breakfast accommodation,General Fund Housing,3996,(DO NOT USE) Contract Payments,Conversion,Supplies and Services,"1,350.00",01-May-17,R,REDACTED
2,200090,Bed & Breakfast - accomm,Bed / breakfast accommodation,General Fund Housing,3996,(DO NOT USE) Contract Payments,Conversion,Supplies and Services,"1,395.00",01-May-17,R,REDACTED
2,200090,Bed & Breakfast - accomm,Bed / breakfast accommodation,General Fund Housing,3996,(DO NOT USE) Contract Payments,Conversion,Supplies and Services,"1,395.00",01-May-17,R,REDACTED
2,200090,Bed & Breakfast - accomm,Bed / breakfast accommodation,General Fund Housing,3996,(DO NOT USE) Contract Payments,Conversion,Supplies and Services,"1,437.00",01-May-17,R,EURO HOTELS (THORNTON HEATH)
2,200090,Bed & Breakfast - accomm,Bed / breakfast accommodation,General Fund Housing,3996,(DO NOT USE) Contract Payments,Conversion,Supplies and Services,"1,440.00",01-May-17,R,RENT CONNECT LLP
2,200090,Bed & Breakfast - accomm,Bed / breakfast accommodation,General Fund Housing,3996,(DO NOT USE) Contract Payments,Conversion,Supplies and Services,"1,484.90",01-May-17,R,EURO HOTELS (THORNTON HEATH)
2,200090,Bed & Breakfast - accomm,Bed / breakfast accommodation,General Fund Housing,3996,(DO NOT USE) Contract Payments,Conversion,Supplies and Services,"1,497.00",01-May-17,R,NORBURY PROPERTY SERV LDN LTD
2,200090,Bed & Breakfast - accomm,Bed / breakfast accommodation,General Fund Housing,3996,(DO NOT USE) Contract Payments,Conversion,Supplies and Services,"1,500.00",01-May-17,R,NORBURY PROPERTY SERV LDN LTD
2,200090,Bed & Breakfast - accomm,Bed / breakfast accommodation,General Fund Housing,3996,(DO NOT USE) Contract Payments,Conversion,Supplies and Services,"1,500.00",01-May-17,R,NORBURY PROPERTY SERV LDN LTD
2,200090,Bed & Breakfast - accomm,Bed / breakfast accommodation,General Fund Housing,3996,(DO NOT USE) Contract Payments,Conversion,Supplies and Services,"1,500.00",01-May-17,R,REDACTED
2,200090,Bed & Breakfast - accomm,Bed / breakfast accommodation,General Fund Housing,3996,(DO NOT USE) Contract Payments,Conversion,Supplies and Services,"1,550.00",01-May-17,R,EURO HOTELS (HOUNSLOW)
2,200090,Bed & Breakfast - accomm,Bed / breakfast accommodation,General Fund Housing,3996,(DO NOT USE) Contract Payments,Conversion,Supplies and Services,"1,550.00",01-May-17,R,REDACTED
2,200090,Bed & Breakfast - accomm,Bed / breakfast accommodation,General Fund Housing,3996,(DO NOT USE) Contract Payments,Conversion,Supplies and Services,"1,575.00",01-May-17,R,EURO HOTEL (LEYTON) LTD
2,200090,Bed & Breakfast - accomm,Bed / breakfast accommodation,General Fund Housing,3996,(DO NOT USE) Contract Payments,Conversion,Supplies and Services,"1,627.50",01-May-17,R,EURO HOTEL (LEYTON) LTD
2,200090,Bed & Breakfast - accomm,Bed / breakfast accommodation,General Fund Housing,3996,(DO NOT USE) Contract Payments,Conversion,Supplies and Services,"1,627.50",01-May-17,R,EURO HOTEL (LEYTON) LTD
2,200090,Bed & Breakfast - accomm,Bed / breakfast accommodation,General Fund Housing,3996,(DO NOT USE) Contract Payments,Conversion,Supplies and Services,"1,650.00",01-May-17,R,CROMWOOD HOUSING
2,200090,Bed & Breakfast - accomm,Bed / breakfast accommodation,General Fund Housing,3996,(DO NOT USE) Contract Payments,Conversion,Supplies and Services,"1,705.00",01-May-17,R,CROMWOOD HOUSING
2,200090,Bed & Breakfast - accomm,Bed / breakfast accommodation,General Fund Housing,3996,(DO NOT USE) Contract Payments,Conversion,Supplies and Services,"1,743.00",01-May-17,R,NORBURY PROPERTY SERV LDN LTD
2,200090,Bed & Breakfast - accomm,Bed / breakfast accommodation,General Fund Housing,3996,(DO NOT USE) Contract Payments,Conversion,Supplies and Services,"1,770.00",01-May-17,R,CROMWOOD HOUSING
2,200090,Bed & Breakfast - accomm,Bed / breakfast accommodation,General Fund Housing,3996,(DO NOT USE) Contract Payments,Conversion,Supplies and Services,"1,829.00",01-May-17,R,CROMWOOD HOUSING
2,200090,Bed & Breakfast - accomm,Bed / breakfast accommodation,General Fund Housing,3996,(DO NOT USE) Contract Payments,Conversion,Supplies and Services,"1,950.00",01-May-17,R,REDACTED
2,200090,Bed & Breakfast - accomm,Bed / breakfast accommodation,General Fund Housing,3996,(DO NOT USE) Contract Payments,Conversion,Supplies and Services,"1,950.00",01-May-17,R,REDACTED
2,200090,Bed & Breakfast - accomm,Bed / breakfast accommodation,General Fund Housing,3996,(DO NOT USE) Contract Payments,Conversion,Supplies and Services,"2,015.00",01-May-17,R,REDACTED
2,200090,Bed & Breakfast - accomm,Bed / breakfast accommodation,General Fund Housing,3996,(DO NOT USE) Contract Payments,Conversion,Supplies and Services,"2,015.00",01-May-17,R,REDACTED
2,200090,Bed & Breakfast - accomm,Bed / breakfast accommodation,General Fund Housing,3996,(DO NOT USE) Contract Payments,Conversion,Supplies and Services,"2,898.00",01-May-17,R,CROMWOOD HOUSING
2,200090,Bed & Breakfast - accomm,Bed / breakfast accommodation,General Fund Housing,3996,(DO NOT USE) Contract Payments,Conversion,Supplies and Services,"3,472.50",01-May-17,R,SK HOUSING LTD
2,200090,Bed & Breakfast - accomm,Bed / breakfast accommodation,General Fund Housing,3996,(DO NOT USE) Contract Payments,Conversion,Supplies and Services,"6,110.00",01-May-17,R,APEX HOUSING SOLUTIONS
2,200090,Bed & Breakfast - accomm,Bed / breakfast accommodation,General Fund Housing,3996,(DO NOT USE) Contract Payments,Conversion,Supplies and Services,"7,792.50",02-May-17,R,STENFORD PROPERTY LTD
2,200090,Bed & Breakfast - accomm,Bed / breakfast accommodation,General Fund Housing,3996,(DO NOT USE) Contract Payments,Conversion,Supplies and Services,"7,908.50",01-May-17,R,FASTMOVE PROPERTIES
2,200090,Bed & Breakfast - accomm,Bed / breakfast accommodation,General Fund Housing,3996,(DO NOT USE) Contract Payments,Conversion,Supplies and Services,"9,156.40",02-May-17,R,QUARTZ PROPERTIES
2,200090,Bed & Breakfast - accomm,Bed / breakfast accommodation,General Fund Housing,3996,(DO NOT USE) Contract Payments,Conversion,Supplies and Services,"11,282.08",01-May-17,R,QUARTZ PROPERTIES
2,200090,Bed & Breakfast - accomm,Bed / breakfast accommodation,General Fund Housing,3996,(DO NOT USE) Contract Payments,Conversion,Supplies and Services,"12,442.08",01-May-17,R,QUARTZ PROPERTIES
2,200090,Bed & Breakfast - accomm,Bed / breakfast accommodation,General Fund Housing,3996,(DO NOT USE) Contract Payments,Conversion,Supplies and Services,"18,979.50",02-May-17,R,CREST MANOR LTD
2,200090,Bed & Breakfast - accomm,Bed / breakfast accommodation,General Fund Housing,3996,(DO NOT USE) Contract Payments,Conversion,Supplies and Services,"33,285.00",01-May-17,R,Cyberstyle Lettings Limited
2,200090,Bed & Breakfast - accomm,Bed / breakfast accommodation,General Fund Housing,3996,(DO NOT USE) Contract Payments,Conversion,Supplies and Services,"51,311.80",01-May-17,R,VENTURE HOUSING(LONDON)LTD
2,200093,Homelessness Prevention,Bed / breakfast accommodation,General Fund Housing,5200,Rent Deposits,Housing Benefits,Transfer Payments,877.37,04-May-17,R,DICKSONS ESTATE AGENTS
2,200093,Homelessness Prevention,Bed / breakfast accommodation,General Fund Housing,5200,Rent Deposits,Housing Benefits,Transfer Payments,"1,210.00",15-May-17,R,EARLSFIELD PROPERTIES
2,200093,Homelessness Prevention,Bed / breakfast accommodation,General Fund Housing,5200,Rent Deposits,Housing Benefits,Transfer Payments,"1,404.00",04-May-17,R,REDACTED
2,200093,Homelessness Prevention,Bed / breakfast accommodation,General Fund Housing,5200,Rent Deposits,Housing Benefits,Transfer Payments,"1,500.00",15-May-17,R,REDACTED
2,200093,Homelessness Prevention,Bed / breakfast accommodation,General Fund Housing,5200,Rent Deposits,Housing Benefits,Transfer Payments,"1,555.00",15-May-17,R,REDACTED
2,200093,Homelessness Prevention,Bed / breakfast accommodation,General Fund Housing,5200,Rent Deposits,Housing Benefits,Transfer Payments,"2,000.00",04-May-17,R,DICKSONS ESTATE AGENTS
2,200093,Homelessness Prevention,Bed / breakfast accommodation,General Fund Housing,5200,Rent Deposits,Housing Benefits,Transfer Payments,"2,000.00",04-May-17,R,REDACTED
2,200093,Homelessness Prevention,Bed / breakfast accommodation,General Fund Housing,5200,Rent Deposits,Housing Benefits,Transfer Payments,"2,000.00",04-May-17,R,REDACTED
2,200093,Homelessness Prevention,Bed / breakfast accommodation,General Fund Housing,5200,Rent Deposits,Housing Benefits,Transfer Payments,"2,000.00",04-May-17,R,REDACTED
2,200093,Homelessness Prevention,Bed / breakfast accommodation,General Fund Housing,5200,Rent Deposits,Housing Benefits,Transfer Payments,"4,000.00",15-May-17,R,REDACTED
2,200123,Housing Needs & Enablg-central,Hsg Dept Supp Staff & Costs,General Fund Housing,3401,Medical Fees,Services,Supplies and Services,"1,119.39",01-May-17,R,REDACTED
2,200123,Housing Needs & Enablg-central,Hsg Dept Supp Staff & Costs,General Fund Housing,3521,IT licences - Applications,Comms and Computing,Supplies and Services,"12,337.42",01-May-17,R,CAPITA BUSINESS SERVICES LTD
2,200123,Housing Needs & Enablg-central,Hsg Dept Supp Staff & Costs,General Fund Housing,3521,IT licences - Applications,Comms and Computing,Supplies and Services,"20,120.23",01-May-17,R,HOME CONNECTIONS LETTINGS LTD
2,200200,Senior Management - ASC,Commissioning and Service Deli,Commissioning and Service Deli,0070,Agency Staff - Corp Contract,Direct EmployeeExpenses-Agency,Employees,"14,868.00",01-May-17,R,GATENBY SANDERSON
2,200200,Senior Management - ASC,Commissioning and Service Deli,Commissioning and Service Deli,0075,Agency Staff - Off Contract,Direct EmployeeExpenses-Agency,Employees,"4,130.00",01-May-17,R,GATENBY SANDERSON
2,200200,Senior Management - ASC,Commissioning and Service Deli,Commissioning and Service Deli,3415,Payment of Sessional Workers,Services,Supplies and Services,"4,393.00",01-May-17,R,LONDON BOROUGH OF SUTTON
2,200304,PH - NHS Health check,NHS Health Check Programme,Public Health,3401,Medical Fees,Services,Supplies and Services,525.00,17-May-17,R,STONECOT SURGERY
2,200304,PH - NHS Health check,NHS Health Check Programme,Public Health,3401,Medical Fees,Services,Supplies and Services,600.00,17-May-17,R,PRINCES ROAD SURGERY
2,200304,PH - NHS Health check,NHS Health Check Programme,Public Health,3401,Medical Fees,Services,Supplies and Services,725.00,17-May-17,R,LAMBTON ROAD MEDICAL PRACTICE
2,200304,PH - NHS Health check,NHS Health Check Programme,Public Health,3401,Medical Fees,Services,Supplies and Services,725.00,18-May-17,R,MORDEN HALL MEDICAL CENTRE
2,200304,PH - NHS Health check,NHS Health Check Programme,Public Health,3401,Medical Fees,Services,Supplies and Services,775.00,17-May-17,R,COLLIERS WOOD SURGERY
2,200304,PH - NHS Health check,NHS Health Check Programme,Public Health,3401,Medical Fees,Services,Supplies and Services,800.00,22-May-17,R,FRANCIS GROVE SURGERY
2,200304,PH - NHS Health check,NHS Health Check Programme,Public Health,3401,Medical Fees,Services,Supplies and Services,900.00,23-May-17,R,CRICKET GREEN MEDICAL PRACTICE
2,200304,PH - NHS Health check,NHS Health Check Programme,Public Health,3401,Medical Fees,Services,Supplies and Services,"1,025.00",17-May-17,R,GRAND DRIVE SURGERY
2,200315,PH - Sexual Health,"Advice, prevention and promoti",Public Health,3429,Contraception Costs,Services,Supplies and Services,"53,203.33",03-May-17,R,NHS MERTON CCG
2,200315,PH - Sexual Health,"Advice, prevention and promoti",Public Health,3429,Contraception Costs,Services,Supplies and Services,"53,203.33",01-May-17,R,NHS MERTON CCG
2,200315,PH - Sexual Health,"Advice, prevention and promoti",Public Health,3430,Health Tests,Services,Supplies and Services,939.42,01-May-17,R,CHELSEA & WESTMINSTER HOSPITAL
2,200315,PH - Sexual Health,"Advice, prevention and promoti",Public Health,3430,Health Tests,Services,Supplies and Services,"1,852.50",01-May-17,R,PREVENTX LIMITED
2,200315,PH - Sexual Health,"Advice, prevention and promoti",Public Health,3430,Health Tests,Services,Supplies and Services,"2,719.00",01-May-17,R,PREVENTX LIMITED
2,200315,PH - Sexual Health,"Advice, prevention and promoti",Public Health,3430,Health Tests,Services,Supplies and Services,"2,834.50",01-May-17,R,PREVENTX LIMITED
2,200315,PH - Sexual Health,"Advice, prevention and promoti",Public Health,3430,Health Tests,Services,Supplies and Services,"4,194.00",01-May-17,R,IMPERIAL COLLEGE H'THCARE NHS
2,200315,PH - Sexual Health,"Advice, prevention and promoti",Public Health,3430,Health Tests,Services,Supplies and Services,"33,000.00",01-May-17,R,EAST LONDON NHS FOUND. TRUST
2,200322,PH 0-19 Healthy Child,National Child Measurement Pro,Public Health,3996,(DO NOT USE) Contract Payments,Conversion,Supplies and Services,"292,956.09",03-May-17,R,NHS MERTON CCG
2,200322,PH 0-19 Healthy Child,National Child Measurement Pro,Public Health,3996,(DO NOT USE) Contract Payments,Conversion,Supplies and Services,"292,956.09",01-May-17,R,NHS MERTON CCG
2,200340,PH - Substance Misuse,Accident prevention,Public Health,4510,Public Health Payments,Adult Social Care,Third Party Payments,524.30,01-May-17,R,FAIRGREEN PHARMACY
2,200340,PH - Substance Misuse,Accident prevention,Public Health,4510,Public Health Payments,Adult Social Care,Third Party Payments,750.00,01-May-17,R,Alcohol Health Network
2,200341,PH - Prevention,Health Protection,Public Health,3996,(DO NOT USE) Contract Payments,Conversion,Supplies and Services,"19,117.08",16-May-17,R,HOUNSLOW & RICHM'D COMM H'CARE
2,200341,PH - Prevention,Health Protection,Public Health,3996,(DO NOT USE) Contract Payments,Conversion,Supplies and Services,"19,117.08",16-May-17,R,HOUNSLOW & RICHM'D COMM H'CARE
2,200341,PH - Prevention,Health Protection,Public Health,3997,(DO NOT USE) Special Projects,Conversion,Supplies and Services,"1,400.00",04-May-17,R,BROMLEY BY BOW CENTRE
2,200360,PH - Administration,Drug misuse in adults,Public Health,3110,Contract Catering,Catering,Supplies and Services,576.00,01-May-17,R,GOSTO FINO PORTUGAL PATISSERIE
2,200361,PH - Public Health Main,Other public health service,Public Health,3414,Consultants,Services,Supplies and Services,559.09,10-May-17,R,LEADING COMMUNITIES
2,200361,PH - Public Health Main,Other public health service,Public Health,3414,Consultants,Services,Supplies and Services,"27,000.00",10-May-17,R,LEADING COMMUNITIES
2,200361,PH - Public Health Main,Other public health service,Public Health,3997,(DO NOT USE) Special Projects,Conversion,Supplies and Services,"3,678.75",01-May-17,R,MERTON VOLUNTARY SERV COUNCIL
2,200650,AE Commissioning Team,Vocational - Adult Education,Non School Funding,3504,Mobile Phones - Call Plans,Comms and Computing,Supplies and Services,807.00,09-May-17,R,EVERYTHING EVERYWHERE
2,200653,AE Family Learning,Vocational - Adult Education,Non School Funding,3996,(DO NOT USE) Contract Payments,Conversion,Supplies and Services,"5,792.00",01-May-17,R,GROUNDWORK LONDON
2,200821,Libraries Service-Civic Centre,Library DoS not split,Cultural and Related Services,3306,Postage,Prntng Stnry Gen Off Exp,Supplies and Services,882.00,01-May-17,R,AXIELL
2,200821,Libraries Service-Civic Centre,Library DoS not split,Cultural and Related Services,3306,Postage,Prntng Stnry Gen Off Exp,Supplies and Services,"1,171.50",02-May-17,R,AXIELL
2,200821,Libraries Service-Civic Centre,Library DoS not split,Cultural and Related Services,3521,IT licences - Applications,Comms and Computing,Supplies and Services,612.00,01-May-17,R,TOWNSWEB ARCHIVING LTD
2,200824,Donald Hope Library,Library DoS not split,Cultural and Related Services,1300,NNDR,Rates,Premises Related Expenses,"2,139.78",01-May-17,R,REDACTED
2,200825,Pollards Hill Library,Library DoS not split,Cultural and Related Services,3502,Telephone - Call Charges,Comms and Computing,Supplies and Services,"6,249.96",01-May-17,R,VIRGIN MEDIA PAYMENTS LIMITED
2,200825,Pollards Hill Library,Library DoS not split,Cultural and Related Services,3502,Telephone - Call Charges,Comms and Computing,Supplies and Services,"6,340.92",01-May-17,R,VIRGIN MEDIA PAYMENTS LIMITED
2,200826,Media Fund,Library DoS not split,Cultural and Related Services,3014,Books,Equip Furniture/Materials,Supplies and Services,561.18,25-May-17,R,ASKEWS & HOLTS LIBRARY SRV LTD
2,200826,Media Fund,Library DoS not split,Cultural and Related Services,3014,Books,Equip Furniture/Materials,Supplies and Services,654.22,25-May-17,R,ASKEWS & HOLTS LIBRARY SRV LTD
2,200826,Media Fund,Library DoS not split,Cultural and Related Services,3014,Books,Equip Furniture/Materials,Supplies and Services,879.00,01-May-17,R,KOMPASS (UK) LTD
2,200826,Media Fund,Library DoS not split,Cultural and Related Services,3014,Books,Equip Furniture/Materials,Supplies and Services,"1,650.07",01-May-17,R,SPECTRUM PLASTICS
2,200826,Media Fund,Library DoS not split,Cultural and Related Services,3306,Postage,Prntng Stnry Gen Off Exp,Supplies and Services,"1,289.70",01-May-17,R,CITYSPRINT (UK) LIMITED
2,200826,Media Fund,Library DoS not split,Cultural and Related Services,3521,IT licences - Applications,Comms and Computing,Supplies and Services,"7,475.00",01-May-17,R,BRIDGEAL LIBRARIES LTD
2,200826,Media Fund,Library DoS not split,Cultural and Related Services,3522,IT Support Costs,Comms and Computing,Supplies and Services,"5,347.50",01-May-17,R,BDS LTD
2,200826,Media Fund,Library DoS not split,Cultural and Related Services,3804,Subscriptions,Grants and Subscriptions,Supplies and Services,"2,000.00",01-May-17,R,REDACTED
2,200830,Wimbledon Library,Library DoS not split,Cultural and Related Services,1600,Corporate Cleaning Contract,Cleaning and Domestic Supplies,Premises Related Expenses,658.27,01-May-17,R,BIRKIN CLEANING SERVICES LTD
2,200830,Wimbledon Library,Library DoS not split,Cultural and Related Services,1600,Corporate Cleaning Contract,Cleaning and Domestic Supplies,Premises Related Expenses,658.27,01-May-17,R,BIRKIN CLEANING SERVICES LTD
2,221001,Older People Placements - East,OP 65&Over NursingCarePlacemts,Physical/ Sensory Support,4350,Residential Homes External,Adult Social Care,Third Party Payments,500.00,01-May-17,R,SOUTHPARK RESIDENTIAL HOME
2,221001,Older People Placements - East,OP 65&Over NursingCarePlacemts,Physical/ Sensory Support,4350,Residential Homes External,Adult Social Care,Third Party Payments,500.00,01-May-17,R,SOUTHPARK RESIDENTIAL HOME
2,221001,Older People Placements - East,OP 65&Over NursingCarePlacemts,Physical/ Sensory Support,4350,Residential Homes External,Adult Social Care,Third Party Payments,500.00,01-May-17,R,SOUTHPARK RESIDENTIAL HOME
2,221001,Older People Placements - East,OP 65&Over NursingCarePlacemts,Physical/ Sensory Support,4350,Residential Homes External,Adult Social Care,Third Party Payments,500.00,01-May-17,R,SOUTHPARK RESIDENTIAL HOME
2,221001,Older People Placements - East,OP 65&Over NursingCarePlacemts,Physical/ Sensory Support,4350,Residential Homes External,Adult Social Care,Third Party Payments,500.00,01-May-17,R,SOUTHPARK RESIDENTIAL HOME
2,221001,Older People Placements - East,OP 65&Over NursingCarePlacemts,Physical/ Sensory Support,4350,Residential Homes External,Adult Social Care,Third Party Payments,500.00,01-May-17,R,SOUTHPARK RESIDENTIAL HOME
2,221001,Older People Placements - East,OP 65&Over NursingCarePlacemts,Physical/ Sensory Support,4350,Residential Homes External,Adult Social Care,Third Party Payments,500.00,01-May-17,R,SOUTHPARK RESIDENTIAL HOME
2,221001,Older People Placements - East,OP 65&Over NursingCarePlacemts,Physical/ Sensory Support,4350,Residential Homes External,Adult Social Care,Third Party Payments,500.00,01-May-17,R,SOUTHPARK RESIDENTIAL HOME
2,221001,Older People Placements - East,OP 65&Over NursingCarePlacemts,Physical/ Sensory Support,4350,Residential Homes External,Adult Social Care,Third Party Payments,500.00,01-May-17,R,SOUTHPARK RESIDENTIAL HOME
2,221001,Older People Placements - East,OP 65&Over NursingCarePlacemts,Physical/ Sensory Support,4350,Residential Homes External,Adult Social Care,Third Party Payments,500.00,01-May-17,R,SOUTHPARK RESIDENTIAL HOME
2,221001,Older People Placements - East,OP 65&Over NursingCarePlacemts,Physical/ Sensory Support,4350,Residential Homes External,Adult Social Care,Third Party Payments,524.22,01-May-17,R,BHAKTI SHYAMA CARE CENTRE
2,221001,Older People Placements - East,OP 65&Over NursingCarePlacemts,Physical/ Sensory Support,4350,Residential Homes External,Adult Social Care,Third Party Payments,524.22,01-May-17,R,BHAKTI SHYAMA CARE CENTRE
2,221001,Older People Placements - East,OP 65&Over NursingCarePlacemts,Physical/ Sensory Support,4350,Residential Homes External,Adult Social Care,Third Party Payments,524.22,01-May-17,R,BHAKTI SHYAMA CARE CENTRE
2,221001,Older People Placements - East,OP 65&Over NursingCarePlacemts,Physical/ Sensory Support,4350,Residential Homes External,Adult Social Care,Third Party Payments,524.22,01-May-17,R,BHAKTI SHYAMA CARE CENTRE
2,221001,Older People Placements - East,OP 65&Over NursingCarePlacemts,Physical/ Sensory Support,4350,Residential Homes External,Adult Social Care,Third Party Payments,540.00,01-May-17,R,THE WILLOWS CARE HOME
2,221001,Older People Placements - East,OP 65&Over NursingCarePlacemts,Physical/ Sensory Support,4350,Residential Homes External,Adult Social Care,Third Party Payments,540.00,01-May-17,R,THE WILLOWS CARE HOME
2,221001,Older People Placements - East,OP 65&Over NursingCarePlacemts,Physical/ Sensory Support,4350,Residential Homes External,Adult Social Care,Third Party Payments,540.00,01-May-17,R,THE WILLOWS CARE HOME
2,221001,Older People Placements - East,OP 65&Over NursingCarePlacemts,Physical/ Sensory Support,4350,Residential Homes External,Adult Social Care,Third Party Payments,540.00,01-May-17,R,THE WILLOWS CARE HOME
2,221001,Older People Placements - East,OP 65&Over NursingCarePlacemts,Physical/ Sensory Support,4350,Residential Homes External,Adult Social Care,Third Party Payments,543.71,01-May-17,R,HILLVIEW
2,221001,Older People Placements - East,OP 65&Over NursingCarePlacemts,Physical/ Sensory Support,4350,Residential Homes External,Adult Social Care,Third Party Payments,543.71,01-May-17,R,HILLVIEW
2,221001,Older People Placements - East,OP 65&Over NursingCarePlacemts,Physical/ Sensory Support,4350,Residential Homes External,Adult Social Care,Third Party Payments,543.71,01-May-17,R,HILLVIEW
2,221001,Older People Placements - East,OP 65&Over NursingCarePlacemts,Physical/ Sensory Support,4350,Residential Homes External,Adult Social Care,Third Party Payments,543.71,01-May-17,R,HILLVIEW
2,221001,Older People Placements - East,OP 65&Over NursingCarePlacemts,Physical/ Sensory Support,4350,Residential Homes External,Adult Social Care,Third Party Payments,543.71,01-May-17,R,HILLVIEW
2,221001,Older People Placements - East,OP 65&Over NursingCarePlacemts,Physical/ Sensory Support,4350,Residential Homes External,Adult Social Care,Third Party Payments,550.00,02-May-17,R,KEW HOUSE
2,221001,Older People Placements - East,OP 65&Over NursingCarePlacemts,Physical/ Sensory Support,4350,Residential Homes External,Adult Social Care,Third Party Payments,550.00,02-May-17,R,KEW HOUSE
2,221001,Older People Placements - East,OP 65&Over NursingCarePlacemts,Physical/ Sensory Support,4350,Residential Homes External,Adult Social Care,Third Party Payments,550.00,02-May-17,R,KEW HOUSE
2,221001,Older People Placements - East,OP 65&Over NursingCarePlacemts,Physical/ Sensory Support,4350,Residential Homes External,Adult Social Care,Third Party Payments,550.00,02-May-17,R,KEW HOUSE
2,221001,Older People Placements - East,OP 65&Over NursingCarePlacemts,Physical/ Sensory Support,4350,Residential Homes External,Adult Social Care,Third Party Payments,635.00,04-May-17,R,BUPA CARE HOMES
2,221001,Older People Placements - East,OP 65&Over NursingCarePlacemts,Physical/ Sensory Support,4350,Residential Homes External,Adult Social Care,Third Party Payments,635.00,04-May-17,R,BUPA CARE HOMES
2,221001,Older People Placements - East,OP 65&Over NursingCarePlacemts,Physical/ Sensory Support,4350,Residential Homes External,Adult Social Care,Third Party Payments,635.00,04-May-17,R,BUPA CARE HOMES
2,221001,Older People Placements - East,OP 65&Over NursingCarePlacemts,Physical/ Sensory Support,4350,Residential Homes External,Adult Social Care,Third Party Payments,635.00,04-May-17,R,BUPA CARE HOMES
2,221001,Older People Placements - East,OP 65&Over NursingCarePlacemts,Physical/ Sensory Support,4350,Residential Homes External,Adult Social Care,Third Party Payments,635.00,04-May-17,R,BUPA CARE HOMES
2,221001,Older People Placements - East,OP 65&Over NursingCarePlacemts,Physical/ Sensory Support,4350,Residential Homes External,Adult Social Care,Third Party Payments,635.00,04-May-17,R,BUPA CARE HOMES
2,221001,Older People Placements - East,OP 65&Over NursingCarePlacemts,Physical/ Sensory Support,4350,Residential Homes External,Adult Social Care,Third Party Payments,635.00,04-May-17,R,BUPA CARE HOMES
2,221001,Older People Placements - East,OP 65&Over NursingCarePlacemts,Physical/ Sensory Support,4350,Residential Homes External,Adult Social Care,Third Party Payments,635.00,04-May-17,R,BUPA CARE HOMES
2,221001,Older People Placements - East,OP 65&Over NursingCarePlacemts,Physical/ Sensory Support,4350,Residential Homes External,Adult Social Care,Third Party Payments,635.00,04-May-17,R,BUPA CARE HOMES
2,221001,Older People Placements - East,OP 65&Over NursingCarePlacemts,Physical/ Sensory Support,4350,Residential Homes External,Adult Social Care,Third Party Payments,635.00,04-May-17,R,BUPA CARE HOMES
2,221001,Older People Placements - East,OP 65&Over NursingCarePlacemts,Physical/ Sensory Support,4350,Residential Homes External,Adult Social Care,Third Party Payments,635.00,04-May-17,R,BUPA CARE HOMES
2,221001,Older People Placements - East,OP 65&Over NursingCarePlacemts,Physical/ Sensory Support,4350,Residential Homes External,Adult Social Care,Third Party Payments,635.00,04-May-17,R,BUPA CARE HOMES
2,221001,Older People Placements - East,OP 65&Over NursingCarePlacemts,Physical/ Sensory Support,4350,Residential Homes External,Adult Social Care,Third Party Payments,650.00,01-May-17,R,FURZE HILL LODGE
2,221001,Older People Placements - East,OP 65&Over NursingCarePlacemts,Physical/ Sensory Support,4350,Residential Homes External,Adult Social Care,Third Party Payments,650.00,01-May-17,R,FURZE HILL LODGE
2,221001,Older People Placements - East,OP 65&Over NursingCarePlacemts,Physical/ Sensory Support,4350,Residential Homes External,Adult Social Care,Third Party Payments,650.00,01-May-17,R,FURZE HILL LODGE
2,221001,Older People Placements - East,OP 65&Over NursingCarePlacemts,Physical/ Sensory Support,4350,Residential Homes External,Adult Social Care,Third Party Payments,650.00,01-May-17,R,FURZE HILL LODGE
2,221001,Older People Placements - East,OP 65&Over NursingCarePlacemts,Physical/ Sensory Support,4350,Residential Homes External,Adult Social Care,Third Party Payments,650.00,01-May-17,R,FURZE HILL LODGE
2,221001,Older People Placements - East,OP 65&Over NursingCarePlacemts,Physical/ Sensory Support,4350,Residential Homes External,Adult Social Care,Third Party Payments,650.00,01-May-17,R,SOUTHPARK RESIDENTIAL HOME
2,221001,Older People Placements - East,OP 65&Over NursingCarePlacemts,Physical/ Sensory Support,4350,Residential Homes External,Adult Social Care,Third Party Payments,650.00,01-May-17,R,SOUTHPARK RESIDENTIAL HOME
2,221001,Older People Placements - East,OP 65&Over NursingCarePlacemts,Physical/ Sensory Support,4350,Residential Homes External,Adult Social Care,Third Party Payments,675.00,01-May-17,R,ROYAL CAMBRIDGE HOME
2,221001,Older People Placements - East,OP 65&Over NursingCarePlacemts,Physical/ Sensory Support,4350,Residential Homes External,Adult Social Care,Third Party Payments,675.00,01-May-17,R,ROYAL CAMBRIDGE HOME
2,221001,Older People Placements - East,OP 65&Over NursingCarePlacemts,Physical/ Sensory Support,4350,Residential Homes External,Adult Social Care,Third Party Payments,675.00,01-May-17,R,ROYAL CAMBRIDGE HOME
2,221001,Older People Placements - East,OP 65&Over NursingCarePlacemts,Physical/ Sensory Support,4350,Residential Homes External,Adult Social Care,Third Party Payments,675.00,01-May-17,R,ROYAL CAMBRIDGE HOME
2,221001,Older People Placements - East,OP 65&Over NursingCarePlacemts,Physical/ Sensory Support,4350,Residential Homes External,Adult Social Care,Third Party Payments,675.00,01-May-17,R,ROYAL CAMBRIDGE HOME
2,221001,Older People Placements - East,OP 65&Over NursingCarePlacemts,Physical/ Sensory Support,4350,Residential Homes External,Adult Social Care,Third Party Payments,675.00,01-May-17,R,ROYAL CAMBRIDGE HOME
2,221001,Older People Placements - East,OP 65&Over NursingCarePlacemts,Physical/ Sensory Support,4350,Residential Homes External,Adult Social Care,Third Party Payments,675.00,01-May-17,R,ROYAL CAMBRIDGE HOME
2,221001,Older People Placements - East,OP 65&Over NursingCarePlacemts,Physical/ Sensory Support,4350,Residential Homes External,Adult Social Care,Third Party Payments,675.00,01-May-17,R,ROYAL CAMBRIDGE HOME
2,221001,Older People Placements - East,OP 65&Over NursingCarePlacemts,Physical/ Sensory Support,4350,Residential Homes External,Adult Social Care,Third Party Payments,815.00,01-May-17,R,WOODLANDS
2,221001,Older People Placements - East,OP 65&Over NursingCarePlacemts,Physical/ Sensory Support,4350,Residential Homes External,Adult Social Care,Third Party Payments,815.00,01-May-17,R,WOODLANDS
2,221001,Older People Placements - East,OP 65&Over NursingCarePlacemts,Physical/ Sensory Support,4350,Residential Homes External,Adult Social Care,Third Party Payments,815.00,01-May-17,R,WOODLANDS
2,221001,Older People Placements - East,OP 65&Over NursingCarePlacemts,Physical/ Sensory Support,4350,Residential Homes External,Adult Social Care,Third Party Payments,815.00,01-May-17,R,WOODLANDS
2,221001,Older People Placements - East,OP 65&Over NursingCarePlacemts,Physical/ Sensory Support,4350,Residential Homes External,Adult Social Care,Third Party Payments,815.00,01-May-17,R,WOODLANDS
2,221001,Older People Placements - East,OP 65&Over NursingCarePlacemts,Physical/ Sensory Support,4350,Residential Homes External,Adult Social Care,Third Party Payments,815.00,01-May-17,R,WOODLANDS
2,221001,Older People Placements - East,OP 65&Over NursingCarePlacemts,Physical/ Sensory Support,4350,Residential Homes External,Adult Social Care,Third Party Payments,815.00,01-May-17,R,WOODLANDS
2,221001,Older People Placements - East,OP 65&Over NursingCarePlacemts,Physical/ Sensory Support,4350,Residential Homes External,Adult Social Care,Third Party Payments,815.00,01-May-17,R,CARTER HOUSE
2,221001,Older People Placements - East,OP 65&Over NursingCarePlacemts,Physical/ Sensory Support,4350,Residential Homes External,Adult Social Care,Third Party Payments,815.00,01-May-17,R,CARTER HOUSE
2,221001,Older People Placements - East,OP 65&Over NursingCarePlacemts,Physical/ Sensory Support,4350,Residential Homes External,Adult Social Care,Third Party Payments,815.00,01-May-17,R,CARTER HOUSE
2,221001,Older People Placements - East,OP 65&Over NursingCarePlacemts,Physical/ Sensory Support,4350,Residential Homes External,Adult Social Care,Third Party Payments,815.00,01-May-17,R,CARTER HOUSE
2,221001,Older People Placements - East,OP 65&Over NursingCarePlacemts,Physical/ Sensory Support,4350,Residential Homes External,Adult Social Care,Third Party Payments,815.00,01-May-17,R,WOODLANDS
2,221001,Older People Placements - East,OP 65&Over NursingCarePlacemts,Physical/ Sensory Support,4350,Residential Homes External,Adult Social Care,Third Party Payments,815.00,01-May-17,R,WOODLANDS
2,221001,Older People Placements - East,OP 65&Over NursingCarePlacemts,Physical/ Sensory Support,4350,Residential Homes External,Adult Social Care,Third Party Payments,815.00,01-May-17,R,WOODLANDS
2,221001,Older People Placements - East,OP 65&Over NursingCarePlacemts,Physical/ Sensory Support,4350,Residential Homes External,Adult Social Care,Third Party Payments,815.00,01-May-17,R,WOODLANDS
2,221001,Older People Placements - East,OP 65&Over NursingCarePlacemts,Physical/ Sensory Support,4350,Residential Homes External,Adult Social Care,Third Party Payments,815.00,01-May-17,R,WOODLANDS
2,221001,Older People Placements - East,OP 65&Over NursingCarePlacemts,Physical/ Sensory Support,4350,Residential Homes External,Adult Social Care,Third Party Payments,815.00,01-May-17,R,WOODLANDS
2,221001,Older People Placements - East,OP 65&Over NursingCarePlacemts,Physical/ Sensory Support,4350,Residential Homes External,Adult Social Care,Third Party Payments,815.00,01-May-17,R,WOODLANDS
2,221001,Older People Placements - East,OP 65&Over NursingCarePlacemts,Physical/ Sensory Support,4350,Residential Homes External,Adult Social Care,Third Party Payments,815.00,01-May-17,R,WOODLANDS
2,221001,Older People Placements - East,OP 65&Over NursingCarePlacemts,Physical/ Sensory Support,4350,Residential Homes External,Adult Social Care,Third Party Payments,815.00,01-May-17,R,WOODLANDS
2,221001,Older People Placements - East,OP 65&Over NursingCarePlacemts,Physical/ Sensory Support,4350,Residential Homes External,Adult Social Care,Third Party Payments,815.00,01-May-17,R,WOODLANDS
2,221001,Older People Placements - East,OP 65&Over NursingCarePlacemts,Physical/ Sensory Support,4350,Residential Homes External,Adult Social Care,Third Party Payments,815.00,01-May-17,R,WOODLANDS
2,221001,Older People Placements - East,OP 65&Over NursingCarePlacemts,Physical/ Sensory Support,4350,Residential Homes External,Adult Social Care,Third Party Payments,815.00,01-May-17,R,WOODLANDS
2,221001,Older People Placements - East,OP 65&Over NursingCarePlacemts,Physical/ Sensory Support,4350,Residential Homes External,Adult Social Care,Third Party Payments,815.00,01-May-17,R,WOODLANDS
2,221001,Older People Placements - East,OP 65&Over NursingCarePlacemts,Physical/ Sensory Support,4350,Residential Homes External,Adult Social Care,Third Party Payments,815.00,01-May-17,R,WOODLANDS
2,221001,Older People Placements - East,OP 65&Over NursingCarePlacemts,Physical/ Sensory Support,4350,Residential Homes External,Adult Social Care,Third Party Payments,815.00,01-May-17,R,WOODLANDS
2,221001,Older People Placements - East,OP 65&Over NursingCarePlacemts,Physical/ Sensory Support,4350,Residential Homes External,Adult Social Care,Third Party Payments,815.00,01-May-17,R,WOODLANDS
2,221001,Older People Placements - East,OP 65&Over NursingCarePlacemts,Physical/ Sensory Support,4350,Residential Homes External,Adult Social Care,Third Party Payments,815.00,01-May-17,R,WOODLANDS
2,221001,Older People Placements - East,OP 65&Over NursingCarePlacemts,Physical/ Sensory Support,4350,Residential Homes External,Adult Social Care,Third Party Payments,815.00,01-May-17,R,WOODLANDS
2,221001,Older People Placements - East,OP 65&Over NursingCarePlacemts,Physical/ Sensory Support,4350,Residential Homes External,Adult Social Care,Third Party Payments,815.00,01-May-17,R,WOODLANDS
2,221001,Older People Placements - East,OP 65&Over NursingCarePlacemts,Physical/ Sensory Support,4350,Residential Homes External,Adult Social Care,Third Party Payments,815.00,01-May-17,R,WOODLANDS
2,221001,Older People Placements - East,OP 65&Over NursingCarePlacemts,Physical/ Sensory Support,4350,Residential Homes External,Adult Social Care,Third Party Payments,815.00,01-May-17,R,WOODLANDS
2,221001,Older People Placements - East,OP 65&Over NursingCarePlacemts,Physical/ Sensory Support,4350,Residential Homes External,Adult Social Care,Third Party Payments,815.00,01-May-17,R,WOODLANDS
2,221001,Older People Placements - East,OP 65&Over NursingCarePlacemts,Physical/ Sensory Support,4350,Residential Homes External,Adult Social Care,Third Party Payments,815.00,01-May-17,R,WOODLANDS
2,221001,Older People Placements - East,OP 65&Over NursingCarePlacemts,Physical/ Sensory Support,4350,Residential Homes External,Adult Social Care,Third Party Payments,815.00,01-May-17,R,WOODLANDS
2,221001,Older People Placements - East,OP 65&Over NursingCarePlacemts,Physical/ Sensory Support,4350,Residential Homes External,Adult Social Care,Third Party Payments,815.00,01-May-17,R,LINK HOUSE
2,221001,Older People Placements - East,OP 65&Over NursingCarePlacemts,Physical/ Sensory Support,4350,Residential Homes External,Adult Social Care,Third Party Payments,815.00,01-May-17,R,LINK HOUSE
2,221001,Older People Placements - East,OP 65&Over NursingCarePlacemts,Physical/ Sensory Support,4350,Residential Homes External,Adult Social Care,Third Party Payments,815.00,01-May-17,R,LINK HOUSE
2,221001,Older People Placements - East,OP 65&Over NursingCarePlacemts,Physical/ Sensory Support,4350,Residential Homes External,Adult Social Care,Third Party Payments,815.00,01-May-17,R,LINK HOUSE
2,221001,Older People Placements - East,OP 65&Over NursingCarePlacemts,Physical/ Sensory Support,4350,Residential Homes External,Adult Social Care,Third Party Payments,815.00,01-May-17,R,LINK HOUSE
2,221001,Older People Placements - East,OP 65&Over NursingCarePlacemts,Physical/ Sensory Support,4350,Residential Homes External,Adult Social Care,Third Party Payments,815.00,01-May-17,R,LINK HOUSE
2,221001,Older People Placements - East,OP 65&Over NursingCarePlacemts,Physical/ Sensory Support,4350,Residential Homes External,Adult Social Care,Third Party Payments,815.00,01-May-17,R,LINK HOUSE
2,221001,Older People Placements - East,OP 65&Over NursingCarePlacemts,Physical/ Sensory Support,4350,Residential Homes External,Adult Social Care,Third Party Payments,815.00,01-May-17,R,LINK HOUSE
2,221001,Older People Placements - East,OP 65&Over NursingCarePlacemts,Physical/ Sensory Support,4350,Residential Homes External,Adult Social Care,Third Party Payments,815.00,01-May-17,R,WOODLANDS
2,221001,Older People Placements - East,OP 65&Over NursingCarePlacemts,Physical/ Sensory Support,4350,Residential Homes External,Adult Social Care,Third Party Payments,815.00,01-May-17,R,WOODLANDS
2,221001,Older People Placements - East,OP 65&Over NursingCarePlacemts,Physical/ Sensory Support,4350,Residential Homes External,Adult Social Care,Third Party Payments,815.00,01-May-17,R,WOODLANDS
2,221001,Older People Placements - East,OP 65&Over NursingCarePlacemts,Physical/ Sensory Support,4350,Residential Homes External,Adult Social Care,Third Party Payments,815.00,01-May-17,R,WOODLANDS
2,221001,Older People Placements - East,OP 65&Over NursingCarePlacemts,Physical/ Sensory Support,4350,Residential Homes External,Adult Social Care,Third Party Payments,815.00,01-May-17,R,WOODLANDS
2,221001,Older People Placements - East,OP 65&Over NursingCarePlacemts,Physical/ Sensory Support,4360,Nursing Homes External,Adult Social Care,Third Party Payments,621.43,01-May-17,R,BUPA CARE HOMES
2,221001,Older People Placements - East,OP 65&Over NursingCarePlacemts,Physical/ Sensory Support,4360,Nursing Homes External,Adult Social Care,Third Party Payments,628.51,01-May-17,R,ROYAL MASONIC BENEVOLENT INST.
2,221001,Older People Placements - East,OP 65&Over NursingCarePlacemts,Physical/ Sensory Support,4360,Nursing Homes External,Adult Social Care,Third Party Payments,628.51,01-May-17,R,ROYAL MASONIC BENEVOLENT INST.
2,221001,Older People Placements - East,OP 65&Over NursingCarePlacemts,Physical/ Sensory Support,4360,Nursing Homes External,Adult Social Care,Third Party Payments,628.51,01-May-17,R,ROYAL MASONIC BENEVOLENT INST.
2,221001,Older People Placements - East,OP 65&Over NursingCarePlacemts,Physical/ Sensory Support,4360,Nursing Homes External,Adult Social Care,Third Party Payments,628.51,01-May-17,R,ROYAL MASONIC BENEVOLENT INST.
2,221001,Older People Placements - East,OP 65&Over NursingCarePlacemts,Physical/ Sensory Support,4360,Nursing Homes External,Adult Social Care,Third Party Payments,628.51,01-May-17,R,REDACTED
2,221001,Older People Placements - East,OP 65&Over NursingCarePlacemts,Physical/ Sensory Support,4360,Nursing Homes External,Adult Social Care,Third Party Payments,628.51,01-May-17,R,REDACTED
2,221001,Older People Placements - East,OP 65&Over NursingCarePlacemts,Physical/ Sensory Support,4360,Nursing Homes External,Adult Social Care,Third Party Payments,628.51,01-May-17,R,REDACTED
2,221001,Older People Placements - East,OP 65&Over NursingCarePlacemts,Physical/ Sensory Support,4360,Nursing Homes External,Adult Social Care,Third Party Payments,628.51,01-May-17,R,REDACTED
2,221001,Older People Placements - East,OP 65&Over NursingCarePlacemts,Physical/ Sensory Support,4360,Nursing Homes External,Adult Social Care,Third Party Payments,631.80,01-May-17,R,SUTTON NURSING HOMES LTD
2,221001,Older People Placements - East,OP 65&Over NursingCarePlacemts,Physical/ Sensory Support,4360,Nursing Homes External,Adult Social Care,Third Party Payments,631.80,01-May-17,R,SUTTON NURSING HOMES LTD
2,221001,Older People Placements - East,OP 65&Over NursingCarePlacemts,Physical/ Sensory Support,4360,Nursing Homes External,Adult Social Care,Third Party Payments,631.80,01-May-17,R,SUTTON NURSING HOMES LTD
2,221001,Older People Placements - East,OP 65&Over NursingCarePlacemts,Physical/ Sensory Support,4360,Nursing Homes External,Adult Social Care,Third Party Payments,633.00,01-May-17,R,SUTTON NURSING HOMES LTD
2,221001,Older People Placements - East,OP 65&Over NursingCarePlacemts,Physical/ Sensory Support,4360,Nursing Homes External,Adult Social Care,Third Party Payments,668.80,01-May-17,R,SUTTON COURT CARE CENTRE
2,221001,Older People Placements - East,OP 65&Over NursingCarePlacemts,Physical/ Sensory Support,4360,Nursing Homes External,Adult Social Care,Third Party Payments,668.80,01-May-17,R,SUTTON COURT CARE CENTRE
2,221001,Older People Placements - East,OP 65&Over NursingCarePlacemts,Physical/ Sensory Support,4360,Nursing Homes External,Adult Social Care,Third Party Payments,668.80,01-May-17,R,SUTTON COURT CARE CENTRE
2,221001,Older People Placements - East,OP 65&Over NursingCarePlacemts,Physical/ Sensory Support,4360,Nursing Homes External,Adult Social Care,Third Party Payments,668.80,01-May-17,R,SUTTON COURT CARE CENTRE
2,221001,Older People Placements - East,OP 65&Over NursingCarePlacemts,Physical/ Sensory Support,4360,Nursing Homes External,Adult Social Care,Third Party Payments,668.80,01-May-17,R,SUTTON COURT CARE CENTRE
2,221001,Older People Placements - East,OP 65&Over NursingCarePlacemts,Physical/ Sensory Support,4360,Nursing Homes External,Adult Social Care,Third Party Payments,668.80,01-May-17,R,SUTTON COURT CARE CENTRE
2,221001,Older People Placements - East,OP 65&Over NursingCarePlacemts,Physical/ Sensory Support,4360,Nursing Homes External,Adult Social Care,Third Party Payments,693.05,01-May-17,R,SUTTON COURT CARE CENTRE
2,221001,Older People Placements - East,OP 65&Over NursingCarePlacemts,Physical/ Sensory Support,4360,Nursing Homes External,Adult Social Care,Third Party Payments,693.05,01-May-17,R,SUTTON COURT CARE CENTRE
2,221001,Older People Placements - East,OP 65&Over NursingCarePlacemts,Physical/ Sensory Support,4360,Nursing Homes External,Adult Social Care,Third Party Payments,693.05,01-May-17,R,SUTTON COURT CARE CENTRE
2,221001,Older People Placements - East,OP 65&Over NursingCarePlacemts,Physical/ Sensory Support,4360,Nursing Homes External,Adult Social Care,Third Party Payments,693.05,01-May-17,R,SUTTON COURT CARE CENTRE
2,221001,Older People Placements - East,OP 65&Over NursingCarePlacemts,Physical/ Sensory Support,4360,Nursing Homes External,Adult Social Care,Third Party Payments,693.05,01-May-17,R,SUTTON COURT CARE CENTRE
2,221001,Older People Placements - East,OP 65&Over NursingCarePlacemts,Physical/ Sensory Support,4360,Nursing Homes External,Adult Social Care,Third Party Payments,693.05,01-May-17,R,SUTTON COURT CARE CENTRE
2,221001,Older People Placements - East,OP 65&Over NursingCarePlacemts,Physical/ Sensory Support,4360,Nursing Homes External,Adult Social Care,Third Party Payments,695.00,01-May-17,R,KELSTONE COURT NURSING HOME
2,221001,Older People Placements - East,OP 65&Over NursingCarePlacemts,Physical/ Sensory Support,4360,Nursing Homes External,Adult Social Care,Third Party Payments,695.00,01-May-17,R,KELSTONE COURT NURSING HOME
2,221001,Older People Placements - East,OP 65&Over NursingCarePlacemts,Physical/ Sensory Support,4360,Nursing Homes External,Adult Social Care,Third Party Payments,695.00,01-May-17,R,KELSTONE COURT NURSING HOME
2,221001,Older People Placements - East,OP 65&Over NursingCarePlacemts,Physical/ Sensory Support,4360,Nursing Homes External,Adult Social Care,Third Party Payments,695.00,01-May-17,R,KELSTONE COURT NURSING HOME
2,221001,Older People Placements - East,OP 65&Over NursingCarePlacemts,Physical/ Sensory Support,4360,Nursing Homes External,Adult Social Care,Third Party Payments,714.25,01-May-17,R,TRINITY COURT NURSING HOME
2,221001,Older People Placements - East,OP 65&Over NursingCarePlacemts,Physical/ Sensory Support,4360,Nursing Homes External,Adult Social Care,Third Party Payments,714.25,01-May-17,R,TRINITY COURT NURSING HOME
2,221001,Older People Placements - East,OP 65&Over NursingCarePlacemts,Physical/ Sensory Support,4360,Nursing Homes External,Adult Social Care,Third Party Payments,714.25,01-May-17,R,TRINITY COURT NURSING HOME
2,221001,Older People Placements - East,OP 65&Over NursingCarePlacemts,Physical/ Sensory Support,4360,Nursing Homes External,Adult Social Care,Third Party Payments,714.25,01-May-17,R,TRINITY COURT NURSING HOME
2,221001,Older People Placements - East,OP 65&Over NursingCarePlacemts,Physical/ Sensory Support,4360,Nursing Homes External,Adult Social Care,Third Party Payments,736.99,01-May-17,R,BRITISH HOME
2,221001,Older People Placements - East,OP 65&Over NursingCarePlacemts,Physical/ Sensory Support,4360,Nursing Homes External,Adult Social Care,Third Party Payments,736.99,01-May-17,R,BRITISH HOME
2,221001,Older People Placements - East,OP 65&Over NursingCarePlacemts,Physical/ Sensory Support,4360,Nursing Homes External,Adult Social Care,Third Party Payments,736.99,01-May-17,R,BRITISH HOME
2,221001,Older People Placements - East,OP 65&Over NursingCarePlacemts,Physical/ Sensory Support,4360,Nursing Homes External,Adult Social Care,Third Party Payments,736.99,01-May-17,R,BRITISH HOME
2,221001,Older People Placements - East,OP 65&Over NursingCarePlacemts,Physical/ Sensory Support,4360,Nursing Homes External,Adult Social Care,Third Party Payments,848.80,04-May-17,R,BUPA CARE HOMES
2,221001,Older People Placements - East,OP 65&Over NursingCarePlacemts,Physical/ Sensory Support,4360,Nursing Homes External,Adult Social Care,Third Party Payments,848.80,04-May-17,R,BUPA CARE HOMES
2,221001,Older People Placements - East,OP 65&Over NursingCarePlacemts,Physical/ Sensory Support,4360,Nursing Homes External,Adult Social Care,Third Party Payments,848.80,04-May-17,R,BUPA CARE HOMES
2,221001,Older People Placements - East,OP 65&Over NursingCarePlacemts,Physical/ Sensory Support,4360,Nursing Homes External,Adult Social Care,Third Party Payments,848.80,04-May-17,R,BUPA CARE HOMES
2,221001,Older People Placements - East,OP 65&Over NursingCarePlacemts,Physical/ Sensory Support,4360,Nursing Homes External,Adult Social Care,Third Party Payments,848.80,04-May-17,R,BUPA CARE HOMES
2,221001,Older People Placements - East,OP 65&Over NursingCarePlacemts,Physical/ Sensory Support,4360,Nursing Homes External,Adult Social Care,Third Party Payments,848.80,04-May-17,R,BUPA CARE HOMES
2,221001,Older People Placements - East,OP 65&Over NursingCarePlacemts,Physical/ Sensory Support,4360,Nursing Homes External,Adult Social Care,Third Party Payments,848.80,04-May-17,R,BUPA CARE HOMES
2,221001,Older People Placements - East,OP 65&Over NursingCarePlacemts,Physical/ Sensory Support,4360,Nursing Homes External,Adult Social Care,Third Party Payments,848.80,04-May-17,R,BUPA CARE HOMES
2,221001,Older People Placements - East,OP 65&Over NursingCarePlacemts,Physical/ Sensory Support,4360,Nursing Homes External,Adult Social Care,Third Party Payments,848.80,04-May-17,R,BUPA CARE HOMES
2,221001,Older People Placements - East,OP 65&Over NursingCarePlacemts,Physical/ Sensory Support,4360,Nursing Homes External,Adult Social Care,Third Party Payments,848.80,04-May-17,R,BUPA CARE HOMES
2,221001,Older People Placements - East,OP 65&Over NursingCarePlacemts,Physical/ Sensory Support,4360,Nursing Homes External,Adult Social Care,Third Party Payments,848.80,04-May-17,R,BUPA CARE HOMES
2,221001,Older People Placements - East,OP 65&Over NursingCarePlacemts,Physical/ Sensory Support,4360,Nursing Homes External,Adult Social Care,Third Party Payments,848.80,04-May-17,R,BUPA CARE HOMES
2,221001,Older People Placements - East,OP 65&Over NursingCarePlacemts,Physical/ Sensory Support,4360,Nursing Homes External,Adult Social Care,Third Party Payments,848.80,04-May-17,R,BUPA CARE HOMES
2,221001,Older People Placements - East,OP 65&Over NursingCarePlacemts,Physical/ Sensory Support,4360,Nursing Homes External,Adult Social Care,Third Party Payments,848.80,04-May-17,R,BUPA CARE HOMES
2,221001,Older People Placements - East,OP 65&Over NursingCarePlacemts,Physical/ Sensory Support,4360,Nursing Homes External,Adult Social Care,Third Party Payments,848.80,04-May-17,R,BUPA CARE HOMES
2,221001,Older People Placements - East,OP 65&Over NursingCarePlacemts,Physical/ Sensory Support,4360,Nursing Homes External,Adult Social Care,Third Party Payments,848.80,04-May-17,R,BUPA CARE HOMES
2,221001,Older People Placements - East,OP 65&Over NursingCarePlacemts,Physical/ Sensory Support,4360,Nursing Homes External,Adult Social Care,Third Party Payments,850.00,04-May-17,R,BUPA CARE HOMES
2,221001,Older People Placements - East,OP 65&Over NursingCarePlacemts,Physical/ Sensory Support,4360,Nursing Homes External,Adult Social Care,Third Party Payments,850.00,04-May-17,R,BUPA CARE HOMES
2,221001,Older People Placements - East,OP 65&Over NursingCarePlacemts,Physical/ Sensory Support,4360,Nursing Homes External,Adult Social Care,Third Party Payments,850.00,04-May-17,R,BUPA CARE HOMES
2,221001,Older People Placements - East,OP 65&Over NursingCarePlacemts,Physical/ Sensory Support,4360,Nursing Homes External,Adult Social Care,Third Party Payments,850.00,04-May-17,R,BUPA CARE HOMES
2,221001,Older People Placements - East,OP 65&Over NursingCarePlacemts,Physical/ Sensory Support,4360,Nursing Homes External,Adult Social Care,Third Party Payments,868.80,04-May-17,R,BUPA CARE HOMES
2,221001,Older People Placements - East,OP 65&Over NursingCarePlacemts,Physical/ Sensory Support,4360,Nursing Homes External,Adult Social Care,Third Party Payments,868.80,04-May-17,R,BUPA CARE HOMES
2,221001,Older People Placements - East,OP 65&Over NursingCarePlacemts,Physical/ Sensory Support,4360,Nursing Homes External,Adult Social Care,Third Party Payments,868.80,04-May-17,R,BUPA CARE HOMES
2,221001,Older People Placements - East,OP 65&Over NursingCarePlacemts,Physical/ Sensory Support,4360,Nursing Homes External,Adult Social Care,Third Party Payments,868.80,04-May-17,R,BUPA CARE HOMES
2,221001,Older People Placements - East,OP 65&Over NursingCarePlacemts,Physical/ Sensory Support,4360,Nursing Homes External,Adult Social Care,Third Party Payments,868.80,04-May-17,R,BUPA CARE HOMES
2,221001,Older People Placements - East,OP 65&Over NursingCarePlacemts,Physical/ Sensory Support,4360,Nursing Homes External,Adult Social Care,Third Party Payments,868.80,04-May-17,R,BUPA CARE HOMES
2,221001,Older People Placements - East,OP 65&Over NursingCarePlacemts,Physical/ Sensory Support,4360,Nursing Homes External,Adult Social Care,Third Party Payments,868.80,04-May-17,R,BUPA CARE HOMES
2,221001,Older People Placements - East,OP 65&Over NursingCarePlacemts,Physical/ Sensory Support,4360,Nursing Homes External,Adult Social Care,Third Party Payments,868.80,04-May-17,R,BUPA CARE HOMES
2,221001,Older People Placements - East,OP 65&Over NursingCarePlacemts,Physical/ Sensory Support,4360,Nursing Homes External,Adult Social Care,Third Party Payments,868.80,04-May-17,R,BUPA CARE HOMES
2,221001,Older People Placements - East,OP 65&Over NursingCarePlacemts,Physical/ Sensory Support,4360,Nursing Homes External,Adult Social Care,Third Party Payments,868.80,04-May-17,R,BUPA CARE HOMES
2,221001,Older People Placements - East,OP 65&Over NursingCarePlacemts,Physical/ Sensory Support,4360,Nursing Homes External,Adult Social Care,Third Party Payments,868.80,04-May-17,R,BUPA CARE HOMES
2,221001,Older People Placements - East,OP 65&Over NursingCarePlacemts,Physical/ Sensory Support,4360,Nursing Homes External,Adult Social Care,Third Party Payments,868.80,04-May-17,R,BUPA CARE HOMES
2,221001,Older People Placements - East,OP 65&Over NursingCarePlacemts,Physical/ Sensory Support,4360,Nursing Homes External,Adult Social Care,Third Party Payments,868.80,04-May-17,R,BUPA CARE HOMES
2,221001,Older People Placements - East,OP 65&Over NursingCarePlacemts,Physical/ Sensory Support,4360,Nursing Homes External,Adult Social Care,Third Party Payments,868.80,04-May-17,R,BUPA CARE HOMES
2,221001,Older People Placements - East,OP 65&Over NursingCarePlacemts,Physical/ Sensory Support,4360,Nursing Homes External,Adult Social Care,Third Party Payments,868.80,04-May-17,R,BUPA CARE HOMES
2,221001,Older People Placements - East,OP 65&Over NursingCarePlacemts,Physical/ Sensory Support,4360,Nursing Homes External,Adult Social Care,Third Party Payments,868.80,04-May-17,R,BUPA CARE HOMES
2,221001,Older People Placements - East,OP 65&Over NursingCarePlacemts,Physical/ Sensory Support,4360,Nursing Homes External,Adult Social Care,Third Party Payments,868.80,04-May-17,R,BUPA CARE HOMES
2,221001,Older People Placements - East,OP 65&Over NursingCarePlacemts,Physical/ Sensory Support,4360,Nursing Homes External,Adult Social Care,Third Party Payments,868.80,04-May-17,R,BUPA CARE HOMES
2,221001,Older People Placements - East,OP 65&Over NursingCarePlacemts,Physical/ Sensory Support,4360,Nursing Homes External,Adult Social Care,Third Party Payments,868.80,04-May-17,R,BUPA CARE HOMES
2,221001,Older People Placements - East,OP 65&Over NursingCarePlacemts,Physical/ Sensory Support,4360,Nursing Homes External,Adult Social Care,Third Party Payments,868.80,04-May-17,R,BUPA CARE HOMES
2,221001,Older People Placements - East,OP 65&Over NursingCarePlacemts,Physical/ Sensory Support,4360,Nursing Homes External,Adult Social Care,Third Party Payments,870.00,01-May-17,R,BUPA CARE HOMES
2,221001,Older People Placements - East,OP 65&Over NursingCarePlacemts,Physical/ Sensory Support,4360,Nursing Homes External,Adult Social Care,Third Party Payments,870.00,01-May-17,R,BUPA CARE HOMES
2,221001,Older People Placements - East,OP 65&Over NursingCarePlacemts,Physical/ Sensory Support,4360,Nursing Homes External,Adult Social Care,Third Party Payments,870.00,01-May-17,R,BUPA CARE HOMES
2,221001,Older People Placements - East,OP 65&Over NursingCarePlacemts,Physical/ Sensory Support,4360,Nursing Homes External,Adult Social Care,Third Party Payments,893.80,01-May-17,R,LINK HOUSE
2,221001,Older People Placements - East,OP 65&Over NursingCarePlacemts,Physical/ Sensory Support,4360,Nursing Homes External,Adult Social Care,Third Party Payments,893.80,01-May-17,R,LINK HOUSE
2,221001,Older People Placements - East,OP 65&Over NursingCarePlacemts,Physical/ Sensory Support,4360,Nursing Homes External,Adult Social Care,Third Party Payments,895.00,01-May-17,R,LINK HOUSE
2,221001,Older People Placements - East,OP 65&Over NursingCarePlacemts,Physical/ Sensory Support,4360,Nursing Homes External,Adult Social Care,Third Party Payments,895.00,01-May-17,R,LINK HOUSE
2,221001,Older People Placements - East,OP 65&Over NursingCarePlacemts,Physical/ Sensory Support,4360,Nursing Homes External,Adult Social Care,Third Party Payments,"1,133.00",01-May-17,R,CARE UK
2,221001,Older People Placements - East,OP 65&Over NursingCarePlacemts,Physical/ Sensory Support,4360,Nursing Homes External,Adult Social Care,Third Party Payments,"1,133.00",01-May-17,R,CARE UK
2,221001,Older People Placements - East,OP 65&Over NursingCarePlacemts,Physical/ Sensory Support,4360,Nursing Homes External,Adult Social Care,Third Party Payments,"1,133.00",01-May-17,R,CARE UK
2,221001,Older People Placements - East,OP 65&Over NursingCarePlacemts,Physical/ Sensory Support,4360,Nursing Homes External,Adult Social Care,Third Party Payments,"1,133.00",01-May-17,R,CARE UK
2,221001,Older People Placements - East,OP 65&Over NursingCarePlacemts,Physical/ Sensory Support,4370,Direct Payments,Adult Social Care,Third Party Payments,500.80,08-May-17,R,REDACTED
2,221001,Older People Placements - East,OP 65&Over NursingCarePlacemts,Physical/ Sensory Support,4370,Direct Payments,Adult Social Care,Third Party Payments,500.80,08-May-17,R,REDACTED
2,221001,Older People Placements - East,OP 65&Over NursingCarePlacemts,Physical/ Sensory Support,4370,Direct Payments,Adult Social Care,Third Party Payments,500.80,08-May-17,R,REDACTED
2,221001,Older People Placements - East,OP 65&Over NursingCarePlacemts,Physical/ Sensory Support,4370,Direct Payments,Adult Social Care,Third Party Payments,500.80,08-May-17,R,REDACTED
2,221001,Older People Placements - East,OP 65&Over NursingCarePlacemts,Physical/ Sensory Support,4370,Direct Payments,Adult Social Care,Third Party Payments,521.85,08-May-17,R,REDACTED
2,221001,Older People Placements - East,OP 65&Over NursingCarePlacemts,Physical/ Sensory Support,4370,Direct Payments,Adult Social Care,Third Party Payments,521.85,08-May-17,R,REDACTED
2,221001,Older People Placements - East,OP 65&Over NursingCarePlacemts,Physical/ Sensory Support,4370,Direct Payments,Adult Social Care,Third Party Payments,521.85,08-May-17,R,REDACTED
2,221001,Older People Placements - East,OP 65&Over NursingCarePlacemts,Physical/ Sensory Support,4370,Direct Payments,Adult Social Care,Third Party Payments,521.85,08-May-17,R,REDACTED
2,221001,Older People Placements - East,OP 65&Over NursingCarePlacemts,Physical/ Sensory Support,4370,Direct Payments,Adult Social Care,Third Party Payments,570.61,08-May-17,R,REDACTED
2,221001,Older People Placements - East,OP 65&Over NursingCarePlacemts,Physical/ Sensory Support,4370,Direct Payments,Adult Social Care,Third Party Payments,570.61,08-May-17,R,REDACTED
2,221001,Older People Placements - East,OP 65&Over NursingCarePlacemts,Physical/ Sensory Support,4370,Direct Payments,Adult Social Care,Third Party Payments,570.61,08-May-17,R,REDACTED
2,221001,Older People Placements - East,OP 65&Over NursingCarePlacemts,Physical/ Sensory Support,4370,Direct Payments,Adult Social Care,Third Party Payments,570.61,08-May-17,R,REDACTED
2,221001,Older People Placements - East,OP 65&Over NursingCarePlacemts,Physical/ Sensory Support,4370,Direct Payments,Adult Social Care,Third Party Payments,608.58,08-May-17,R,REDACTED
2,221001,Older People Placements - East,OP 65&Over NursingCarePlacemts,Physical/ Sensory Support,4370,Direct Payments,Adult Social Care,Third Party Payments,608.58,08-May-17,R,REDACTED
2,221001,Older People Placements - East,OP 65&Over NursingCarePlacemts,Physical/ Sensory Support,4370,Direct Payments,Adult Social Care,Third Party Payments,608.58,08-May-17,R,REDACTED
2,221001,Older People Placements - East,OP 65&Over NursingCarePlacemts,Physical/ Sensory Support,4370,Direct Payments,Adult Social Care,Third Party Payments,608.58,08-May-17,R,REDACTED
2,221001,Older People Placements - East,OP 65&Over NursingCarePlacemts,Physical/ Sensory Support,4370,Direct Payments,Adult Social Care,Third Party Payments,677.86,08-May-17,R,REDACTED
2,221001,Older People Placements - East,OP 65&Over NursingCarePlacemts,Physical/ Sensory Support,4370,Direct Payments,Adult Social Care,Third Party Payments,677.86,08-May-17,R,REDACTED
2,221001,Older People Placements - East,OP 65&Over NursingCarePlacemts,Physical/ Sensory Support,4370,Direct Payments,Adult Social Care,Third Party Payments,677.86,08-May-17,R,REDACTED
2,221001,Older People Placements - East,OP 65&Over NursingCarePlacemts,Physical/ Sensory Support,4370,Direct Payments,Adult Social Care,Third Party Payments,677.86,08-May-17,R,REDACTED
2,221001,Older People Placements - East,OP 65&Over NursingCarePlacemts,Physical/ Sensory Support,4370,Direct Payments,Adult Social Care,Third Party Payments,680.28,08-May-17,R,REDACTED
2,221001,Older People Placements - East,OP 65&Over NursingCarePlacemts,Physical/ Sensory Support,4370,Direct Payments,Adult Social Care,Third Party Payments,680.28,08-May-17,R,REDACTED
2,221001,Older People Placements - East,OP 65&Over NursingCarePlacemts,Physical/ Sensory Support,4370,Direct Payments,Adult Social Care,Third Party Payments,680.28,08-May-17,R,REDACTED
2,221001,Older People Placements - East,OP 65&Over NursingCarePlacemts,Physical/ Sensory Support,4370,Direct Payments,Adult Social Care,Third Party Payments,680.28,08-May-17,R,REDACTED
2,221001,Older People Placements - East,OP 65&Over NursingCarePlacemts,Physical/ Sensory Support,4370,Direct Payments,Adult Social Care,Third Party Payments,680.28,08-May-17,R,REDACTED
2,221001,Older People Placements - East,OP 65&Over NursingCarePlacemts,Physical/ Sensory Support,4370,Direct Payments,Adult Social Care,Third Party Payments,680.28,08-May-17,R,REDACTED
2,221001,Older People Placements - East,OP 65&Over NursingCarePlacemts,Physical/ Sensory Support,4370,Direct Payments,Adult Social Care,Third Party Payments,680.28,08-May-17,R,REDACTED
2,221001,Older People Placements - East,OP 65&Over NursingCarePlacemts,Physical/ Sensory Support,4370,Direct Payments,Adult Social Care,Third Party Payments,680.28,08-May-17,R,REDACTED
2,221001,Older People Placements - East,OP 65&Over NursingCarePlacemts,Physical/ Sensory Support,4370,Direct Payments,Adult Social Care,Third Party Payments,718.04,08-May-17,R,REDACTED
2,221001,Older People Placements - East,OP 65&Over NursingCarePlacemts,Physical/ Sensory Support,4370,Direct Payments,Adult Social Care,Third Party Payments,718.04,08-May-17,R,REDACTED
2,221001,Older People Placements - East,OP 65&Over NursingCarePlacemts,Physical/ Sensory Support,4370,Direct Payments,Adult Social Care,Third Party Payments,718.04,08-May-17,R,REDACTED
2,221001,Older People Placements - East,OP 65&Over NursingCarePlacemts,Physical/ Sensory Support,4370,Direct Payments,Adult Social Care,Third Party Payments,718.04,08-May-17,R,REDACTED
2,221001,Older People Placements - East,OP 65&Over NursingCarePlacemts,Physical/ Sensory Support,4370,Direct Payments,Adult Social Care,Third Party Payments,788.10,08-May-17,R,REDACTED
2,221001,Older People Placements - East,OP 65&Over NursingCarePlacemts,Physical/ Sensory Support,4370,Direct Payments,Adult Social Care,Third Party Payments,788.10,08-May-17,R,REDACTED
2,221001,Older People Placements - East,OP 65&Over NursingCarePlacemts,Physical/ Sensory Support,4370,Direct Payments,Adult Social Care,Third Party Payments,799.47,08-May-17,R,REDACTED
2,221001,Older People Placements - East,OP 65&Over NursingCarePlacemts,Physical/ Sensory Support,4370,Direct Payments,Adult Social Care,Third Party Payments,799.47,08-May-17,R,REDACTED
2,221001,Older People Placements - East,OP 65&Over NursingCarePlacemts,Physical/ Sensory Support,4370,Direct Payments,Adult Social Care,Third Party Payments,799.47,08-May-17,R,REDACTED
2,221001,Older People Placements - East,OP 65&Over NursingCarePlacemts,Physical/ Sensory Support,4370,Direct Payments,Adult Social Care,Third Party Payments,932.40,08-May-17,R,REDACTED
2,221001,Older People Placements - East,OP 65&Over NursingCarePlacemts,Physical/ Sensory Support,4370,Direct Payments,Adult Social Care,Third Party Payments,932.40,08-May-17,R,REDACTED
2,221001,Older People Placements - East,OP 65&Over NursingCarePlacemts,Physical/ Sensory Support,4370,Direct Payments,Adult Social Care,Third Party Payments,"1,126.06",08-May-17,R,REDACTED
2,221001,Older People Placements - East,OP 65&Over NursingCarePlacemts,Physical/ Sensory Support,4370,Direct Payments,Adult Social Care,Third Party Payments,"1,126.06",08-May-17,R,REDACTED
2,221001,Older People Placements - East,OP 65&Over NursingCarePlacemts,Physical/ Sensory Support,4370,Direct Payments,Adult Social Care,Third Party Payments,"1,126.06",08-May-17,R,REDACTED
2,221001,Older People Placements - East,OP 65&Over NursingCarePlacemts,Physical/ Sensory Support,4370,Direct Payments,Adult Social Care,Third Party Payments,"1,126.06",08-May-17,R,REDACTED
2,221002,Older People Placements - West,OP 65&Over NursingCarePlacemts,Physical/ Sensory Support,4350,Residential Homes External,Adult Social Care,Third Party Payments,500.00,01-May-17,R,ST MARY'S LODGE
2,221002,Older People Placements - West,OP 65&Over NursingCarePlacemts,Physical/ Sensory Support,4350,Residential Homes External,Adult Social Care,Third Party Payments,500.00,01-May-17,R,ST MARY'S LODGE
2,221002,Older People Placements - West,OP 65&Over NursingCarePlacemts,Physical/ Sensory Support,4350,Residential Homes External,Adult Social Care,Third Party Payments,500.00,01-May-17,R,ST MARY'S LODGE
2,221002,Older People Placements - West,OP 65&Over NursingCarePlacemts,Physical/ Sensory Support,4350,Residential Homes External,Adult Social Care,Third Party Payments,500.00,01-May-17,R,ST MARY'S LODGE
2,221002,Older People Placements - West,OP 65&Over NursingCarePlacemts,Physical/ Sensory Support,4350,Residential Homes External,Adult Social Care,Third Party Payments,752.42,01-May-17,R,OATLANDS CARE LIMITED
2,221002,Older People Placements - West,OP 65&Over NursingCarePlacemts,Physical/ Sensory Support,4350,Residential Homes External,Adult Social Care,Third Party Payments,752.42,01-May-17,R,OATLANDS CARE LIMITED
2,221002,Older People Placements - West,OP 65&Over NursingCarePlacemts,Physical/ Sensory Support,4350,Residential Homes External,Adult Social Care,Third Party Payments,752.42,01-May-17,R,OATLANDS CARE LIMITED
2,221002,Older People Placements - West,OP 65&Over NursingCarePlacemts,Physical/ Sensory Support,4350,Residential Homes External,Adult Social Care,Third Party Payments,752.42,01-May-17,R,OATLANDS CARE LIMITED
2,221002,Older People Placements - West,OP 65&Over NursingCarePlacemts,Physical/ Sensory Support,4350,Residential Homes External,Adult Social Care,Third Party Payments,815.00,01-May-17,R,WOODLANDS
2,221002,Older People Placements - West,OP 65&Over NursingCarePlacemts,Physical/ Sensory Support,4350,Residential Homes External,Adult Social Care,Third Party Payments,815.00,01-May-17,R,WOODLANDS
2,221002,Older People Placements - West,OP 65&Over NursingCarePlacemts,Physical/ Sensory Support,4350,Residential Homes External,Adult Social Care,Third Party Payments,815.00,01-May-17,R,WOODLANDS
2,221002,Older People Placements - West,OP 65&Over NursingCarePlacemts,Physical/ Sensory Support,4350,Residential Homes External,Adult Social Care,Third Party Payments,815.00,01-May-17,R,WOODLANDS
2,221002,Older People Placements - West,OP 65&Over NursingCarePlacemts,Physical/ Sensory Support,4350,Residential Homes External,Adult Social Care,Third Party Payments,815.00,01-May-17,R,LINK HOUSE
2,221002,Older People Placements - West,OP 65&Over NursingCarePlacemts,Physical/ Sensory Support,4350,Residential Homes External,Adult Social Care,Third Party Payments,815.00,01-May-17,R,LINK HOUSE
2,221002,Older People Placements - West,OP 65&Over NursingCarePlacemts,Physical/ Sensory Support,4350,Residential Homes External,Adult Social Care,Third Party Payments,815.00,01-May-17,R,LINK HOUSE
2,221002,Older People Placements - West,OP 65&Over NursingCarePlacemts,Physical/ Sensory Support,4350,Residential Homes External,Adult Social Care,Third Party Payments,815.00,01-May-17,R,LINK HOUSE
2,221002,Older People Placements - West,OP 65&Over NursingCarePlacemts,Physical/ Sensory Support,4350,Residential Homes External,Adult Social Care,Third Party Payments,815.00,01-May-17,R,LINK HOUSE
2,221002,Older People Placements - West,OP 65&Over NursingCarePlacemts,Physical/ Sensory Support,4350,Residential Homes External,Adult Social Care,Third Party Payments,815.00,01-May-17,R,LINK HOUSE
2,221002,Older People Placements - West,OP 65&Over NursingCarePlacemts,Physical/ Sensory Support,4350,Residential Homes External,Adult Social Care,Third Party Payments,815.00,01-May-17,R,LINK HOUSE
2,221002,Older People Placements - West,OP 65&Over NursingCarePlacemts,Physical/ Sensory Support,4350,Residential Homes External,Adult Social Care,Third Party Payments,815.00,01-May-17,R,LINK HOUSE
2,221002,Older People Placements - West,OP 65&Over NursingCarePlacemts,Physical/ Sensory Support,4350,Residential Homes External,Adult Social Care,Third Party Payments,815.00,01-May-17,R,WOODLANDS
2,221002,Older People Placements - West,OP 65&Over NursingCarePlacemts,Physical/ Sensory Support,4350,Residential Homes External,Adult Social Care,Third Party Payments,815.00,01-May-17,R,WOODLANDS
2,221002,Older People Placements - West,OP 65&Over NursingCarePlacemts,Physical/ Sensory Support,4350,Residential Homes External,Adult Social Care,Third Party Payments,815.00,01-May-17,R,WOODLANDS
2,221002,Older People Placements - West,OP 65&Over NursingCarePlacemts,Physical/ Sensory Support,4350,Residential Homes External,Adult Social Care,Third Party Payments,815.00,01-May-17,R,WOODLANDS
2,221002,Older People Placements - West,OP 65&Over NursingCarePlacemts,Physical/ Sensory Support,4350,Residential Homes External,Adult Social Care,Third Party Payments,815.00,01-May-17,R,WOODLANDS
2,221002,Older People Placements - West,OP 65&Over NursingCarePlacemts,Physical/ Sensory Support,4350,Residential Homes External,Adult Social Care,Third Party Payments,815.00,01-May-17,R,WOODLANDS
2,221002,Older People Placements - West,OP 65&Over NursingCarePlacemts,Physical/ Sensory Support,4350,Residential Homes External,Adult Social Care,Third Party Payments,815.00,01-May-17,R,WOODLANDS
2,221002,Older People Placements - West,OP 65&Over NursingCarePlacemts,Physical/ Sensory Support,4350,Residential Homes External,Adult Social Care,Third Party Payments,815.00,01-May-17,R,WOODLANDS
2,221002,Older People Placements - West,OP 65&Over NursingCarePlacemts,Physical/ Sensory Support,4350,Residential Homes External,Adult Social Care,Third Party Payments,815.00,01-May-17,R,WOODLANDS
2,221002,Older People Placements - West,OP 65&Over NursingCarePlacemts,Physical/ Sensory Support,4350,Residential Homes External,Adult Social Care,Third Party Payments,815.00,01-May-17,R,CARTER HOUSE
2,221002,Older People Placements - West,OP 65&Over NursingCarePlacemts,Physical/ Sensory Support,4350,Residential Homes External,Adult Social Care,Third Party Payments,815.00,01-May-17,R,WOODLANDS
2,221002,Older People Placements - West,OP 65&Over NursingCarePlacemts,Physical/ Sensory Support,4350,Residential Homes External,Adult Social Care,Third Party Payments,815.00,01-May-17,R,WOODLANDS
2,221002,Older People Placements - West,OP 65&Over NursingCarePlacemts,Physical/ Sensory Support,4350,Residential Homes External,Adult Social Care,Third Party Payments,815.00,01-May-17,R,WOODLANDS
2,221002,Older People Placements - West,OP 65&Over NursingCarePlacemts,Physical/ Sensory Support,4350,Residential Homes External,Adult Social Care,Third Party Payments,815.00,01-May-17,R,WOODLANDS
2,221002,Older People Placements - West,OP 65&Over NursingCarePlacemts,Physical/ Sensory Support,4350,Residential Homes External,Adult Social Care,Third Party Payments,815.00,01-May-17,R,WOODLANDS
2,221002,Older People Placements - West,OP 65&Over NursingCarePlacemts,Physical/ Sensory Support,4350,Residential Homes External,Adult Social Care,Third Party Payments,815.00,01-May-17,R,WOODLANDS
2,221002,Older People Placements - West,OP 65&Over NursingCarePlacemts,Physical/ Sensory Support,4350,Residential Homes External,Adult Social Care,Third Party Payments,815.00,01-May-17,R,WOODLANDS
2,221002,Older People Placements - West,OP 65&Over NursingCarePlacemts,Physical/ Sensory Support,4350,Residential Homes External,Adult Social Care,Third Party Payments,815.00,01-May-17,R,WOODLANDS
2,221002,Older People Placements - West,OP 65&Over NursingCarePlacemts,Physical/ Sensory Support,4350,Residential Homes External,Adult Social Care,Third Party Payments,815.00,01-May-17,R,WOODLANDS
2,221002,Older People Placements - West,OP 65&Over NursingCarePlacemts,Physical/ Sensory Support,4350,Residential Homes External,Adult Social Care,Third Party Payments,815.00,01-May-17,R,WOODLANDS
2,221002,Older People Placements - West,OP 65&Over NursingCarePlacemts,Physical/ Sensory Support,4350,Residential Homes External,Adult Social Care,Third Party Payments,815.00,01-May-17,R,WOODLANDS
2,221002,Older People Placements - West,OP 65&Over NursingCarePlacemts,Physical/ Sensory Support,4350,Residential Homes External,Adult Social Care,Third Party Payments,815.00,01-May-17,R,WOODLANDS
2,221002,Older People Placements - West,OP 65&Over NursingCarePlacemts,Physical/ Sensory Support,4350,Residential Homes External,Adult Social Care,Third Party Payments,815.00,01-May-17,R,WOODLANDS
2,221002,Older People Placements - West,OP 65&Over NursingCarePlacemts,Physical/ Sensory Support,4350,Residential Homes External,Adult Social Care,Third Party Payments,815.00,01-May-17,R,WOODLANDS
2,221002,Older People Placements - West,OP 65&Over NursingCarePlacemts,Physical/ Sensory Support,4350,Residential Homes External,Adult Social Care,Third Party Payments,815.00,01-May-17,R,WOODLANDS
2,221002,Older People Placements - West,OP 65&Over NursingCarePlacemts,Physical/ Sensory Support,4350,Residential Homes External,Adult Social Care,Third Party Payments,815.00,01-May-17,R,CARTER HOUSE
2,221002,Older People Placements - West,OP 65&Over NursingCarePlacemts,Physical/ Sensory Support,4350,Residential Homes External,Adult Social Care,Third Party Payments,815.00,01-May-17,R,CARTER HOUSE
2,221002,Older People Placements - West,OP 65&Over NursingCarePlacemts,Physical/ Sensory Support,4350,Residential Homes External,Adult Social Care,Third Party Payments,815.00,01-May-17,R,CARTER HOUSE
2,221002,Older People Placements - West,OP 65&Over NursingCarePlacemts,Physical/ Sensory Support,4350,Residential Homes External,Adult Social Care,Third Party Payments,815.00,01-May-17,R,WOODLANDS
2,221002,Older People Placements - West,OP 65&Over NursingCarePlacemts,Physical/ Sensory Support,4350,Residential Homes External,Adult Social Care,Third Party Payments,815.00,01-May-17,R,WOODLANDS
2,221002,Older People Placements - West,OP 65&Over NursingCarePlacemts,Physical/ Sensory Support,4350,Residential Homes External,Adult Social Care,Third Party Payments,815.00,01-May-17,R,WOODLANDS
2,221002,Older People Placements - West,OP 65&Over NursingCarePlacemts,Physical/ Sensory Support,4350,Residential Homes External,Adult Social Care,Third Party Payments,815.00,01-May-17,R,WOODLANDS
2,221002,Older People Placements - West,OP 65&Over NursingCarePlacemts,Physical/ Sensory Support,4360,Nursing Homes External,Adult Social Care,Third Party Payments,628.51,01-May-17,R,REDACTED
2,221002,Older People Placements - West,OP 65&Over NursingCarePlacemts,Physical/ Sensory Support,4360,Nursing Homes External,Adult Social Care,Third Party Payments,628.51,01-May-17,R,REDACTED
2,221002,Older People Placements - West,OP 65&Over NursingCarePlacemts,Physical/ Sensory Support,4360,Nursing Homes External,Adult Social Care,Third Party Payments,628.51,01-May-17,R,REDACTED
2,221002,Older People Placements - West,OP 65&Over NursingCarePlacemts,Physical/ Sensory Support,4360,Nursing Homes External,Adult Social Care,Third Party Payments,628.51,01-May-17,R,REDACTED
2,221002,Older People Placements - West,OP 65&Over NursingCarePlacemts,Physical/ Sensory Support,4360,Nursing Homes External,Adult Social Care,Third Party Payments,631.80,01-May-17,R,SUTTON NURSING HOMES LTD
2,221002,Older People Placements - West,OP 65&Over NursingCarePlacemts,Physical/ Sensory Support,4360,Nursing Homes External,Adult Social Care,Third Party Payments,631.80,01-May-17,R,SUTTON NURSING HOMES LTD
2,221002,Older People Placements - West,OP 65&Over NursingCarePlacemts,Physical/ Sensory Support,4360,Nursing Homes External,Adult Social Care,Third Party Payments,631.80,01-May-17,R,SUTTON NURSING HOMES LTD
2,221002,Older People Placements - West,OP 65&Over NursingCarePlacemts,Physical/ Sensory Support,4360,Nursing Homes External,Adult Social Care,Third Party Payments,633.00,01-May-17,R,SUTTON NURSING HOMES LTD
2,221002,Older People Placements - West,OP 65&Over NursingCarePlacemts,Physical/ Sensory Support,4360,Nursing Homes External,Adult Social Care,Third Party Payments,693.05,01-May-17,R,SUTTON COURT CARE CENTRE
2,221002,Older People Placements - West,OP 65&Over NursingCarePlacemts,Physical/ Sensory Support,4360,Nursing Homes External,Adult Social Care,Third Party Payments,693.05,01-May-17,R,SUTTON COURT CARE CENTRE
2,221002,Older People Placements - West,OP 65&Over NursingCarePlacemts,Physical/ Sensory Support,4360,Nursing Homes External,Adult Social Care,Third Party Payments,693.05,01-May-17,R,SUTTON COURT CARE CENTRE
2,221002,Older People Placements - West,OP 65&Over NursingCarePlacemts,Physical/ Sensory Support,4360,Nursing Homes External,Adult Social Care,Third Party Payments,693.05,01-May-17,R,SUTTON COURT CARE CENTRE
2,221002,Older People Placements - West,OP 65&Over NursingCarePlacemts,Physical/ Sensory Support,4360,Nursing Homes External,Adult Social Care,Third Party Payments,693.05,01-May-17,R,SUTTON COURT CARE CENTRE
2,221002,Older People Placements - West,OP 65&Over NursingCarePlacemts,Physical/ Sensory Support,4360,Nursing Homes External,Adult Social Care,Third Party Payments,693.05,01-May-17,R,SUTTON COURT CARE CENTRE
2,221002,Older People Placements - West,OP 65&Over NursingCarePlacemts,Physical/ Sensory Support,4360,Nursing Homes External,Adult Social Care,Third Party Payments,747.47,01-May-17,R,RAJ NURSING HOME
2,221002,Older People Placements - West,OP 65&Over NursingCarePlacemts,Physical/ Sensory Support,4360,Nursing Homes External,Adult Social Care,Third Party Payments,747.47,01-May-17,R,RAJ NURSING HOME
2,221002,Older People Placements - West,OP 65&Over NursingCarePlacemts,Physical/ Sensory Support,4360,Nursing Homes External,Adult Social Care,Third Party Payments,747.47,01-May-17,R,RAJ NURSING HOME
2,221002,Older People Placements - West,OP 65&Over NursingCarePlacemts,Physical/ Sensory Support,4360,Nursing Homes External,Adult Social Care,Third Party Payments,747.47,01-May-17,R,RAJ NURSING HOME
2,221002,Older People Placements - West,OP 65&Over NursingCarePlacemts,Physical/ Sensory Support,4360,Nursing Homes External,Adult Social Care,Third Party Payments,755.74,01-May-17,R,TRINITY COURT NURSING HOME
2,221002,Older People Placements - West,OP 65&Over NursingCarePlacemts,Physical/ Sensory Support,4360,Nursing Homes External,Adult Social Care,Third Party Payments,789.89,01-May-17,R,WESTMINSTER HEALTH CARE LTD
2,221002,Older People Placements - West,OP 65&Over NursingCarePlacemts,Physical/ Sensory Support,4360,Nursing Homes External,Adult Social Care,Third Party Payments,789.89,01-May-17,R,WESTMINSTER HEALTH CARE LTD
2,221002,Older People Placements - West,OP 65&Over NursingCarePlacemts,Physical/ Sensory Support,4360,Nursing Homes External,Adult Social Care,Third Party Payments,789.89,01-May-17,R,WESTMINSTER HEALTH CARE LTD
2,221002,Older People Placements - West,OP 65&Over NursingCarePlacemts,Physical/ Sensory Support,4360,Nursing Homes External,Adult Social Care,Third Party Payments,789.89,01-May-17,R,WESTMINSTER HEALTH CARE LTD
2,221002,Older People Placements - West,OP 65&Over NursingCarePlacemts,Physical/ Sensory Support,4360,Nursing Homes External,Adult Social Care,Third Party Payments,848.80,04-May-17,R,BUPA CARE HOMES
2,221002,Older People Placements - West,OP 65&Over NursingCarePlacemts,Physical/ Sensory Support,4360,Nursing Homes External,Adult Social Care,Third Party Payments,848.80,04-May-17,R,BUPA CARE HOMES
2,221002,Older People Placements - West,OP 65&Over NursingCarePlacemts,Physical/ Sensory Support,4360,Nursing Homes External,Adult Social Care,Third Party Payments,848.80,04-May-17,R,BUPA CARE HOMES
2,221002,Older People Placements - West,OP 65&Over NursingCarePlacemts,Physical/ Sensory Support,4360,Nursing Homes External,Adult Social Care,Third Party Payments,848.80,04-May-17,R,BUPA CARE HOMES
2,221002,Older People Placements - West,OP 65&Over NursingCarePlacemts,Physical/ Sensory Support,4360,Nursing Homes External,Adult Social Care,Third Party Payments,848.80,04-May-17,R,BUPA CARE HOMES
2,221002,Older People Placements - West,OP 65&Over NursingCarePlacemts,Physical/ Sensory Support,4360,Nursing Homes External,Adult Social Care,Third Party Payments,848.80,04-May-17,R,BUPA CARE HOMES
2,221002,Older People Placements - West,OP 65&Over NursingCarePlacemts,Physical/ Sensory Support,4360,Nursing Homes External,Adult Social Care,Third Party Payments,848.80,04-May-17,R,BUPA CARE HOMES
2,221002,Older People Placements - West,OP 65&Over NursingCarePlacemts,Physical/ Sensory Support,4360,Nursing Homes External,Adult Social Care,Third Party Payments,848.80,04-May-17,R,BUPA CARE HOMES
2,221002,Older People Placements - West,OP 65&Over NursingCarePlacemts,Physical/ Sensory Support,4360,Nursing Homes External,Adult Social Care,Third Party Payments,868.80,04-May-17,R,BUPA CARE HOMES
2,221002,Older People Placements - West,OP 65&Over NursingCarePlacemts,Physical/ Sensory Support,4360,Nursing Homes External,Adult Social Care,Third Party Payments,868.80,04-May-17,R,BUPA CARE HOMES
2,221002,Older People Placements - West,OP 65&Over NursingCarePlacemts,Physical/ Sensory Support,4360,Nursing Homes External,Adult Social Care,Third Party Payments,868.80,04-May-17,R,BUPA CARE HOMES
2,221002,Older People Placements - West,OP 65&Over NursingCarePlacemts,Physical/ Sensory Support,4360,Nursing Homes External,Adult Social Care,Third Party Payments,868.80,04-May-17,R,BUPA CARE HOMES
2,221002,Older People Placements - West,OP 65&Over NursingCarePlacemts,Physical/ Sensory Support,4360,Nursing Homes External,Adult Social Care,Third Party Payments,895.00,01-May-17,R,WOODLANDS
2,221002,Older People Placements - West,OP 65&Over NursingCarePlacemts,Physical/ Sensory Support,4360,Nursing Homes External,Adult Social Care,Third Party Payments,895.00,01-May-17,R,WOODLANDS
2,221002,Older People Placements - West,OP 65&Over NursingCarePlacemts,Physical/ Sensory Support,4370,Direct Payments,Adult Social Care,Third Party Payments,504.00,04-May-17,R,REDACTED
2,221002,Older People Placements - West,OP 65&Over NursingCarePlacemts,Physical/ Sensory Support,4370,Direct Payments,Adult Social Care,Third Party Payments,504.00,04-May-17,R,REDACTED
2,221002,Older People Placements - West,OP 65&Over NursingCarePlacemts,Physical/ Sensory Support,4370,Direct Payments,Adult Social Care,Third Party Payments,504.00,04-May-17,R,REDACTED
2,221002,Older People Placements - West,OP 65&Over NursingCarePlacemts,Physical/ Sensory Support,4370,Direct Payments,Adult Social Care,Third Party Payments,504.00,04-May-17,R,REDACTED
2,221002,Older People Placements - West,OP 65&Over NursingCarePlacemts,Physical/ Sensory Support,4370,Direct Payments,Adult Social Care,Third Party Payments,509.04,08-May-17,R,REDACTED
2,221002,Older People Placements - West,OP 65&Over NursingCarePlacemts,Physical/ Sensory Support,4370,Direct Payments,Adult Social Care,Third Party Payments,509.04,08-May-17,R,REDACTED
2,221002,Older People Placements - West,OP 65&Over NursingCarePlacemts,Physical/ Sensory Support,4370,Direct Payments,Adult Social Care,Third Party Payments,509.04,08-May-17,R,REDACTED
2,221002,Older People Placements - West,OP 65&Over NursingCarePlacemts,Physical/ Sensory Support,4370,Direct Payments,Adult Social Care,Third Party Payments,509.04,08-May-17,R,REDACTED
2,221002,Older People Placements - West,OP 65&Over NursingCarePlacemts,Physical/ Sensory Support,4370,Direct Payments,Adult Social Care,Third Party Payments,542.73,08-May-17,R,REDACTED
2,221002,Older People Placements - West,OP 65&Over NursingCarePlacemts,Physical/ Sensory Support,4370,Direct Payments,Adult Social Care,Third Party Payments,542.73,08-May-17,R,REDACTED
2,221002,Older People Placements - West,OP 65&Over NursingCarePlacemts,Physical/ Sensory Support,4370,Direct Payments,Adult Social Care,Third Party Payments,542.73,08-May-17,R,REDACTED
2,221002,Older People Placements - West,OP 65&Over NursingCarePlacemts,Physical/ Sensory Support,4370,Direct Payments,Adult Social Care,Third Party Payments,542.73,08-May-17,R,REDACTED
2,221002,Older People Placements - West,OP 65&Over NursingCarePlacemts,Physical/ Sensory Support,4370,Direct Payments,Adult Social Care,Third Party Payments,571.25,08-May-17,R,REDACTED
2,221002,Older People Placements - West,OP 65&Over NursingCarePlacemts,Physical/ Sensory Support,4370,Direct Payments,Adult Social Care,Third Party Payments,571.25,08-May-17,R,REDACTED
2,221002,Older People Placements - West,OP 65&Over NursingCarePlacemts,Physical/ Sensory Support,4370,Direct Payments,Adult Social Care,Third Party Payments,571.25,08-May-17,R,REDACTED
2,221002,Older People Placements - West,OP 65&Over NursingCarePlacemts,Physical/ Sensory Support,4370,Direct Payments,Adult Social Care,Third Party Payments,571.25,08-May-17,R,REDACTED
2,221002,Older People Placements - West,OP 65&Over NursingCarePlacemts,Physical/ Sensory Support,4370,Direct Payments,Adult Social Care,Third Party Payments,596.40,08-May-17,R,REDACTED
2,221002,Older People Placements - West,OP 65&Over NursingCarePlacemts,Physical/ Sensory Support,4370,Direct Payments,Adult Social Care,Third Party Payments,596.40,08-May-17,R,REDACTED
2,221002,Older People Placements - West,OP 65&Over NursingCarePlacemts,Physical/ Sensory Support,4370,Direct Payments,Adult Social Care,Third Party Payments,596.40,08-May-17,R,REDACTED
2,221002,Older People Placements - West,OP 65&Over NursingCarePlacemts,Physical/ Sensory Support,4370,Direct Payments,Adult Social Care,Third Party Payments,596.40,08-May-17,R,REDACTED
2,221002,Older People Placements - West,OP 65&Over NursingCarePlacemts,Physical/ Sensory Support,4370,Direct Payments,Adult Social Care,Third Party Payments,634.26,08-May-17,R,REDACTED
2,221002,Older People Placements - West,OP 65&Over NursingCarePlacemts,Physical/ Sensory Support,4370,Direct Payments,Adult Social Care,Third Party Payments,634.26,08-May-17,R,REDACTED
2,221002,Older People Placements - West,OP 65&Over NursingCarePlacemts,Physical/ Sensory Support,4370,Direct Payments,Adult Social Care,Third Party Payments,634.26,08-May-17,R,REDACTED
2,221002,Older People Placements - West,OP 65&Over NursingCarePlacemts,Physical/ Sensory Support,4370,Direct Payments,Adult Social Care,Third Party Payments,634.26,08-May-17,R,REDACTED
2,221002,Older People Placements - West,OP 65&Over NursingCarePlacemts,Physical/ Sensory Support,4370,Direct Payments,Adult Social Care,Third Party Payments,642.16,08-May-17,R,REDACTED
2,221002,Older People Placements - West,OP 65&Over NursingCarePlacemts,Physical/ Sensory Support,4370,Direct Payments,Adult Social Care,Third Party Payments,642.16,08-May-17,R,REDACTED
2,221002,Older People Placements - West,OP 65&Over NursingCarePlacemts,Physical/ Sensory Support,4370,Direct Payments,Adult Social Care,Third Party Payments,642.16,08-May-17,R,REDACTED
2,221002,Older People Placements - West,OP 65&Over NursingCarePlacemts,Physical/ Sensory Support,4370,Direct Payments,Adult Social Care,Third Party Payments,642.16,08-May-17,R,REDACTED
2,221002,Older People Placements - West,OP 65&Over NursingCarePlacemts,Physical/ Sensory Support,4370,Direct Payments,Adult Social Care,Third Party Payments,654.55,08-May-17,R,REDACTED
2,221002,Older People Placements - West,OP 65&Over NursingCarePlacemts,Physical/ Sensory Support,4370,Direct Payments,Adult Social Care,Third Party Payments,654.55,08-May-17,R,REDACTED
2,221002,Older People Placements - West,OP 65&Over NursingCarePlacemts,Physical/ Sensory Support,4370,Direct Payments,Adult Social Care,Third Party Payments,654.55,08-May-17,R,REDACTED
2,221002,Older People Placements - West,OP 65&Over NursingCarePlacemts,Physical/ Sensory Support,4370,Direct Payments,Adult Social Care,Third Party Payments,654.55,08-May-17,R,REDACTED
2,221002,Older People Placements - West,OP 65&Over NursingCarePlacemts,Physical/ Sensory Support,4370,Direct Payments,Adult Social Care,Third Party Payments,675.16,08-May-17,R,REDACTED
2,221002,Older People Placements - West,OP 65&Over NursingCarePlacemts,Physical/ Sensory Support,4370,Direct Payments,Adult Social Care,Third Party Payments,675.16,08-May-17,R,REDACTED
2,221002,Older People Placements - West,OP 65&Over NursingCarePlacemts,Physical/ Sensory Support,4370,Direct Payments,Adult Social Care,Third Party Payments,675.16,08-May-17,R,REDACTED
2,221002,Older People Placements - West,OP 65&Over NursingCarePlacemts,Physical/ Sensory Support,4370,Direct Payments,Adult Social Care,Third Party Payments,675.16,08-May-17,R,REDACTED
2,221002,Older People Placements - West,OP 65&Over NursingCarePlacemts,Physical/ Sensory Support,4370,Direct Payments,Adult Social Care,Third Party Payments,680.28,08-May-17,R,REDACTED
2,221002,Older People Placements - West,OP 65&Over NursingCarePlacemts,Physical/ Sensory Support,4370,Direct Payments,Adult Social Care,Third Party Payments,680.28,08-May-17,R,REDACTED
2,221002,Older People Placements - West,OP 65&Over NursingCarePlacemts,Physical/ Sensory Support,4370,Direct Payments,Adult Social Care,Third Party Payments,680.28,08-May-17,R,REDACTED
2,221002,Older People Placements - West,OP 65&Over NursingCarePlacemts,Physical/ Sensory Support,4370,Direct Payments,Adult Social Care,Third Party Payments,680.28,08-May-17,R,REDACTED
2,221002,Older People Placements - West,OP 65&Over NursingCarePlacemts,Physical/ Sensory Support,4370,Direct Payments,Adult Social Care,Third Party Payments,680.28,08-May-17,R,REDACTED
2,221002,Older People Placements - West,OP 65&Over NursingCarePlacemts,Physical/ Sensory Support,4370,Direct Payments,Adult Social Care,Third Party Payments,680.28,08-May-17,R,REDACTED
2,221002,Older People Placements - West,OP 65&Over NursingCarePlacemts,Physical/ Sensory Support,4370,Direct Payments,Adult Social Care,Third Party Payments,680.28,08-May-17,R,REDACTED
2,221002,Older People Placements - West,OP 65&Over NursingCarePlacemts,Physical/ Sensory Support,4370,Direct Payments,Adult Social Care,Third Party Payments,680.28,08-May-17,R,REDACTED
2,221002,Older People Placements - West,OP 65&Over NursingCarePlacemts,Physical/ Sensory Support,4370,Direct Payments,Adult Social Care,Third Party Payments,680.28,08-May-17,R,REDACTED
2,221002,Older People Placements - West,OP 65&Over NursingCarePlacemts,Physical/ Sensory Support,4370,Direct Payments,Adult Social Care,Third Party Payments,680.28,08-May-17,R,REDACTED
2,221002,Older People Placements - West,OP 65&Over NursingCarePlacemts,Physical/ Sensory Support,4370,Direct Payments,Adult Social Care,Third Party Payments,680.28,08-May-17,R,REDACTED
2,221002,Older People Placements - West,OP 65&Over NursingCarePlacemts,Physical/ Sensory Support,4370,Direct Payments,Adult Social Care,Third Party Payments,680.28,08-May-17,R,REDACTED
2,221002,Older People Placements - West,OP 65&Over NursingCarePlacemts,Physical/ Sensory Support,4370,Direct Payments,Adult Social Care,Third Party Payments,715.25,08-May-17,R,REDACTED
2,221002,Older People Placements - West,OP 65&Over NursingCarePlacemts,Physical/ Sensory Support,4370,Direct Payments,Adult Social Care,Third Party Payments,715.25,08-May-17,R,REDACTED
2,221002,Older People Placements - West,OP 65&Over NursingCarePlacemts,Physical/ Sensory Support,4370,Direct Payments,Adult Social Care,Third Party Payments,715.25,08-May-17,R,REDACTED
2,221002,Older People Placements - West,OP 65&Over NursingCarePlacemts,Physical/ Sensory Support,4370,Direct Payments,Adult Social Care,Third Party Payments,715.25,08-May-17,R,REDACTED
2,221002,Older People Placements - West,OP 65&Over NursingCarePlacemts,Physical/ Sensory Support,4370,Direct Payments,Adult Social Care,Third Party Payments,"1,009.67",04-May-17,R,REDACTED
2,221002,Older People Placements - West,OP 65&Over NursingCarePlacemts,Physical/ Sensory Support,4370,Direct Payments,Adult Social Care,Third Party Payments,"1,009.67",04-May-17,R,REDACTED
2,221002,Older People Placements - West,OP 65&Over NursingCarePlacemts,Physical/ Sensory Support,4370,Direct Payments,Adult Social Care,Third Party Payments,"1,009.67",04-May-17,R,REDACTED
2,221002,Older People Placements - West,OP 65&Over NursingCarePlacemts,Physical/ Sensory Support,4370,Direct Payments,Adult Social Care,Third Party Payments,"1,009.67",04-May-17,R,REDACTED
2,221003,Older People Placements - Rayn,OP 65&Over NursingCarePlacemts,Physical/ Sensory Support,4350,Residential Homes External,Adult Social Care,Third Party Payments,500.00,01-May-17,R,SOUTHPARK RESIDENTIAL HOME
2,221003,Older People Placements - Rayn,OP 65&Over NursingCarePlacemts,Physical/ Sensory Support,4350,Residential Homes External,Adult Social Care,Third Party Payments,500.00,01-May-17,R,SOUTHPARK RESIDENTIAL HOME
2,221003,Older People Placements - Rayn,OP 65&Over NursingCarePlacemts,Physical/ Sensory Support,4350,Residential Homes External,Adult Social Care,Third Party Payments,500.00,01-May-17,R,SOUTHPARK RESIDENTIAL HOME
2,221003,Older People Placements - Rayn,OP 65&Over NursingCarePlacemts,Physical/ Sensory Support,4350,Residential Homes External,Adult Social Care,Third Party Payments,500.00,01-May-17,R,SOUTHPARK RESIDENTIAL HOME
2,221003,Older People Placements - Rayn,OP 65&Over NursingCarePlacemts,Physical/ Sensory Support,4350,Residential Homes External,Adult Social Care,Third Party Payments,500.00,01-May-17,R,ST MARY'S LODGE
2,221003,Older People Placements - Rayn,OP 65&Over NursingCarePlacemts,Physical/ Sensory Support,4350,Residential Homes External,Adult Social Care,Third Party Payments,500.00,01-May-17,R,ST MARY'S LODGE
2,221003,Older People Placements - Rayn,OP 65&Over NursingCarePlacemts,Physical/ Sensory Support,4350,Residential Homes External,Adult Social Care,Third Party Payments,500.00,01-May-17,R,ST MARY'S LODGE
2,221003,Older People Placements - Rayn,OP 65&Over NursingCarePlacemts,Physical/ Sensory Support,4350,Residential Homes External,Adult Social Care,Third Party Payments,500.00,01-May-17,R,ST MARY'S LODGE
2,221003,Older People Placements - Rayn,OP 65&Over NursingCarePlacemts,Physical/ Sensory Support,4350,Residential Homes External,Adult Social Care,Third Party Payments,545.19,02-May-17,R,ABBEY HOUSE RESIDENTIAL HOMES
2,221003,Older People Placements - Rayn,OP 65&Over NursingCarePlacemts,Physical/ Sensory Support,4350,Residential Homes External,Adult Social Care,Third Party Payments,545.19,02-May-17,R,ABBEY HOUSE RESIDENTIAL HOMES
2,221003,Older People Placements - Rayn,OP 65&Over NursingCarePlacemts,Physical/ Sensory Support,4350,Residential Homes External,Adult Social Care,Third Party Payments,545.19,02-May-17,R,ABBEY HOUSE RESIDENTIAL HOMES
2,221003,Older People Placements - Rayn,OP 65&Over NursingCarePlacemts,Physical/ Sensory Support,4350,Residential Homes External,Adult Social Care,Third Party Payments,545.19,02-May-17,R,ABBEY HOUSE RESIDENTIAL HOMES
2,221003,Older People Placements - Rayn,OP 65&Over NursingCarePlacemts,Physical/ Sensory Support,4350,Residential Homes External,Adult Social Care,Third Party Payments,572.00,02-May-17,R,ABBEY HOUSE RESIDENTIAL HOMES
2,221003,Older People Placements - Rayn,OP 65&Over NursingCarePlacemts,Physical/ Sensory Support,4350,Residential Homes External,Adult Social Care,Third Party Payments,572.00,02-May-17,R,ABBEY HOUSE RESIDENTIAL HOMES
2,221003,Older People Placements - Rayn,OP 65&Over NursingCarePlacemts,Physical/ Sensory Support,4350,Residential Homes External,Adult Social Care,Third Party Payments,572.00,02-May-17,R,ABBEY HOUSE RESIDENTIAL HOMES
2,221003,Older People Placements - Rayn,OP 65&Over NursingCarePlacemts,Physical/ Sensory Support,4350,Residential Homes External,Adult Social Care,Third Party Payments,572.00,02-May-17,R,ABBEY HOUSE RESIDENTIAL HOMES
2,221003,Older People Placements - Rayn,OP 65&Over NursingCarePlacemts,Physical/ Sensory Support,4350,Residential Homes External,Adult Social Care,Third Party Payments,572.00,02-May-17,R,ABBEY HOUSE RESIDENTIAL HOMES
2,221003,Older People Placements - Rayn,OP 65&Over NursingCarePlacemts,Physical/ Sensory Support,4350,Residential Homes External,Adult Social Care,Third Party Payments,572.00,02-May-17,R,ABBEY HOUSE RESIDENTIAL HOMES
2,221003,Older People Placements - Rayn,OP 65&Over NursingCarePlacemts,Physical/ Sensory Support,4350,Residential Homes External,Adult Social Care,Third Party Payments,572.00,02-May-17,R,ABBEY HOUSE RESIDENTIAL HOMES
2,221003,Older People Placements - Rayn,OP 65&Over NursingCarePlacemts,Physical/ Sensory Support,4350,Residential Homes External,Adult Social Care,Third Party Payments,572.00,02-May-17,R,ABBEY HOUSE RESIDENTIAL HOMES
2,221003,Older People Placements - Rayn,OP 65&Over NursingCarePlacemts,Physical/ Sensory Support,4350,Residential Homes External,Adult Social Care,Third Party Payments,600.00,01-May-17,R,HASLINGTON RESIDENTIAL HOME
2,221003,Older People Placements - Rayn,OP 65&Over NursingCarePlacemts,Physical/ Sensory Support,4350,Residential Homes External,Adult Social Care,Third Party Payments,600.00,01-May-17,R,HASLINGTON RESIDENTIAL HOME
2,221003,Older People Placements - Rayn,OP 65&Over NursingCarePlacemts,Physical/ Sensory Support,4350,Residential Homes External,Adult Social Care,Third Party Payments,600.00,01-May-17,R,HASLINGTON RESIDENTIAL HOME
2,221003,Older People Placements - Rayn,OP 65&Over NursingCarePlacemts,Physical/ Sensory Support,4350,Residential Homes External,Adult Social Care,Third Party Payments,600.00,01-May-17,R,HASLINGTON RESIDENTIAL HOME
2,221003,Older People Placements - Rayn,OP 65&Over NursingCarePlacemts,Physical/ Sensory Support,4350,Residential Homes External,Adult Social Care,Third Party Payments,635.00,01-May-17,R,BUPA CARE HOMES
2,221003,Older People Placements - Rayn,OP 65&Over NursingCarePlacemts,Physical/ Sensory Support,4350,Residential Homes External,Adult Social Care,Third Party Payments,635.00,01-May-17,R,BUPA CARE HOMES
2,221003,Older People Placements - Rayn,OP 65&Over NursingCarePlacemts,Physical/ Sensory Support,4350,Residential Homes External,Adult Social Care,Third Party Payments,635.00,01-May-17,R,BUPA CARE HOMES
2,221003,Older People Placements - Rayn,OP 65&Over NursingCarePlacemts,Physical/ Sensory Support,4350,Residential Homes External,Adult Social Care,Third Party Payments,635.00,01-May-17,R,BUPA CARE HOMES
2,221003,Older People Placements - Rayn,OP 65&Over NursingCarePlacemts,Physical/ Sensory Support,4350,Residential Homes External,Adult Social Care,Third Party Payments,635.00,01-May-17,R,BUPA CARE HOMES
2,221003,Older People Placements - Rayn,OP 65&Over NursingCarePlacemts,Physical/ Sensory Support,4350,Residential Homes External,Adult Social Care,Third Party Payments,635.00,01-May-17,R,BUPA CARE HOMES
2,221003,Older People Placements - Rayn,OP 65&Over NursingCarePlacemts,Physical/ Sensory Support,4350,Residential Homes External,Adult Social Care,Third Party Payments,635.00,04-May-17,R,BUPA CARE HOMES
2,221003,Older People Placements - Rayn,OP 65&Over NursingCarePlacemts,Physical/ Sensory Support,4350,Residential Homes External,Adult Social Care,Third Party Payments,635.00,04-May-17,R,BUPA CARE HOMES
2,221003,Older People Placements - Rayn,OP 65&Over NursingCarePlacemts,Physical/ Sensory Support,4350,Residential Homes External,Adult Social Care,Third Party Payments,635.00,04-May-17,R,BUPA CARE HOMES
2,221003,Older People Placements - Rayn,OP 65&Over NursingCarePlacemts,Physical/ Sensory Support,4350,Residential Homes External,Adult Social Care,Third Party Payments,635.00,04-May-17,R,BUPA CARE HOMES
2,221003,Older People Placements - Rayn,OP 65&Over NursingCarePlacemts,Physical/ Sensory Support,4350,Residential Homes External,Adult Social Care,Third Party Payments,635.00,04-May-17,R,BUPA CARE HOMES
2,221003,Older People Placements - Rayn,OP 65&Over NursingCarePlacemts,Physical/ Sensory Support,4350,Residential Homes External,Adult Social Care,Third Party Payments,635.00,04-May-17,R,BUPA CARE HOMES
2,221003,Older People Placements - Rayn,OP 65&Over NursingCarePlacemts,Physical/ Sensory Support,4350,Residential Homes External,Adult Social Care,Third Party Payments,635.00,04-May-17,R,BUPA CARE HOMES
2,221003,Older People Placements - Rayn,OP 65&Over NursingCarePlacemts,Physical/ Sensory Support,4350,Residential Homes External,Adult Social Care,Third Party Payments,635.00,04-May-17,R,BUPA CARE HOMES
2,221003,Older People Placements - Rayn,OP 65&Over NursingCarePlacemts,Physical/ Sensory Support,4350,Residential Homes External,Adult Social Care,Third Party Payments,815.00,01-May-17,R,CARTER HOUSE
2,221003,Older People Placements - Rayn,OP 65&Over NursingCarePlacemts,Physical/ Sensory Support,4350,Residential Homes External,Adult Social Care,Third Party Payments,815.00,01-May-17,R,WOODLANDS
2,221003,Older People Placements - Rayn,OP 65&Over NursingCarePlacemts,Physical/ Sensory Support,4350,Residential Homes External,Adult Social Care,Third Party Payments,815.00,01-May-17,R,WOODLANDS
2,221003,Older People Placements - Rayn,OP 65&Over NursingCarePlacemts,Physical/ Sensory Support,4350,Residential Homes External,Adult Social Care,Third Party Payments,815.00,01-May-17,R,WOODLANDS
2,221003,Older People Placements - Rayn,OP 65&Over NursingCarePlacemts,Physical/ Sensory Support,4350,Residential Homes External,Adult Social Care,Third Party Payments,815.00,01-May-17,R,WOODLANDS
2,221003,Older People Placements - Rayn,OP 65&Over NursingCarePlacemts,Physical/ Sensory Support,4350,Residential Homes External,Adult Social Care,Third Party Payments,815.00,01-May-17,R,WOODLANDS
2,221003,Older People Placements - Rayn,OP 65&Over NursingCarePlacemts,Physical/ Sensory Support,4350,Residential Homes External,Adult Social Care,Third Party Payments,815.00,01-May-17,R,WOODLANDS
2,221003,Older People Placements - Rayn,OP 65&Over NursingCarePlacemts,Physical/ Sensory Support,4350,Residential Homes External,Adult Social Care,Third Party Payments,815.00,01-May-17,R,WOODLANDS
2,221003,Older People Placements - Rayn,OP 65&Over NursingCarePlacemts,Physical/ Sensory Support,4350,Residential Homes External,Adult Social Care,Third Party Payments,815.00,01-May-17,R,CARTER HOUSE
2,221003,Older People Placements - Rayn,OP 65&Over NursingCarePlacemts,Physical/ Sensory Support,4350,Residential Homes External,Adult Social Care,Third Party Payments,815.00,01-May-17,R,CARTER HOUSE
2,221003,Older People Placements - Rayn,OP 65&Over NursingCarePlacemts,Physical/ Sensory Support,4350,Residential Homes External,Adult Social Care,Third Party Payments,815.00,01-May-17,R,CARTER HOUSE
2,221003,Older People Placements - Rayn,OP 65&Over NursingCarePlacemts,Physical/ Sensory Support,4350,Residential Homes External,Adult Social Care,Third Party Payments,815.00,01-May-17,R,CARTER HOUSE
2,221003,Older People Placements - Rayn,OP 65&Over NursingCarePlacemts,Physical/ Sensory Support,4350,Residential Homes External,Adult Social Care,Third Party Payments,815.00,01-May-17,R,CARTER HOUSE
2,221003,Older People Placements - Rayn,OP 65&Over NursingCarePlacemts,Physical/ Sensory Support,4350,Residential Homes External,Adult Social Care,Third Party Payments,815.00,01-May-17,R,CARTER HOUSE
2,221003,Older People Placements - Rayn,OP 65&Over NursingCarePlacemts,Physical/ Sensory Support,4350,Residential Homes External,Adult Social Care,Third Party Payments,815.00,01-May-17,R,CARTER HOUSE
2,221003,Older People Placements - Rayn,OP 65&Over NursingCarePlacemts,Physical/ Sensory Support,4350,Residential Homes External,Adult Social Care,Third Party Payments,815.00,01-May-17,R,CARTER HOUSE
2,221003,Older People Placements - Rayn,OP 65&Over NursingCarePlacemts,Physical/ Sensory Support,4350,Residential Homes External,Adult Social Care,Third Party Payments,815.00,01-May-17,R,CARTER HOUSE
2,221003,Older People Placements - Rayn,OP 65&Over NursingCarePlacemts,Physical/ Sensory Support,4350,Residential Homes External,Adult Social Care,Third Party Payments,815.00,01-May-17,R,CARTER HOUSE
2,221003,Older People Placements - Rayn,OP 65&Over NursingCarePlacemts,Physical/ Sensory Support,4350,Residential Homes External,Adult Social Care,Third Party Payments,815.00,01-May-17,R,CARTER HOUSE
2,221003,Older People Placements - Rayn,OP 65&Over NursingCarePlacemts,Physical/ Sensory Support,4350,Residential Homes External,Adult Social Care,Third Party Payments,815.00,01-May-17,R,CARTER HOUSE
2,221003,Older People Placements - Rayn,OP 65&Over NursingCarePlacemts,Physical/ Sensory Support,4350,Residential Homes External,Adult Social Care,Third Party Payments,815.00,01-May-17,R,CARTER HOUSE
2,221003,Older People Placements - Rayn,OP 65&Over NursingCarePlacemts,Physical/ Sensory Support,4350,Residential Homes External,Adult Social Care,Third Party Payments,815.00,01-May-17,R,CARTER HOUSE
2,221003,Older People Placements - Rayn,OP 65&Over NursingCarePlacemts,Physical/ Sensory Support,4350,Residential Homes External,Adult Social Care,Third Party Payments,815.00,01-May-17,R,CARTER HOUSE
2,221003,Older People Placements - Rayn,OP 65&Over NursingCarePlacemts,Physical/ Sensory Support,4350,Residential Homes External,Adult Social Care,Third Party Payments,815.00,01-May-17,R,CARTER HOUSE
2,221003,Older People Placements - Rayn,OP 65&Over NursingCarePlacemts,Physical/ Sensory Support,4350,Residential Homes External,Adult Social Care,Third Party Payments,815.00,01-May-17,R,CARTER HOUSE
2,221003,Older People Placements - Rayn,OP 65&Over NursingCarePlacemts,Physical/ Sensory Support,4350,Residential Homes External,Adult Social Care,Third Party Payments,815.00,01-May-17,R,CARTER HOUSE
2,221003,Older People Placements - Rayn,OP 65&Over NursingCarePlacemts,Physical/ Sensory Support,4350,Residential Homes External,Adult Social Care,Third Party Payments,815.00,01-May-17,R,CARTER HOUSE
2,221003,Older People Placements - Rayn,OP 65&Over NursingCarePlacemts,Physical/ Sensory Support,4350,Residential Homes External,Adult Social Care,Third Party Payments,815.00,01-May-17,R,CARTER HOUSE
2,221003,Older People Placements - Rayn,OP 65&Over NursingCarePlacemts,Physical/ Sensory Support,4350,Residential Homes External,Adult Social Care,Third Party Payments,815.00,01-May-17,R,CARTER HOUSE
2,221003,Older People Placements - Rayn,OP 65&Over NursingCarePlacemts,Physical/ Sensory Support,4350,Residential Homes External,Adult Social Care,Third Party Payments,815.00,01-May-17,R,WOODLANDS
2,221003,Older People Placements - Rayn,OP 65&Over NursingCarePlacemts,Physical/ Sensory Support,4350,Residential Homes External,Adult Social Care,Third Party Payments,815.00,01-May-17,R,WOODLANDS
2,221003,Older People Placements - Rayn,OP 65&Over NursingCarePlacemts,Physical/ Sensory Support,4350,Residential Homes External,Adult Social Care,Third Party Payments,815.00,01-May-17,R,WOODLANDS
2,221003,Older People Placements - Rayn,OP 65&Over NursingCarePlacemts,Physical/ Sensory Support,4350,Residential Homes External,Adult Social Care,Third Party Payments,815.00,01-May-17,R,WOODLANDS
2,221003,Older People Placements - Rayn,OP 65&Over NursingCarePlacemts,Physical/ Sensory Support,4350,Residential Homes External,Adult Social Care,Third Party Payments,815.00,01-May-17,R,CARTER HOUSE
2,221003,Older People Placements - Rayn,OP 65&Over NursingCarePlacemts,Physical/ Sensory Support,4350,Residential Homes External,Adult Social Care,Third Party Payments,815.00,01-May-17,R,CARTER HOUSE
2,221003,Older People Placements - Rayn,OP 65&Over NursingCarePlacemts,Physical/ Sensory Support,4350,Residential Homes External,Adult Social Care,Third Party Payments,815.00,01-May-17,R,CARTER HOUSE
2,221003,Older People Placements - Rayn,OP 65&Over NursingCarePlacemts,Physical/ Sensory Support,4350,Residential Homes External,Adult Social Care,Third Party Payments,815.00,01-May-17,R,CARTER HOUSE
2,221003,Older People Placements - Rayn,OP 65&Over NursingCarePlacemts,Physical/ Sensory Support,4350,Residential Homes External,Adult Social Care,Third Party Payments,815.00,01-May-17,R,CARTER HOUSE
2,221003,Older People Placements - Rayn,OP 65&Over NursingCarePlacemts,Physical/ Sensory Support,4350,Residential Homes External,Adult Social Care,Third Party Payments,815.00,01-May-17,R,CARTER HOUSE
2,221003,Older People Placements - Rayn,OP 65&Over NursingCarePlacemts,Physical/ Sensory Support,4350,Residential Homes External,Adult Social Care,Third Party Payments,815.00,01-May-17,R,CARTER HOUSE
2,221003,Older People Placements - Rayn,OP 65&Over NursingCarePlacemts,Physical/ Sensory Support,4350,Residential Homes External,Adult Social Care,Third Party Payments,815.00,01-May-17,R,CARTER HOUSE
2,221003,Older People Placements - Rayn,OP 65&Over NursingCarePlacemts,Physical/ Sensory Support,4350,Residential Homes External,Adult Social Care,Third Party Payments,815.00,01-May-17,R,CARTER HOUSE
2,221003,Older People Placements - Rayn,OP 65&Over NursingCarePlacemts,Physical/ Sensory Support,4350,Residential Homes External,Adult Social Care,Third Party Payments,815.00,01-May-17,R,CARTER HOUSE
2,221003,Older People Placements - Rayn,OP 65&Over NursingCarePlacemts,Physical/ Sensory Support,4350,Residential Homes External,Adult Social Care,Third Party Payments,815.00,01-May-17,R,CARTER HOUSE
2,221003,Older People Placements - Rayn,OP 65&Over NursingCarePlacemts,Physical/ Sensory Support,4350,Residential Homes External,Adult Social Care,Third Party Payments,815.00,01-May-17,R,WOODLANDS
2,221003,Older People Placements - Rayn,OP 65&Over NursingCarePlacemts,Physical/ Sensory Support,4350,Residential Homes External,Adult Social Care,Third Party Payments,815.00,01-May-17,R,WOODLANDS
2,221003,Older People Placements - Rayn,OP 65&Over NursingCarePlacemts,Physical/ Sensory Support,4350,Residential Homes External,Adult Social Care,Third Party Payments,815.00,01-May-17,R,CARTER HOUSE
2,221003,Older People Placements - Rayn,OP 65&Over NursingCarePlacemts,Physical/ Sensory Support,4350,Residential Homes External,Adult Social Care,Third Party Payments,815.00,01-May-17,R,CARTER HOUSE
2,221003,Older People Placements - Rayn,OP 65&Over NursingCarePlacemts,Physical/ Sensory Support,4350,Residential Homes External,Adult Social Care,Third Party Payments,815.00,01-May-17,R,CARTER HOUSE
2,221003,Older People Placements - Rayn,OP 65&Over NursingCarePlacemts,Physical/ Sensory Support,4350,Residential Homes External,Adult Social Care,Third Party Payments,815.00,01-May-17,R,WOODLANDS
2,221003,Older People Placements - Rayn,OP 65&Over NursingCarePlacemts,Physical/ Sensory Support,4350,Residential Homes External,Adult Social Care,Third Party Payments,815.00,01-May-17,R,WOODLANDS
2,221003,Older People Placements - Rayn,OP 65&Over NursingCarePlacemts,Physical/ Sensory Support,4350,Residential Homes External,Adult Social Care,Third Party Payments,815.00,01-May-17,R,WOODLANDS
2,221003,Older People Placements - Rayn,OP 65&Over NursingCarePlacemts,Physical/ Sensory Support,4350,Residential Homes External,Adult Social Care,Third Party Payments,815.00,01-May-17,R,WOODLANDS
2,221003,Older People Placements - Rayn,OP 65&Over NursingCarePlacemts,Physical/ Sensory Support,4350,Residential Homes External,Adult Social Care,Third Party Payments,815.00,01-May-17,R,WOODLANDS
2,221003,Older People Placements - Rayn,OP 65&Over NursingCarePlacemts,Physical/ Sensory Support,4350,Residential Homes External,Adult Social Care,Third Party Payments,815.00,01-May-17,R,WOODLANDS
2,221003,Older People Placements - Rayn,OP 65&Over NursingCarePlacemts,Physical/ Sensory Support,4350,Residential Homes External,Adult Social Care,Third Party Payments,815.00,01-May-17,R,WOODLANDS
2,221003,Older People Placements - Rayn,OP 65&Over NursingCarePlacemts,Physical/ Sensory Support,4350,Residential Homes External,Adult Social Care,Third Party Payments,815.00,01-May-17,R,WOODLANDS
2,221003,Older People Placements - Rayn,OP 65&Over NursingCarePlacemts,Physical/ Sensory Support,4350,Residential Homes External,Adult Social Care,Third Party Payments,815.00,01-May-17,R,WOODLANDS
2,221003,Older People Placements - Rayn,OP 65&Over NursingCarePlacemts,Physical/ Sensory Support,4350,Residential Homes External,Adult Social Care,Third Party Payments,815.00,01-May-17,R,WOODLANDS
2,221003,Older People Placements - Rayn,OP 65&Over NursingCarePlacemts,Physical/ Sensory Support,4350,Residential Homes External,Adult Social Care,Third Party Payments,815.00,01-May-17,R,WOODLANDS
2,221003,Older People Placements - Rayn,OP 65&Over NursingCarePlacemts,Physical/ Sensory Support,4350,Residential Homes External,Adult Social Care,Third Party Payments,815.00,01-May-17,R,LINK HOUSE
2,221003,Older People Placements - Rayn,OP 65&Over NursingCarePlacemts,Physical/ Sensory Support,4350,Residential Homes External,Adult Social Care,Third Party Payments,815.00,01-May-17,R,LINK HOUSE
2,221003,Older People Placements - Rayn,OP 65&Over NursingCarePlacemts,Physical/ Sensory Support,4350,Residential Homes External,Adult Social Care,Third Party Payments,815.00,01-May-17,R,LINK HOUSE
2,221003,Older People Placements - Rayn,OP 65&Over NursingCarePlacemts,Physical/ Sensory Support,4350,Residential Homes External,Adult Social Care,Third Party Payments,815.00,01-May-17,R,LINK HOUSE
2,221003,Older People Placements - Rayn,OP 65&Over NursingCarePlacemts,Physical/ Sensory Support,4350,Residential Homes External,Adult Social Care,Third Party Payments,815.00,01-May-17,R,LINK HOUSE
2,221003,Older People Placements - Rayn,OP 65&Over NursingCarePlacemts,Physical/ Sensory Support,4350,Residential Homes External,Adult Social Care,Third Party Payments,815.00,01-May-17,R,LINK HOUSE
2,221003,Older People Placements - Rayn,OP 65&Over NursingCarePlacemts,Physical/ Sensory Support,4350,Residential Homes External,Adult Social Care,Third Party Payments,815.00,01-May-17,R,LINK HOUSE
2,221003,Phys/Sens Placements - East,PS u65 Nursing Care Placements,Physical/ Sensory Support,4350,Residential Homes External,Adult Social Care,Third Party Payments,815.00,01-May-17,R,LINK HOUSE
2,221003,Older People Placements - Rayn,OP 65&Over NursingCarePlacemts,Physical/ Sensory Support,4350,Residential Homes External,Adult Social Care,Third Party Payments,815.00,01-May-17,R,LINK HOUSE
2,221003,Older People Placements - Rayn,OP 65&Over NursingCarePlacemts,Physical/ Sensory Support,4350,Residential Homes External,Adult Social Care,Third Party Payments,815.00,01-May-17,R,LINK HOUSE
2,221003,Older People Placements - Rayn,OP 65&Over NursingCarePlacemts,Physical/ Sensory Support,4350,Residential Homes External,Adult Social Care,Third Party Payments,815.00,01-May-17,R,LINK HOUSE
2,221003,Older People Placements - Rayn,OP 65&Over NursingCarePlacemts,Physical/ Sensory Support,4350,Residential Homes External,Adult Social Care,Third Party Payments,815.00,01-May-17,R,LINK HOUSE
2,221003,Older People Placements - Rayn,OP 65&Over NursingCarePlacemts,Physical/ Sensory Support,4350,Residential Homes External,Adult Social Care,Third Party Payments,815.00,01-May-17,R,LINK HOUSE
2,221003,Older People Placements - Rayn,OP 65&Over NursingCarePlacemts,Physical/ Sensory Support,4350,Residential Homes External,Adult Social Care,Third Party Payments,815.00,01-May-17,R,LINK HOUSE
2,221003,Older People Placements - Rayn,OP 65&Over NursingCarePlacemts,Physical/ Sensory Support,4350,Residential Homes External,Adult Social Care,Third Party Payments,815.00,01-May-17,R,LINK HOUSE
2,221003,Older People Placements - Rayn,OP 65&Over NursingCarePlacemts,Physical/ Sensory Support,4350,Residential Homes External,Adult Social Care,Third Party Payments,815.00,01-May-17,R,LINK HOUSE
2,221003,Older People Placements - Rayn,OP 65&Over NursingCarePlacemts,Physical/ Sensory Support,4350,Residential Homes External,Adult Social Care,Third Party Payments,815.00,01-May-17,R,LINK HOUSE
2,221003,Older People Placements - Rayn,OP 65&Over NursingCarePlacemts,Physical/ Sensory Support,4350,Residential Homes External,Adult Social Care,Third Party Payments,815.00,01-May-17,R,LINK HOUSE
2,221003,Older People Placements - Rayn,OP 65&Over NursingCarePlacemts,Physical/ Sensory Support,4350,Residential Homes External,Adult Social Care,Third Party Payments,815.00,01-May-17,R,LINK HOUSE
2,221003,Older People Placements - Rayn,OP 65&Over NursingCarePlacemts,Physical/ Sensory Support,4350,Residential Homes External,Adult Social Care,Third Party Payments,815.00,01-May-17,R,LINK HOUSE
2,221003,Older People Placements - Rayn,OP 65&Over NursingCarePlacemts,Physical/ Sensory Support,4350,Residential Homes External,Adult Social Care,Third Party Payments,815.00,01-May-17,R,LINK HOUSE
2,221003,Older People Placements - Rayn,OP 65&Over NursingCarePlacemts,Physical/ Sensory Support,4350,Residential Homes External,Adult Social Care,Third Party Payments,815.00,01-May-17,R,LINK HOUSE
2,221003,Older People Placements - Rayn,OP 65&Over NursingCarePlacemts,Physical/ Sensory Support,4350,Residential Homes External,Adult Social Care,Third Party Payments,815.00,01-May-17,R,LINK HOUSE
2,221003,Older People Placements - Rayn,OP 65&Over NursingCarePlacemts,Physical/ Sensory Support,4350,Residential Homes External,Adult Social Care,Third Party Payments,815.00,01-May-17,R,LINK HOUSE
2,221003,Older People Placements - Rayn,OP 65&Over NursingCarePlacemts,Physical/ Sensory Support,4350,Residential Homes External,Adult Social Care,Third Party Payments,815.00,01-May-17,R,LINK HOUSE
2,221003,Older People Placements - Rayn,OP 65&Over NursingCarePlacemts,Physical/ Sensory Support,4350,Residential Homes External,Adult Social Care,Third Party Payments,815.00,01-May-17,R,LINK HOUSE
2,221003,Older People Placements - Rayn,OP 65&Over NursingCarePlacemts,Physical/ Sensory Support,4350,Residential Homes External,Adult Social Care,Third Party Payments,815.00,01-May-17,R,LINK HOUSE
2,221003,Older People Placements - Rayn,OP 65&Over NursingCarePlacemts,Physical/ Sensory Support,4350,Residential Homes External,Adult Social Care,Third Party Payments,815.00,01-May-17,R,LINK HOUSE
2,221003,Older People Placements - Rayn,OP 65&Over NursingCarePlacemts,Physical/ Sensory Support,4350,Residential Homes External,Adult Social Care,Third Party Payments,815.00,01-May-17,R,LINK HOUSE
2,221003,Older People Placements - Rayn,OP 65&Over NursingCarePlacemts,Physical/ Sensory Support,4350,Residential Homes External,Adult Social Care,Third Party Payments,815.00,01-May-17,R,LINK HOUSE
2,221003,Older People Placements - Rayn,OP 65&Over NursingCarePlacemts,Physical/ Sensory Support,4350,Residential Homes External,Adult Social Care,Third Party Payments,815.00,01-May-17,R,LINK HOUSE
2,221003,Older People Placements - Rayn,OP 65&Over NursingCarePlacemts,Physical/ Sensory Support,4350,Residential Homes External,Adult Social Care,Third Party Payments,815.00,01-May-17,R,LINK HOUSE
2,221003,Older People Placements - Rayn,OP 65&Over NursingCarePlacemts,Physical/ Sensory Support,4350,Residential Homes External,Adult Social Care,Third Party Payments,815.00,01-May-17,R,WOODLANDS
2,221003,Older People Placements - Rayn,OP 65&Over NursingCarePlacemts,Physical/ Sensory Support,4350,Residential Homes External,Adult Social Care,Third Party Payments,815.00,01-May-17,R,WOODLANDS
2,221003,Older People Placements - Rayn,OP 65&Over NursingCarePlacemts,Physical/ Sensory Support,4350,Residential Homes External,Adult Social Care,Third Party Payments,815.00,01-May-17,R,WOODLANDS
2,221003,Older People Placements - Rayn,OP 65&Over NursingCarePlacemts,Physical/ Sensory Support,4350,Residential Homes External,Adult Social Care,Third Party Payments,815.00,01-May-17,R,WOODLANDS
2,221003,Older People Placements - Rayn,OP 65&Over NursingCarePlacemts,Physical/ Sensory Support,4350,Residential Homes External,Adult Social Care,Third Party Payments,"1,070.00",01-May-17,R,APPLEBY CARE HOME
2,221003,Older People Placements - Rayn,OP 65&Over NursingCarePlacemts,Physical/ Sensory Support,4350,Residential Homes External,Adult Social Care,Third Party Payments,"1,070.00",01-May-17,R,APPLEBY CARE HOME
2,221003,Older People Placements - Rayn,OP 65&Over NursingCarePlacemts,Physical/ Sensory Support,4350,Residential Homes External,Adult Social Care,Third Party Payments,"1,070.00",01-May-17,R,APPLEBY CARE HOME
2,221003,Older People Placements - Rayn,OP 65&Over NursingCarePlacemts,Physical/ Sensory Support,4350,Residential Homes External,Adult Social Care,Third Party Payments,"1,070.00",01-May-17,R,APPLEBY CARE HOME
2,221003,Older People Placements - Rayn,OP 65&Over NursingCarePlacemts,Physical/ Sensory Support,4360,Nursing Homes External,Adult Social Care,Third Party Payments,628.51,01-May-17,R,REDACTED
2,221003,Older People Placements - Rayn,OP 65&Over NursingCarePlacemts,Physical/ Sensory Support,4360,Nursing Homes External,Adult Social Care,Third Party Payments,628.51,01-May-17,R,REDACTED
2,221003,Older People Placements - Rayn,OP 65&Over NursingCarePlacemts,Physical/ Sensory Support,4360,Nursing Homes External,Adult Social Care,Third Party Payments,628.51,01-May-17,R,REDACTED
2,221003,Older People Placements - Rayn,OP 65&Over NursingCarePlacemts,Physical/ Sensory Support,4360,Nursing Homes External,Adult Social Care,Third Party Payments,628.51,01-May-17,R,REDACTED
2,221003,Older People Placements - Rayn,OP 65&Over NursingCarePlacemts,Physical/ Sensory Support,4360,Nursing Homes External,Adult Social Care,Third Party Payments,629.62,01-May-17,R,GALLEON CARE HOMES LTD
2,221003,Older People Placements - Rayn,OP 65&Over NursingCarePlacemts,Physical/ Sensory Support,4360,Nursing Homes External,Adult Social Care,Third Party Payments,629.62,01-May-17,R,GALLEON CARE HOMES LTD
2,221003,Phys/Sens Placements - East,PS u65 Nursing Care Placements,Physical/ Sensory Support,4360,Nursing Homes External,Adult Social Care,Third Party Payments,629.62,01-May-17,R,GALLEON CARE HOMES LTD
2,221003,Older People Placements - Rayn,OP 65&Over NursingCarePlacemts,Physical/ Sensory Support,4360,Nursing Homes External,Adult Social Care,Third Party Payments,629.62,01-May-17,R,GALLEON CARE HOMES LTD
2,221003,Older People Placements - Rayn,OP 65&Over NursingCarePlacemts,Physical/ Sensory Support,4360,Nursing Homes External,Adult Social Care,Third Party Payments,629.62,01-May-17,R,GALLEON CARE HOMES LTD
2,221003,Older People Placements - Rayn,OP 65&Over NursingCarePlacemts,Physical/ Sensory Support,4360,Nursing Homes External,Adult Social Care,Third Party Payments,629.62,01-May-17,R,GALLEON CARE HOMES LTD
2,221003,Older People Placements - Rayn,OP 65&Over NursingCarePlacemts,Physical/ Sensory Support,4360,Nursing Homes External,Adult Social Care,Third Party Payments,629.62,01-May-17,R,GALLEON CARE HOMES LTD
2,221003,Older People Placements - Rayn,OP 65&Over NursingCarePlacemts,Physical/ Sensory Support,4360,Nursing Homes External,Adult Social Care,Third Party Payments,629.62,01-May-17,R,GALLEON CARE HOMES LTD
2,221003,Older People Placements - Rayn,OP 65&Over NursingCarePlacemts,Physical/ Sensory Support,4360,Nursing Homes External,Adult Social Care,Third Party Payments,629.62,01-May-17,R,GALLEON CARE HOMES LTD
2,221003,Older People Placements - Rayn,OP 65&Over NursingCarePlacemts,Physical/ Sensory Support,4360,Nursing Homes External,Adult Social Care,Third Party Payments,693.05,01-May-17,R,SUTTON COURT CARE CENTRE
2,221003,Older People Placements - Rayn,OP 65&Over NursingCarePlacemts,Physical/ Sensory Support,4360,Nursing Homes External,Adult Social Care,Third Party Payments,693.05,01-May-17,R,SUTTON COURT CARE CENTRE
2,221003,Older People Placements - Rayn,OP 65&Over NursingCarePlacemts,Physical/ Sensory Support,4360,Nursing Homes External,Adult Social Care,Third Party Payments,693.05,01-May-17,R,SUTTON COURT CARE CENTRE
2,221003,Older People Placements - Rayn,OP 65&Over NursingCarePlacemts,Physical/ Sensory Support,4360,Nursing Homes External,Adult Social Care,Third Party Payments,693.05,01-May-17,R,SUTTON COURT CARE CENTRE
2,221003,Older People Placements - Rayn,OP 65&Over NursingCarePlacemts,Physical/ Sensory Support,4360,Nursing Homes External,Adult Social Care,Third Party Payments,693.05,01-May-17,R,SUTTON COURT CARE CENTRE
2,221003,Older People Placements - Rayn,OP 65&Over NursingCarePlacemts,Physical/ Sensory Support,4360,Nursing Homes External,Adult Social Care,Third Party Payments,693.05,01-May-17,R,SUTTON COURT CARE CENTRE
2,221003,Older People Placements - Rayn,OP 65&Over NursingCarePlacemts,Physical/ Sensory Support,4360,Nursing Homes External,Adult Social Care,Third Party Payments,693.05,01-May-17,R,SUTTON COURT CARE CENTRE
2,221003,Older People Placements - Rayn,OP 65&Over NursingCarePlacemts,Physical/ Sensory Support,4360,Nursing Homes External,Adult Social Care,Third Party Payments,693.05,01-May-17,R,SUTTON COURT CARE CENTRE
2,221003,Older People Placements - Rayn,OP 65&Over NursingCarePlacemts,Physical/ Sensory Support,4360,Nursing Homes External,Adult Social Care,Third Party Payments,693.05,01-May-17,R,SUTTON COURT CARE CENTRE
2,221003,Older People Placements - Rayn,OP 65&Over NursingCarePlacemts,Physical/ Sensory Support,4360,Nursing Homes External,Adult Social Care,Third Party Payments,693.05,01-May-17,R,SUTTON COURT CARE CENTRE
2,221003,Older People Placements - Rayn,OP 65&Over NursingCarePlacemts,Physical/ Sensory Support,4360,Nursing Homes External,Adult Social Care,Third Party Payments,693.05,01-May-17,R,SUTTON COURT CARE CENTRE
2,221003,Older People Placements - Rayn,OP 65&Over NursingCarePlacemts,Physical/ Sensory Support,4360,Nursing Homes External,Adult Social Care,Third Party Payments,693.05,01-May-17,R,SUTTON COURT CARE CENTRE
2,221003,Older People Placements - Rayn,OP 65&Over NursingCarePlacemts,Physical/ Sensory Support,4360,Nursing Homes External,Adult Social Care,Third Party Payments,739.25,01-May-17,R,KELSTONE COURT NURSING HOME
2,221003,Older People Placements - Rayn,OP 65&Over NursingCarePlacemts,Physical/ Sensory Support,4360,Nursing Homes External,Adult Social Care,Third Party Payments,739.25,01-May-17,R,KELSTONE COURT NURSING HOME
2,221003,Older People Placements - Rayn,OP 65&Over NursingCarePlacemts,Physical/ Sensory Support,4360,Nursing Homes External,Adult Social Care,Third Party Payments,739.25,01-May-17,R,KELSTONE COURT NURSING HOME
2,221003,Older People Placements - Rayn,OP 65&Over NursingCarePlacemts,Physical/ Sensory Support,4360,Nursing Homes External,Adult Social Care,Third Party Payments,739.25,01-May-17,R,KELSTONE COURT NURSING HOME
2,221003,Older People Placements - Rayn,OP 65&Over NursingCarePlacemts,Physical/ Sensory Support,4360,Nursing Homes External,Adult Social Care,Third Party Payments,768.05,01-May-17,R,WILLESDEN COURT NURSING HOME
2,221003,Older People Placements - Rayn,OP 65&Over NursingCarePlacemts,Physical/ Sensory Support,4360,Nursing Homes External,Adult Social Care,Third Party Payments,768.05,01-May-17,R,WILLESDEN COURT NURSING HOME
2,221003,Older People Placements - Rayn,OP 65&Over NursingCarePlacemts,Physical/ Sensory Support,4360,Nursing Homes External,Adult Social Care,Third Party Payments,768.05,01-May-17,R,WILLESDEN COURT NURSING HOME
2,221003,Older People Placements - Rayn,OP 65&Over NursingCarePlacemts,Physical/ Sensory Support,4360,Nursing Homes External,Adult Social Care,Third Party Payments,768.05,01-May-17,R,WILLESDEN COURT NURSING HOME
2,221003,Older People Placements - Rayn,OP 65&Over NursingCarePlacemts,Physical/ Sensory Support,4360,Nursing Homes External,Adult Social Care,Third Party Payments,782.05,01-May-17,R,PARKSIDE NURSING HOME
2,221003,Older People Placements - Rayn,OP 65&Over NursingCarePlacemts,Physical/ Sensory Support,4360,Nursing Homes External,Adult Social Care,Third Party Payments,782.05,01-May-17,R,SUTTON NURSING HOMES LTD
2,221003,Older People Placements - Rayn,OP 65&Over NursingCarePlacemts,Physical/ Sensory Support,4360,Nursing Homes External,Adult Social Care,Third Party Payments,782.05,01-May-17,R,SUTTON NURSING HOMES LTD
2,221003,Older People Placements - Rayn,OP 65&Over NursingCarePlacemts,Physical/ Sensory Support,4360,Nursing Homes External,Adult Social Care,Third Party Payments,782.05,01-May-17,R,SUTTON NURSING HOMES LTD
2,221003,Older People Placements - Rayn,OP 65&Over NursingCarePlacemts,Physical/ Sensory Support,4360,Nursing Homes External,Adult Social Care,Third Party Payments,782.05,01-May-17,R,PARKSIDE NURSING HOME
2,221003,Older People Placements - Rayn,OP 65&Over NursingCarePlacemts,Physical/ Sensory Support,4360,Nursing Homes External,Adult Social Care,Third Party Payments,782.05,01-May-17,R,PARKSIDE NURSING HOME
2,221003,Older People Placements - Rayn,OP 65&Over NursingCarePlacemts,Physical/ Sensory Support,4360,Nursing Homes External,Adult Social Care,Third Party Payments,782.05,01-May-17,R,PARKSIDE NURSING HOME
2,221003,Older People Placements - Rayn,OP 65&Over NursingCarePlacemts,Physical/ Sensory Support,4360,Nursing Homes External,Adult Social Care,Third Party Payments,782.05,01-May-17,R,PARKSIDE NURSING HOME
2,221003,Older People Placements - Rayn,OP 65&Over NursingCarePlacemts,Physical/ Sensory Support,4360,Nursing Homes External,Adult Social Care,Third Party Payments,783.25,01-May-17,R,SUTTON NURSING HOMES LTD
2,221003,Older People Placements - Rayn,OP 65&Over NursingCarePlacemts,Physical/ Sensory Support,4360,Nursing Homes External,Adult Social Care,Third Party Payments,798.80,01-May-17,R,SUTTON NURSING HOMES LTD
2,221003,Older People Placements - Rayn,OP 65&Over NursingCarePlacemts,Physical/ Sensory Support,4360,Nursing Homes External,Adult Social Care,Third Party Payments,798.80,01-May-17,R,SUTTON NURSING HOMES LTD
2,221003,Older People Placements - Rayn,OP 65&Over NursingCarePlacemts,Physical/ Sensory Support,4360,Nursing Homes External,Adult Social Care,Third Party Payments,798.80,01-May-17,R,SUTTON NURSING HOMES LTD
2,221003,Older People Placements - Rayn,OP 65&Over NursingCarePlacemts,Physical/ Sensory Support,4360,Nursing Homes External,Adult Social Care,Third Party Payments,800.00,01-May-17,R,Tower Bridge Care Centre
2,221003,Older People Placements - Rayn,OP 65&Over NursingCarePlacemts,Physical/ Sensory Support,4360,Nursing Homes External,Adult Social Care,Third Party Payments,800.00,01-May-17,R,Tower Bridge Care Centre
2,221003,Older People Placements - Rayn,OP 65&Over NursingCarePlacemts,Physical/ Sensory Support,4360,Nursing Homes External,Adult Social Care,Third Party Payments,800.00,01-May-17,R,Tower Bridge Care Centre
2,221003,Older People Placements - Rayn,OP 65&Over NursingCarePlacemts,Physical/ Sensory Support,4360,Nursing Homes External,Adult Social Care,Third Party Payments,800.00,01-May-17,R,Tower Bridge Care Centre
2,221003,Older People Placements - Rayn,OP 65&Over NursingCarePlacemts,Physical/ Sensory Support,4360,Nursing Homes External,Adult Social Care,Third Party Payments,800.00,01-May-17,R,Tower Bridge Care Centre
2,221003,Older People Placements - Rayn,OP 65&Over NursingCarePlacemts,Physical/ Sensory Support,4360,Nursing Homes External,Adult Social Care,Third Party Payments,800.00,01-May-17,R,Tower Bridge Care Centre
2,221003,Older People Placements - Rayn,OP 65&Over NursingCarePlacemts,Physical/ Sensory Support,4360,Nursing Homes External,Adult Social Care,Third Party Payments,800.00,01-May-17,R,SUTTON NURSING HOMES LTD
2,221003,Older People Placements - Rayn,OP 65&Over NursingCarePlacemts,Physical/ Sensory Support,4360,Nursing Homes External,Adult Social Care,Third Party Payments,843.05,01-May-17,R,MARIAN HOUSE NURSING HOME
2,221003,Older People Placements - Rayn,OP 65&Over NursingCarePlacemts,Physical/ Sensory Support,4360,Nursing Homes External,Adult Social Care,Third Party Payments,843.05,01-May-17,R,MARIAN HOUSE NURSING HOME
2,221003,Older People Placements - Rayn,OP 65&Over NursingCarePlacemts,Physical/ Sensory Support,4360,Nursing Homes External,Adult Social Care,Third Party Payments,843.05,01-May-17,R,MARIAN HOUSE NURSING HOME
2,221003,Older People Placements - Rayn,OP 65&Over NursingCarePlacemts,Physical/ Sensory Support,4360,Nursing Homes External,Adult Social Care,Third Party Payments,844.25,01-May-17,R,MARIAN HOUSE NURSING HOME
2,221003,Older People Placements - Rayn,OP 65&Over NursingCarePlacemts,Physical/ Sensory Support,4360,Nursing Homes External,Adult Social Care,Third Party Payments,848.80,04-May-17,R,BUPA CARE HOMES
2,221003,Older People Placements - Rayn,OP 65&Over NursingCarePlacemts,Physical/ Sensory Support,4360,Nursing Homes External,Adult Social Care,Third Party Payments,848.80,04-May-17,R,BUPA CARE HOMES
2,221003,Older People Placements - Rayn,OP 65&Over NursingCarePlacemts,Physical/ Sensory Support,4360,Nursing Homes External,Adult Social Care,Third Party Payments,848.80,04-May-17,R,BUPA CARE HOMES
2,221003,Older People Placements - Rayn,OP 65&Over NursingCarePlacemts,Physical/ Sensory Support,4360,Nursing Homes External,Adult Social Care,Third Party Payments,848.80,04-May-17,R,BUPA CARE HOMES
2,221003,Older People Placements - Rayn,OP 65&Over NursingCarePlacemts,Physical/ Sensory Support,4360,Nursing Homes External,Adult Social Care,Third Party Payments,848.80,04-May-17,R,BUPA CARE HOMES
2,221003,Older People Placements - Rayn,OP 65&Over NursingCarePlacemts,Physical/ Sensory Support,4360,Nursing Homes External,Adult Social Care,Third Party Payments,848.80,04-May-17,R,BUPA CARE HOMES
2,221003,Older People Placements - Rayn,OP 65&Over NursingCarePlacemts,Physical/ Sensory Support,4360,Nursing Homes External,Adult Social Care,Third Party Payments,848.80,04-May-17,R,BUPA CARE HOMES
2,221003,Older People Placements - Rayn,OP 65&Over NursingCarePlacemts,Physical/ Sensory Support,4360,Nursing Homes External,Adult Social Care,Third Party Payments,848.80,04-May-17,R,BUPA CARE HOMES
2,221003,Older People Placements - Rayn,OP 65&Over NursingCarePlacemts,Physical/ Sensory Support,4360,Nursing Homes External,Adult Social Care,Third Party Payments,848.80,04-May-17,R,BUPA CARE HOMES
2,221003,Older People Placements - Rayn,OP 65&Over NursingCarePlacemts,Physical/ Sensory Support,4360,Nursing Homes External,Adult Social Care,Third Party Payments,848.80,04-May-17,R,BUPA CARE HOMES
2,221003,Older People Placements - Rayn,OP 65&Over NursingCarePlacemts,Physical/ Sensory Support,4360,Nursing Homes External,Adult Social Care,Third Party Payments,848.80,04-May-17,R,BUPA CARE HOMES
2,221003,Older People Placements - Rayn,OP 65&Over NursingCarePlacemts,Physical/ Sensory Support,4360,Nursing Homes External,Adult Social Care,Third Party Payments,848.80,04-May-17,R,BUPA CARE HOMES
2,221003,Older People Placements - Rayn,OP 65&Over NursingCarePlacemts,Physical/ Sensory Support,4360,Nursing Homes External,Adult Social Care,Third Party Payments,848.80,04-May-17,R,BUPA CARE HOMES
2,221003,Older People Placements - Rayn,OP 65&Over NursingCarePlacemts,Physical/ Sensory Support,4360,Nursing Homes External,Adult Social Care,Third Party Payments,848.80,04-May-17,R,BUPA CARE HOMES
2,221003,Older People Placements - Rayn,OP 65&Over NursingCarePlacemts,Physical/ Sensory Support,4360,Nursing Homes External,Adult Social Care,Third Party Payments,848.80,04-May-17,R,BUPA CARE HOMES
2,221003,Older People Placements - Rayn,OP 65&Over NursingCarePlacemts,Physical/ Sensory Support,4360,Nursing Homes External,Adult Social Care,Third Party Payments,848.80,04-May-17,R,BUPA CARE HOMES
2,221003,Older People Placements - Rayn,OP 65&Over NursingCarePlacemts,Physical/ Sensory Support,4360,Nursing Homes External,Adult Social Care,Third Party Payments,848.80,04-May-17,R,BUPA CARE HOMES
2,221003,Older People Placements - Rayn,OP 65&Over NursingCarePlacemts,Physical/ Sensory Support,4360,Nursing Homes External,Adult Social Care,Third Party Payments,848.80,04-May-17,R,BUPA CARE HOMES
2,221003,Older People Placements - Rayn,OP 65&Over NursingCarePlacemts,Physical/ Sensory Support,4360,Nursing Homes External,Adult Social Care,Third Party Payments,848.80,04-May-17,R,BUPA CARE HOMES
2,221003,Older People Placements - Rayn,OP 65&Over NursingCarePlacemts,Physical/ Sensory Support,4360,Nursing Homes External,Adult Social Care,Third Party Payments,848.80,04-May-17,R,BUPA CARE HOMES
2,221003,Older People Placements - Rayn,OP 65&Over NursingCarePlacemts,Physical/ Sensory Support,4360,Nursing Homes External,Adult Social Care,Third Party Payments,850.00,05-May-17,R,BUPA CARE HOMES
2,221003,Older People Placements - Rayn,OP 65&Over NursingCarePlacemts,Physical/ Sensory Support,4360,Nursing Homes External,Adult Social Care,Third Party Payments,850.00,05-May-17,R,BUPA CARE HOMES
2,221003,Older People Placements - Rayn,OP 65&Over NursingCarePlacemts,Physical/ Sensory Support,4360,Nursing Homes External,Adult Social Care,Third Party Payments,850.00,05-May-17,R,BUPA CARE HOMES
2,221003,Older People Placements - Rayn,OP 65&Over NursingCarePlacemts,Physical/ Sensory Support,4360,Nursing Homes External,Adult Social Care,Third Party Payments,850.00,05-May-17,R,BUPA CARE HOMES
2,221003,Older People Placements - Rayn,OP 65&Over NursingCarePlacemts,Physical/ Sensory Support,4360,Nursing Homes External,Adult Social Care,Third Party Payments,868.80,01-May-17,R,BUPA CARE HOMES
2,221003,Older People Placements - Rayn,OP 65&Over NursingCarePlacemts,Physical/ Sensory Support,4360,Nursing Homes External,Adult Social Care,Third Party Payments,868.80,01-May-17,R,BUPA CARE HOMES
2,221003,Older People Placements - Rayn,OP 65&Over NursingCarePlacemts,Physical/ Sensory Support,4360,Nursing Homes External,Adult Social Care,Third Party Payments,868.80,04-May-17,R,BUPA CARE HOMES
2,221003,Older People Placements - Rayn,OP 65&Over NursingCarePlacemts,Physical/ Sensory Support,4360,Nursing Homes External,Adult Social Care,Third Party Payments,868.80,04-May-17,R,BUPA CARE HOMES
2,221003,Older People Placements - Rayn,OP 65&Over NursingCarePlacemts,Physical/ Sensory Support,4360,Nursing Homes External,Adult Social Care,Third Party Payments,868.80,04-May-17,R,BUPA CARE HOMES
2,221003,Older People Placements - Rayn,OP 65&Over NursingCarePlacemts,Physical/ Sensory Support,4360,Nursing Homes External,Adult Social Care,Third Party Payments,868.80,04-May-17,R,BUPA CARE HOMES
2,221003,Older People Placements - Rayn,OP 65&Over NursingCarePlacemts,Physical/ Sensory Support,4360,Nursing Homes External,Adult Social Care,Third Party Payments,870.00,01-May-17,R,BUPA CARE HOMES
2,221003,Older People Placements - Rayn,OP 65&Over NursingCarePlacemts,Physical/ Sensory Support,4360,Nursing Homes External,Adult Social Care,Third Party Payments,870.00,01-May-17,R,BUPA CARE HOMES
2,221003,Older People Placements - Rayn,OP 65&Over NursingCarePlacemts,Physical/ Sensory Support,4360,Nursing Homes External,Adult Social Care,Third Party Payments,870.00,01-May-17,R,BUPA CARE HOMES
2,221003,Older People Placements - Rayn,OP 65&Over NursingCarePlacemts,Physical/ Sensory Support,4360,Nursing Homes External,Adult Social Care,Third Party Payments,870.00,01-May-17,R,BUPA CARE HOMES
2,221003,Older People Placements - Rayn,OP 65&Over NursingCarePlacemts,Physical/ Sensory Support,4360,Nursing Homes External,Adult Social Care,Third Party Payments,870.00,01-May-17,R,BUPA CARE HOMES
2,221003,Older People Placements - Rayn,OP 65&Over NursingCarePlacemts,Physical/ Sensory Support,4360,Nursing Homes External,Adult Social Care,Third Party Payments,913.61,01-May-17,R,HUNTERS LODGE CARE CENTRE
2,221003,Older People Placements - Rayn,OP 65&Over NursingCarePlacemts,Physical/ Sensory Support,4360,Nursing Homes External,Adult Social Care,Third Party Payments,913.61,01-May-17,R,HUNTERS LODGE CARE CENTRE
2,221003,Older People Placements - Rayn,OP 65&Over NursingCarePlacemts,Physical/ Sensory Support,4360,Nursing Homes External,Adult Social Care,Third Party Payments,913.61,01-May-17,R,HUNTERS LODGE CARE CENTRE
2,221003,Older People Placements - Rayn,OP 65&Over NursingCarePlacemts,Physical/ Sensory Support,4360,Nursing Homes External,Adult Social Care,Third Party Payments,913.61,01-May-17,R,HUNTERS LODGE CARE CENTRE
2,221003,Older People Placements - Rayn,OP 65&Over NursingCarePlacemts,Physical/ Sensory Support,4360,Nursing Homes External,Adult Social Care,Third Party Payments,914.81,01-May-17,R,HUNTERS LODGE CARE CENTRE
2,221003,Older People Placements - Rayn,OP 65&Over NursingCarePlacemts,Physical/ Sensory Support,4370,Direct Payments,Adult Social Care,Third Party Payments,526.05,04-May-17,R,REDACTED
2,221003,Older People Placements - Rayn,OP 65&Over NursingCarePlacemts,Physical/ Sensory Support,4370,Direct Payments,Adult Social Care,Third Party Payments,526.05,04-May-17,R,REDACTED
2,221003,Older People Placements - Rayn,OP 65&Over NursingCarePlacemts,Physical/ Sensory Support,4370,Direct Payments,Adult Social Care,Third Party Payments,526.05,04-May-17,R,REDACTED
2,221003,Older People Placements - Rayn,OP 65&Over NursingCarePlacemts,Physical/ Sensory Support,4370,Direct Payments,Adult Social Care,Third Party Payments,526.05,04-May-17,R,REDACTED
2,221003,Older People Placements - Rayn,OP 65&Over NursingCarePlacemts,Physical/ Sensory Support,4370,Direct Payments,Adult Social Care,Third Party Payments,611.00,08-May-17,R,REDACTED
2,221003,Older People Placements - Rayn,OP 65&Over NursingCarePlacemts,Physical/ Sensory Support,4370,Direct Payments,Adult Social Care,Third Party Payments,611.00,08-May-17,R,REDACTED
2,221003,Older People Placements - Rayn,OP 65&Over NursingCarePlacemts,Physical/ Sensory Support,4370,Direct Payments,Adult Social Care,Third Party Payments,611.00,08-May-17,R,REDACTED
2,221003,Older People Placements - Rayn,OP 65&Over NursingCarePlacemts,Physical/ Sensory Support,4370,Direct Payments,Adult Social Care,Third Party Payments,611.00,08-May-17,R,REDACTED
2,221003,Older People Placements - Rayn,OP 65&Over NursingCarePlacemts,Physical/ Sensory Support,4370,Direct Payments,Adult Social Care,Third Party Payments,649.14,08-May-17,R,REDACTED
2,221003,Older People Placements - Rayn,OP 65&Over NursingCarePlacemts,Physical/ Sensory Support,4370,Direct Payments,Adult Social Care,Third Party Payments,649.14,08-May-17,R,REDACTED
2,221003,Older People Placements - Rayn,OP 65&Over NursingCarePlacemts,Physical/ Sensory Support,4370,Direct Payments,Adult Social Care,Third Party Payments,649.14,08-May-17,R,REDACTED
2,221003,Older People Placements - Rayn,OP 65&Over NursingCarePlacemts,Physical/ Sensory Support,4370,Direct Payments,Adult Social Care,Third Party Payments,649.14,08-May-17,R,REDACTED
2,221003,Older People Placements - Rayn,OP 65&Over NursingCarePlacemts,Physical/ Sensory Support,4370,Direct Payments,Adult Social Care,Third Party Payments,660.30,08-May-17,R,REDACTED
2,221003,Older People Placements - Rayn,OP 65&Over NursingCarePlacemts,Physical/ Sensory Support,4370,Direct Payments,Adult Social Care,Third Party Payments,660.30,08-May-17,R,REDACTED
2,221003,Older People Placements - Rayn,OP 65&Over NursingCarePlacemts,Physical/ Sensory Support,4370,Direct Payments,Adult Social Care,Third Party Payments,660.30,08-May-17,R,REDACTED
2,221003,Older People Placements - Rayn,OP 65&Over NursingCarePlacemts,Physical/ Sensory Support,4370,Direct Payments,Adult Social Care,Third Party Payments,660.30,08-May-17,R,REDACTED
2,221003,Older People Placements - Rayn,OP 65&Over NursingCarePlacemts,Physical/ Sensory Support,4370,Direct Payments,Adult Social Care,Third Party Payments,680.28,08-May-17,R,REDACTED
2,221003,Older People Placements - Rayn,OP 65&Over NursingCarePlacemts,Physical/ Sensory Support,4370,Direct Payments,Adult Social Care,Third Party Payments,680.28,08-May-17,R,REDACTED
2,221003,Older People Placements - Rayn,OP 65&Over NursingCarePlacemts,Physical/ Sensory Support,4370,Direct Payments,Adult Social Care,Third Party Payments,680.28,08-May-17,R,REDACTED
2,221003,Older People Placements - Rayn,OP 65&Over NursingCarePlacemts,Physical/ Sensory Support,4370,Direct Payments,Adult Social Care,Third Party Payments,680.28,08-May-17,R,REDACTED
2,221003,Older People Placements - Rayn,OP 65&Over NursingCarePlacemts,Physical/ Sensory Support,4370,Direct Payments,Adult Social Care,Third Party Payments,680.28,08-May-17,R,REDACTED
2,221003,Older People Placements - Rayn,OP 65&Over NursingCarePlacemts,Physical/ Sensory Support,4370,Direct Payments,Adult Social Care,Third Party Payments,680.28,08-May-17,R,REDACTED
2,221003,Older People Placements - Rayn,OP 65&Over NursingCarePlacemts,Physical/ Sensory Support,4370,Direct Payments,Adult Social Care,Third Party Payments,680.28,08-May-17,R,REDACTED
2,221003,Older People Placements - Rayn,OP 65&Over NursingCarePlacemts,Physical/ Sensory Support,4370,Direct Payments,Adult Social Care,Third Party Payments,680.28,08-May-17,R,REDACTED
2,221003,Older People Placements - Rayn,OP 65&Over NursingCarePlacemts,Physical/ Sensory Support,4370,Direct Payments,Adult Social Care,Third Party Payments,681.60,08-May-17,R,REDACTED
2,221003,Older People Placements - Rayn,OP 65&Over NursingCarePlacemts,Physical/ Sensory Support,4370,Direct Payments,Adult Social Care,Third Party Payments,681.60,08-May-17,R,REDACTED
2,221003,Older People Placements - Rayn,OP 65&Over NursingCarePlacemts,Physical/ Sensory Support,4370,Direct Payments,Adult Social Care,Third Party Payments,736.68,18-May-17,R,REDACTED
2,221003,Older People Placements - Rayn,OP 65&Over NursingCarePlacemts,Physical/ Sensory Support,4370,Direct Payments,Adult Social Care,Third Party Payments,788.62,08-May-17,R,REDACTED
2,221003,Older People Placements - Rayn,OP 65&Over NursingCarePlacemts,Physical/ Sensory Support,4370,Direct Payments,Adult Social Care,Third Party Payments,788.62,08-May-17,R,REDACTED
2,221003,Older People Placements - Rayn,OP 65&Over NursingCarePlacemts,Physical/ Sensory Support,4370,Direct Payments,Adult Social Care,Third Party Payments,788.62,08-May-17,R,REDACTED
2,221003,Older People Placements - Rayn,OP 65&Over NursingCarePlacemts,Physical/ Sensory Support,4370,Direct Payments,Adult Social Care,Third Party Payments,788.62,08-May-17,R,REDACTED
2,221003,Older People Placements - Rayn,OP 65&Over NursingCarePlacemts,Physical/ Sensory Support,4370,Direct Payments,Adult Social Care,Third Party Payments,806.40,08-May-17,R,REDACTED
2,221003,Older People Placements - Rayn,OP 65&Over NursingCarePlacemts,Physical/ Sensory Support,4370,Direct Payments,Adult Social Care,Third Party Payments,806.40,08-May-17,R,REDACTED
2,221003,Older People Placements - Rayn,OP 65&Over NursingCarePlacemts,Physical/ Sensory Support,4370,Direct Payments,Adult Social Care,Third Party Payments,829.38,08-May-17,R,REDACTED
2,221003,Older People Placements - Rayn,OP 65&Over NursingCarePlacemts,Physical/ Sensory Support,4370,Direct Payments,Adult Social Care,Third Party Payments,829.38,08-May-17,R,REDACTED
2,221003,Older People Placements - Rayn,OP 65&Over NursingCarePlacemts,Physical/ Sensory Support,4370,Direct Payments,Adult Social Care,Third Party Payments,829.38,08-May-17,R,REDACTED
2,221003,Older People Placements - Rayn,OP 65&Over NursingCarePlacemts,Physical/ Sensory Support,4370,Direct Payments,Adult Social Care,Third Party Payments,829.38,08-May-17,R,REDACTED
2,221003,Older People Placements - Rayn,OP 65&Over NursingCarePlacemts,Physical/ Sensory Support,4370,Direct Payments,Adult Social Care,Third Party Payments,"1,006.60",08-May-17,R,REDACTED
2,221003,Older People Placements - Rayn,OP 65&Over NursingCarePlacemts,Physical/ Sensory Support,4370,Direct Payments,Adult Social Care,Third Party Payments,"1,006.60",08-May-17,R,REDACTED
2,221003,Older People Placements - Rayn,OP 65&Over NursingCarePlacemts,Physical/ Sensory Support,4370,Direct Payments,Adult Social Care,Third Party Payments,"1,006.60",08-May-17,R,REDACTED
2,221003,Older People Placements - Rayn,OP 65&Over NursingCarePlacemts,Physical/ Sensory Support,4370,Direct Payments,Adult Social Care,Third Party Payments,"1,006.60",08-May-17,R,REDACTED
2,221003,Older People Placements - Rayn,OP 65&Over NursingCarePlacemts,Physical/ Sensory Support,4390,Home Care,Adult Social Care,Third Party Payments,632.70,01-May-17,R,Allied Healthcare
2,221003,Older People Placements - Rayn,OP 65&Over NursingCarePlacemts,Physical/ Sensory Support,4390,Home Care,Adult Social Care,Third Party Payments,688.84,01-May-17,R,LONDON CARE LTD
2,221003,Older People Placements - Rayn,OP 65&Over NursingCarePlacemts,Physical/ Sensory Support,4390,Home Care,Adult Social Care,Third Party Payments,805.50,01-May-17,R,LONDON CARE LTD
2,221003,Older People Placements - Rayn,OP 65&Over NursingCarePlacemts,Physical/ Sensory Support,4390,Home Care,Adult Social Care,Third Party Payments,805.50,01-May-17,R,LONDON CARE LTD
2,221003,Older People Placements - Rayn,OP 65&Over NursingCarePlacemts,Physical/ Sensory Support,4390,Home Care,Adult Social Care,Third Party Payments,805.50,01-May-17,R,LONDON CARE LTD
2,221003,Older People Placements - Rayn,OP 65&Over NursingCarePlacemts,Physical/ Sensory Support,4390,Home Care,Adult Social Care,Third Party Payments,805.50,01-May-17,R,LONDON CARE LTD
